Directorate,Department,Expenditure Type,Ref.Doc.1,Vendor Name,Expenditure Amount (exc VAT),Payment Date
Delivery Units,Adults and Health,Other Services,1004268201,BARNET HOMES ASSIST,777.65,05/10/2020
Delivery Units,Adults and Health,Other Services,1004287902,BARNET MENCAP,"28,583.33",07/10/2020
Delivery Units,Adults and Health,Other Services,1004363502,POHWER,48.30,12/10/2020
Delivery Units,Adults and Health,Other Services,1004370002,POHWER,150.27,12/10/2020
Delivery Units,Adults and Health,Voluntary Associations - Third,1004363802,MIDDLESEX ASSOCIATION  FOR THE BLIN,"2,268.25",12/10/2020
Delivery Units,Adults and Health,Other Services,1004479402,POHWER,"4,303.00",16/10/2020
Delivery Units,Adults and Health,Voluntary Associations - Third,0050017716,AGE CONCERN,"37,500.00",16/10/2020
Delivery Units,Adults and Health,Voluntary Associations - Third,0050017717,BARNET MENCAP,"11,142.65",16/10/2020
Delivery Units,Adults and Health,Other Transfer Payments to Soc,1004479002,ALZHEIMER'S SOCIETY (BARNET),"18,166.67",16/10/2020
Delivery Units,Adults and Health,Other Transfer Payments to Soc,1004479702,ALZHEIMER'S SOCIETY (BARNET),"18,166.67",16/10/2020
Delivery Units,Adults and Health,Other Transfer Payments to Soc,1004424902,INCLUSION BARNET,"10,123.23",19/10/2020
Delivery Units,Adults and Health,Other Transfer Payments to Soc,1004667602,BARNET CITIZENS ADVICE BUREAU,"119,205.25",26/10/2020
Delivery Units,Adults and Health,Equipment and Materials Purcha,1004066302,MILLBROOK HEALTHCARE GROUP,"162,026.93",28/10/2020
Delivery Units,Adults and Health,Other Transfer Payments to Soc,1004399002,PRT BARNET CARERS CENTRE,"28,080.75",28/10/2020
Delivery Units,Adults and Health,Equipment and Materials Purcha,1004063702,MILLBROOK HEALTHCARE GROUP,"8,195.00",30/10/2020
Delivery Units,Adults and Health,Other Services,1004753001,BARNET HOMES ASSIST,550.89,30/10/2020
Delivery Units,Adults and Health,Other Services,1000582304,BARNET MENCAP,"18,249.66",30/10/2020
Delivery Units,Adults and Health,Other Services,1004212501,EAST LONDON CLEANERS,80.00,01/10/2020
Delivery Units,Adults and Health,Translation Exp / Interpret,1000547109,D.A. LANGUAGES LTD,40.50,02/10/2020
Delivery Units,Adults and Health,Equipment and Materials Purcha,1003537302,BACK CARE SOLUTIONS LIMITED,225.00,05/10/2020
Delivery Units,Adults and Health,Training,1004264801,HUNTERSJOY LTD,375.00,05/10/2020
Delivery Units,Adults and Health,Translation Exp / Interpret,1004273101,D.A. LANGUAGES LTD,72.00,05/10/2020
Delivery Units,Adults and Health,Training,1004254102,BARNET MENCAP,400.00,05/10/2020
Delivery Units,Adults and Health,Cleaning and domestic material,1004288401,NORSE COMMERCIAL SERVICES LTD,635.76,06/10/2020
Delivery Units,Adults and Health,Water Services,1004293701,WATERLOGIC GB LIMITED,"1,020.10",06/10/2020
Delivery Units,Adults and Health,Cleaning and domestic material,1004294001,NORSE COMMERCIAL SERVICES LTD,117.92,06/10/2020
Delivery Units,Adults and Health,Translation Exp / Interpret,1004294501,D.A. LANGUAGES LTD,102.00,06/10/2020
Delivery Units,Adults and Health,Translation Exp / Interpret,1004326601,D.A. LANGUAGES LTD,26.00,07/10/2020
Delivery Units,Adults and Health,Translation Exp / Interpret,1004338501,D.A. LANGUAGES LTD,67.60,08/10/2020
Delivery Units,Adults and Health,Translation Exp / Interpret,1004339201,D.A. LANGUAGES LTD,60.84,08/10/2020
Delivery Units,Adults and Health,Other Transfer Payments to Soc,1004340901,EDUHEZ LTD,"3,060.00",08/10/2020
Delivery Units,Adults and Health,Translation Exp / Interpret,1004343001,D.A. LANGUAGES LTD,4.16,08/10/2020
Delivery Units,Adults and Health,Translation Exp / Interpret,1004399901,D.A. LANGUAGES LTD,98.00,12/10/2020
Delivery Units,Adults and Health,Other Transfer Payments to Soc,1004457801,CARESKILLS ACADEMY,399.00,14/10/2020
Delivery Units,Adults and Health,Training,1004461001,HUNTERSJOY LTD,375.00,14/10/2020
Delivery Units,Adults and Health,Translation Exp / Interpret,1004477901,LANGUAGE LINK UK LTD,198.00,15/10/2020
Delivery Units,Adults and Health,Subscriptions,1004195402,ASSOCIATION OF DIRECTORS OF ADULT,"2,160.00",15/10/2020
Delivery Units,Adults and Health,Subscriptions,1004269902,ASSOCIATION OF DIRECTORS OF ADULT,"2,253.00",15/10/2020
Delivery Units,Adults and Health,Translation Exp / Interpret,1004510801,D.A. LANGUAGES LTD,37.96,16/10/2020
Delivery Units,Adults and Health,Translation Exp / Interpret,1004512001,D.A. LANGUAGES LTD,101.40,16/10/2020
Delivery Units,Adults and Health,Other Services,1004515201,D.A. LANGUAGES LTD,15.08,16/10/2020
Delivery Units,Adults and Health,Training,1004424002,LIGHTLEY CONSULTING,800.00,19/10/2020
Delivery Units,Adults and Health,Other Transfer Payments to Soc,1003702701,ACTION FIRST ASSESSMENT LTD,"1,005.00",20/10/2020
Delivery Units,Adults and Health,Other Transfer Payments to Soc,1004008501,ACTION FIRST ASSESSMENT LTD,"3,685.00",20/10/2020
Delivery Units,Adults and Health,Other Transfer Payments to Soc,1004396101,ACTION FIRST ASSESSMENT LTD,"1,675.00",20/10/2020
Delivery Units,Adults and Health,Translation Exp / Interpret,1003759302,D.A. LANGUAGES LTD,15.08,21/10/2020
Delivery Units,Adults and Health,Translation Exp / Interpret,1003761302,D.A. LANGUAGES LTD,28.08,21/10/2020
Delivery Units,Adults and Health,Translation Exp / Interpret,1003762502,D.A. LANGUAGES LTD,30.68,21/10/2020
Delivery Units,Adults and Health,Miscellaneous Expenses,1000926903,POSTURITE (UK) LTD,481.00,22/10/2020
Delivery Units,Adults and Health,Other Transfer Payments to Soc,1001863702,FAVORE DIDIO LTD,"5,100.00",22/10/2020
Delivery Units,Adults and Health,Transport Hire Charges,1003436002,MOTT MACDONALD LTD/CAMBRIDGE EDUCATION,37.00,22/10/2020
Delivery Units,Adults and Health,Professional Services,1003664702,D.A. LANGUAGES LTD,40.00,22/10/2020
Delivery Units,Adults and Health,Other Transfer Payments to Soc,1003982102,KORU MEDICAL LTD,"2,475.00",22/10/2020
Delivery Units,Adults and Health,Transport Hire Charges,1004005502,MOTT MACDONALD LTD/CAMBRIDGE EDUCATION,37.50,22/10/2020
Delivery Units,Adults and Health,Transport Hire Charges,1004006902,MOTT MACDONALD LTD/CAMBRIDGE EDUCATION,45.00,22/10/2020
Delivery Units,Adults and Health,Translation Exp / Interpret,1004400601,D.A. LANGUAGES LTD,98.00,22/10/2020
Delivery Units,Adults and Health,Consultants Fees,1004426501,GOOD IMPRESSIONS (LONDON) LIMITED,"1,110.00",22/10/2020
Delivery Units,Adults and Health,Stationery,1004395901,HERTFORDSHIRE SUPPLIES   COUNTY CO,126.33,22/10/2020
Delivery Units,Adults and Health,Stationery,1004398401,HERTFORDSHIRE SUPPLIES   COUNTY CO,173.08,22/10/2020
Delivery Units,Adults and Health,Health authorities - Third Par,1000912603,NHS LAMBETH CCG,"29,000.00",22/10/2020
Delivery Units,Adults and Health,Other Services,1004669101,RECRUITMENT TEAM NINE LIMITED,270.00,26/10/2020
Delivery Units,Adults and Health,Other Services,1004669201,RECRUITMENT TEAM NINE LIMITED,270.00,26/10/2020
Delivery Units,Adults and Health,Other Services,1004670701,RECRUITMENT TEAM NINE LIMITED,270.00,26/10/2020
Delivery Units,Adults and Health,Other Services,1004670901,RECRUITMENT TEAM NINE LIMITED,270.00,26/10/2020
Delivery Units,Adults and Health,Other Services,1004671001,RECRUITMENT TEAM NINE LIMITED,270.00,26/10/2020
Delivery Units,Adults and Health,Other Transfer Payments to Soc,1004690402,AISA MEDICAL LTD,"3,294.03",28/10/2020
Delivery Units,Adults and Health,Other Transfer Payments to Soc,1004690902,AISA MEDICAL LTD,"3,120.66",28/10/2020
Delivery Units,Adults and Health,Other Transfer Payments to Soc,1004691002,AISA MEDICAL LTD,"3,294.03",28/10/2020
Delivery Units,Adults and Health,Training,1004705301,LOUISE FOX CONSULTING LTD,970.00,28/10/2020
Delivery Units,Adults and Health,Training,1004707001,HUNTERSJOY LTD,750.00,28/10/2020
Delivery Units,Adults and Health,Translation Exp / Interpret,1004708001,D.A. LANGUAGES LTD,36.00,28/10/2020
Delivery Units,Adults and Health,Translation Exp / Interpret,1004708601,D.A. LANGUAGES LTD,54.00,28/10/2020
Delivery Units,Adults and Health,Translation Exp / Interpret,1004709301,D.A. LANGUAGES LTD,54.00,28/10/2020
Delivery Units,Adults and Health,Other Services,1004433502,SHAREDLIVESPLUS,64.27,30/10/2020
Delivery Units,Adults and Health,Other Transfer Payments to Soc,1004483002,TMP (UK) LTD,"10,572.00",30/10/2020
Delivery Units,Adults and Health,Other Services,1004670102,RECRUITMENT TEAM NINE LIMITED,270.00,30/10/2020
Delivery Units,Adults and Health,Other Services,1004710002,EAST LONDON CLEANERS,873.00,30/10/2020
Delivery Units,Adults and Health,Other Agencies - Third Party P,0090293005,SERVESOUL LIMITED,440.76,01/10/2020
Delivery Units,Adults and Health,Other Agencies - Third Party P,0090293006,SERVESOUL LIMITED,251.86,01/10/2020
Delivery Units,Adults and Health,Other Agencies - Third Party P,0090293007,SERVESOUL LIMITED,629.65,01/10/2020
Delivery Units,Adults and Health,Other Agencies - Third Party P,0090293008,SERVESOUL LIMITED,188.90,01/10/2020
Delivery Units,Adults and Health,Other Agencies - Third Party P,0090293009,SERVESOUL LIMITED,215.88,01/10/2020
Delivery Units,Adults and Health,Other Agencies - Third Party P,0090293010,SERVESOUL LIMITED,67.46,01/10/2020
Delivery Units,Adults and Health,Other Agencies - Third Party P,0090293011,SERVESOUL LIMITED,431.76,01/10/2020
Delivery Units,Adults and Health,Other Agencies - Third Party P,0090293012,SERVESOUL LIMITED,314.83,01/10/2020
Delivery Units,Adults and Health,Other Agencies - Third Party P,0090293013,SERVESOUL LIMITED,782.57,01/10/2020
Delivery Units,Adults and Health,Other Agencies - Third Party P,0090293014,SERVESOUL LIMITED,62.97,01/10/2020
Delivery Units,Adults and Health,Other Agencies - Third Party P,0090293015,SERVESOUL LIMITED,125.93,01/10/2020
Delivery Units,Adults and Health,Other Agencies - Third Party P,0090293016,SERVESOUL LIMITED,251.86,01/10/2020
Delivery Units,Adults and Health,Other Agencies - Third Party P,0090293017,SERVESOUL LIMITED,472.24,01/10/2020
Delivery Units,Adults and Health,Other Agencies - Third Party P,0090293018,SERVESOUL LIMITED,521.71,01/10/2020
Delivery Units,Adults and Health,Other Agencies - Third Party P,0090293019,SERVESOUL LIMITED,125.93,01/10/2020
Delivery Units,Adults and Health,Other Agencies - Third Party P,0090293020,SERVESOUL LIMITED,44.98,01/10/2020
Delivery Units,Adults and Health,Other Agencies - Third Party P,0090293021,SERVESOUL LIMITED,"1,605.61",01/10/2020
Delivery Units,Adults and Health,Other Agencies - Third Party P,0090293022,SERVESOUL LIMITED,346.31,01/10/2020
Delivery Units,Adults and Health,Other Agencies - Third Party P,0090293023,SERVESOUL LIMITED,755.58,01/10/2020
Delivery Units,Adults and Health,Other Agencies - Third Party P,0090293024,SERVESOUL LIMITED,283.34,01/10/2020
Delivery Units,Adults and Health,Other Agencies - Third Party P,0090293025,SERVESOUL LIMITED,395.78,01/10/2020
Delivery Units,Adults and Health,Other Agencies - Third Party P,0090293026,SERVESOUL LIMITED,557.69,01/10/2020
Delivery Units,Adults and Health,Other Agencies - Third Party P,0090293027,SERVESOUL LIMITED,157.41,01/10/2020
Delivery Units,Adults and Health,Other Agencies - Third Party P,0090293028,SERVESOUL LIMITED,301.33,01/10/2020
Delivery Units,Adults and Health,Other Agencies - Third Party P,0090293029,SERVESOUL LIMITED,427.26,01/10/2020
Delivery Units,Adults and Health,Other Agencies - Third Party P,0090293030,SERVESOUL LIMITED,220.38,01/10/2020
Delivery Units,Adults and Health,Other Agencies - Third Party P,0090293031,SERVESOUL LIMITED,256.36,01/10/2020
Delivery Units,Adults and Health,Other Agencies - Third Party P,0090293032,SERVESOUL LIMITED,157.41,01/10/2020
Delivery Units,Adults and Health,Other Agencies - Third Party P,0090293033,SERVESOUL LIMITED,314.83,01/10/2020
Delivery Units,Adults and Health,Other Agencies - Third Party P,0090293034,SERVESOUL LIMITED,94.45,01/10/2020
Delivery Units,Adults and Health,Other Agencies - Third Party P,0090293035,SERVESOUL LIMITED,188.90,01/10/2020
Delivery Units,Adults and Health,Other Agencies - Third Party P,0090293036,SERVESOUL LIMITED,53.97,01/10/2020
Delivery Units,Adults and Health,Other Agencies - Third Party P,0090293037,SERVESOUL LIMITED,125.93,01/10/2020
Delivery Units,Adults and Health,Other Agencies - Third Party P,0090293038,SERVESOUL LIMITED,341.81,01/10/2020
Delivery Units,Adults and Health,Other Agencies - Third Party P,0090293039,SERVESOUL LIMITED,94.45,01/10/2020
Delivery Units,Adults and Health,Other Agencies - Third Party P,0090293040,SERVESOUL LIMITED,220.38,01/10/2020
Delivery Units,Adults and Health,Other Agencies - Third Party P,0090293041,SERVESOUL LIMITED,188.90,01/10/2020
Delivery Units,Adults and Health,Other Agencies - Third Party P,0090293042,SERVESOUL LIMITED,125.93,01/10/2020
Delivery Units,Adults and Health,Other Agencies - Third Party P,0090293043,SERVESOUL LIMITED,94.45,01/10/2020
Delivery Units,Adults and Health,Other Agencies - Third Party P,0090293044,SERVESOUL LIMITED,440.76,01/10/2020
Delivery Units,Adults and Health,Other Agencies - Third Party P,0090293045,SERVESOUL LIMITED,220.38,01/10/2020
Delivery Units,Adults and Health,Other Agencies - Third Party P,0090293046,SERVESOUL LIMITED,188.90,01/10/2020
Delivery Units,Adults and Health,Other Agencies - Third Party P,0090293047,SERVESOUL LIMITED,220.38,01/10/2020
Delivery Units,Adults and Health,Other Agencies - Third Party P,0090293048,SERVESOUL LIMITED,125.93,01/10/2020
Delivery Units,Adults and Health,Other Agencies - Third Party P,0090293049,SERVESOUL LIMITED,566.69,01/10/2020
Delivery Units,Adults and Health,Other Agencies - Third Party P,0090293050,SERVESOUL LIMITED,503.72,01/10/2020
Delivery Units,Adults and Health,Other Agencies - Third Party P,0090293051,SERVESOUL LIMITED,395.78,01/10/2020
Delivery Units,Adults and Health,Other Agencies - Third Party P,0090293052,SERVESOUL LIMITED,440.76,01/10/2020
Delivery Units,Adults and Health,Other Agencies - Third Party P,0090293053,SERVESOUL LIMITED,314.83,01/10/2020
Delivery Units,Adults and Health,Other Agencies - Third Party P,0090293054,SERVESOUL LIMITED,490.23,01/10/2020
Delivery Units,Adults and Health,Other Agencies - Third Party P,0090293055,SERVESOUL LIMITED,629.65,01/10/2020
Delivery Units,Adults and Health,Other Agencies - Third Party P,0090293056,SERVESOUL LIMITED,35.98,01/10/2020
Delivery Units,Adults and Health,Other Agencies - Third Party P,0090293057,SERVESOUL LIMITED,"1,070.41",01/10/2020
Delivery Units,Adults and Health,Other Agencies - Third Party P,0090293058,SERVESOUL LIMITED,94.45,01/10/2020
Delivery Units,Adults and Health,Other Agencies - Third Party P,0090293059,SERVESOUL LIMITED,206.89,01/10/2020
Delivery Units,Adults and Health,Other Agencies - Third Party P,0090293060,SERVESOUL LIMITED,89.95,01/10/2020
Delivery Units,Adults and Health,Other Agencies - Third Party P,0090293061,SERVESOUL LIMITED,"1,133.37",01/10/2020
Delivery Units,Adults and Health,Other Agencies - Third Party P,0090293062,SERVESOUL LIMITED,179.90,01/10/2020
Delivery Units,Adults and Health,Other Agencies - Third Party P,0090293063,SERVESOUL LIMITED,647.64,01/10/2020
Delivery Units,Adults and Health,Other Agencies - Third Party P,0090293092,MI HOMECARE LIMITED,322.87,01/10/2020
Delivery Units,Adults and Health,Other Agencies - Third Party P,0090293093,MI HOMECARE LIMITED,159.16,01/10/2020
Delivery Units,Adults and Health,Other Agencies - Third Party P,0090293094,MI HOMECARE LIMITED,54.57,01/10/2020
Delivery Units,Adults and Health,Other Agencies - Third Party P,0090293095,MI HOMECARE LIMITED,191.00,01/10/2020
Delivery Units,Adults and Health,Other Agencies - Third Party P,0090293096,MI HOMECARE LIMITED,54.57,01/10/2020
Delivery Units,Adults and Health,Other Agencies - Third Party P,0090293097,MI HOMECARE LIMITED,54.57,01/10/2020
Delivery Units,Adults and Health,Other Agencies - Third Party P,0090293098,MI HOMECARE LIMITED,231.92,01/10/2020
Delivery Units,Adults and Health,Other Agencies - Third Party P,0090293099,MI HOMECARE LIMITED,72.76,01/10/2020
Delivery Units,Adults and Health,Other Agencies - Third Party P,0090293100,MI HOMECARE LIMITED,127.33,01/10/2020
Delivery Units,Adults and Health,Other Agencies - Third Party P,0090293101,MI HOMECARE LIMITED,163.71,01/10/2020
Delivery Units,Adults and Health,Other Agencies - Third Party P,0090293102,MI HOMECARE LIMITED,268.30,01/10/2020
Delivery Units,Adults and Health,Other Agencies - Third Party P,0090293103,MI HOMECARE LIMITED,222.83,01/10/2020
Delivery Units,Adults and Health,Other Agencies - Third Party P,0090293104,MI HOMECARE LIMITED,272.85,01/10/2020
Delivery Units,Adults and Health,Other Agencies - Third Party P,0090293105,MI HOMECARE LIMITED,68.21,01/10/2020
Delivery Units,Adults and Health,Other Agencies - Third Party P,0090293106,MI HOMECARE LIMITED,177.35,01/10/2020
Delivery Units,Adults and Health,Other Agencies - Third Party P,0090293107,MI HOMECARE LIMITED,45.48,01/10/2020
Delivery Units,Adults and Health,Other Agencies - Third Party P,0090293108,MI HOMECARE LIMITED,90.95,01/10/2020
Delivery Units,Adults and Health,Other Agencies - Third Party P,0090293109,MI HOMECARE LIMITED,90.95,01/10/2020
Delivery Units,Adults and Health,Other Agencies - Third Party P,0090293110,MI HOMECARE LIMITED,50.02,01/10/2020
Delivery Units,Adults and Health,Other Agencies - Third Party P,0090293111,MI HOMECARE LIMITED,36.38,01/10/2020
Delivery Units,Adults and Health,Other Agencies - Third Party P,0090293112,MI HOMECARE LIMITED,172.80,01/10/2020
Delivery Units,Adults and Health,Other Agencies - Third Party P,0090293113,MI HOMECARE LIMITED,18.19,01/10/2020
Delivery Units,Adults and Health,Other Agencies - Third Party P,0090293114,MI HOMECARE LIMITED,281.94,01/10/2020
Delivery Units,Adults and Health,Other Agencies - Third Party P,0090293115,MI HOMECARE LIMITED,95.50,01/10/2020
Delivery Units,Adults and Health,Other Agencies - Third Party P,0090293116,MI HOMECARE LIMITED,40.93,01/10/2020
Delivery Units,Adults and Health,Other Agencies - Third Party P,0090293117,MI HOMECARE LIMITED,100.04,01/10/2020
Delivery Units,Adults and Health,Other Agencies - Third Party P,0090293118,MI HOMECARE LIMITED,236.47,01/10/2020
Delivery Units,Adults and Health,Other Agencies - Third Party P,0090293119,MI HOMECARE LIMITED,81.86,01/10/2020
Delivery Units,Adults and Health,Other Agencies - Third Party P,0090293120,MI HOMECARE LIMITED,95.50,01/10/2020
Delivery Units,Adults and Health,Other Agencies - Third Party P,0090293121,MI HOMECARE LIMITED,95.50,01/10/2020
Delivery Units,Adults and Health,Other Agencies - Third Party P,0090293122,MI HOMECARE LIMITED,313.78,01/10/2020
Delivery Units,Adults and Health,Other Agencies - Third Party P,0090293123,MI HOMECARE LIMITED,200.09,01/10/2020
Delivery Units,Adults and Health,Other Agencies - Third Party P,0090293124,MI HOMECARE LIMITED,36.38,01/10/2020
Delivery Units,Adults and Health,Other Agencies - Third Party P,0090293125,MI HOMECARE LIMITED,109.14,01/10/2020
Delivery Units,Adults and Health,Other Agencies - Third Party P,0090293126,MI HOMECARE LIMITED,122.78,01/10/2020
Delivery Units,Adults and Health,Other Agencies - Third Party P,0090293127,MI HOMECARE LIMITED,90.95,01/10/2020
Delivery Units,Adults and Health,Other Agencies - Third Party P,0090293128,MI HOMECARE LIMITED,177.35,01/10/2020
Delivery Units,Adults and Health,Other Agencies - Third Party P,0090293129,MI HOMECARE LIMITED,659.39,01/10/2020
Delivery Units,Adults and Health,Other Agencies - Third Party P,0090293130,MI HOMECARE LIMITED,18.19,01/10/2020
Delivery Units,Adults and Health,Other Agencies - Third Party P,0090293131,MI HOMECARE LIMITED,191.00,01/10/2020
Delivery Units,Adults and Health,Other Agencies - Third Party P,0090293132,MI HOMECARE LIMITED,222.83,01/10/2020
Delivery Units,Adults and Health,Other Agencies - Third Party P,0090293133,MI HOMECARE LIMITED,63.67,01/10/2020
Delivery Units,Adults and Health,Other Agencies - Third Party P,0090293134,MI HOMECARE LIMITED,222.83,01/10/2020
Delivery Units,Adults and Health,Other Agencies - Third Party P,0090293135,MI HOMECARE LIMITED,127.33,01/10/2020
Delivery Units,Adults and Health,Other Agencies - Third Party P,0090293136,MI HOMECARE LIMITED,127.33,01/10/2020
Delivery Units,Adults and Health,Other Agencies - Third Party P,0090293137,MI HOMECARE LIMITED,95.50,01/10/2020
Delivery Units,Adults and Health,Other Agencies - Third Party P,0090293138,MI HOMECARE LIMITED,127.33,01/10/2020
Delivery Units,Adults and Health,Other Agencies - Third Party P,0090293139,MI HOMECARE LIMITED,241.02,01/10/2020
Delivery Units,Adults and Health,Other Agencies - Third Party P,0090293140,MI HOMECARE LIMITED,136.43,01/10/2020
Delivery Units,Adults and Health,Other Agencies - Third Party P,0090293141,MI HOMECARE LIMITED,127.33,01/10/2020
Delivery Units,Adults and Health,Other Agencies - Third Party P,0090293142,MI HOMECARE LIMITED,127.33,01/10/2020
Delivery Units,Adults and Health,Other Agencies - Third Party P,0090293143,MI HOMECARE LIMITED,191.00,01/10/2020
Delivery Units,Adults and Health,Other Agencies - Third Party P,0090293144,MI HOMECARE LIMITED,191.00,01/10/2020
Delivery Units,Adults and Health,Other Agencies - Third Party P,0090293145,MI HOMECARE LIMITED,59.12,01/10/2020
Delivery Units,Adults and Health,Other Agencies - Third Party P,0090293146,MI HOMECARE LIMITED,95.50,01/10/2020
Delivery Units,Adults and Health,Other Agencies - Third Party P,0090293147,MI HOMECARE LIMITED,127.33,01/10/2020
Delivery Units,Adults and Health,Other Agencies - Third Party P,0090293148,MI HOMECARE LIMITED,45.48,01/10/2020
Delivery Units,Adults and Health,Other Agencies - Third Party P,0090293149,MI HOMECARE LIMITED,268.30,01/10/2020
Delivery Units,Adults and Health,Other Agencies - Third Party P,0090293150,MI HOMECARE LIMITED,236.47,01/10/2020
Delivery Units,Adults and Health,Other Agencies - Third Party P,0090293151,MI HOMECARE LIMITED,254.66,01/10/2020
Delivery Units,Adults and Health,Other Agencies - Third Party P,0090293152,MI HOMECARE LIMITED,191.00,01/10/2020
Delivery Units,Adults and Health,Other Agencies - Third Party P,0090293153,MI HOMECARE LIMITED,81.86,01/10/2020
Delivery Units,Adults and Health,Other Agencies - Third Party P,0090293154,MI HOMECARE LIMITED,286.49,01/10/2020
Delivery Units,Adults and Health,Other Agencies - Third Party P,0090293155,MI HOMECARE LIMITED,236.47,01/10/2020
Delivery Units,Adults and Health,Other Agencies - Third Party P,0090293156,MI HOMECARE LIMITED,263.76,01/10/2020
Delivery Units,Adults and Health,Other Agencies - Third Party P,0090293157,MI HOMECARE LIMITED,95.50,01/10/2020
Delivery Units,Adults and Health,Other Agencies - Third Party P,0090293158,MI HOMECARE LIMITED,95.50,01/10/2020
Delivery Units,Adults and Health,Other Agencies - Third Party P,0090293159,MI HOMECARE LIMITED,241.02,01/10/2020
Delivery Units,Adults and Health,Other Agencies - Third Party P,0090293160,MI HOMECARE LIMITED,241.02,01/10/2020
Delivery Units,Adults and Health,Other Agencies - Third Party P,0090293161,MI HOMECARE LIMITED,81.86,01/10/2020
Delivery Units,Adults and Health,Other Agencies - Third Party P,0090293162,MI HOMECARE LIMITED,268.30,01/10/2020
Delivery Units,Adults and Health,Other Agencies - Third Party P,0090293163,MI HOMECARE LIMITED,127.33,01/10/2020
Delivery Units,Adults and Health,Other Agencies - Third Party P,0090293164,MI HOMECARE LIMITED,36.38,01/10/2020
Delivery Units,Adults and Health,Other Agencies - Third Party P,0090293165,MI HOMECARE LIMITED,318.33,01/10/2020
Delivery Units,Adults and Health,Other Agencies - Third Party P,0090293166,MI HOMECARE LIMITED,145.52,01/10/2020
Delivery Units,Adults and Health,Other Agencies - Third Party P,0090293167,MI HOMECARE LIMITED,140.97,01/10/2020
Delivery Units,Adults and Health,Other Agencies - Third Party P,0090293168,MI HOMECARE LIMITED,659.39,01/10/2020
Delivery Units,Adults and Health,Other Agencies - Third Party P,0090293169,MI HOMECARE LIMITED,254.66,01/10/2020
Delivery Units,Adults and Health,Other Agencies - Third Party P,0090293170,MI HOMECARE LIMITED,318.33,01/10/2020
Delivery Units,Adults and Health,Other Agencies - Third Party P,0090293171,MI HOMECARE LIMITED,222.83,01/10/2020
Delivery Units,Adults and Health,Other Agencies - Third Party P,0090293172,MI HOMECARE LIMITED,286.49,01/10/2020
Delivery Units,Adults and Health,Other Agencies - Third Party P,0090293173,MI HOMECARE LIMITED,59.12,01/10/2020
Delivery Units,Adults and Health,Other Agencies - Third Party P,0090293174,MI HOMECARE LIMITED,27.29,01/10/2020
Delivery Units,Adults and Health,Other Agencies - Third Party P,0090293175,MI HOMECARE LIMITED,327.42,01/10/2020
Delivery Units,Adults and Health,Other Agencies - Third Party P,0090293176,MI HOMECARE LIMITED,159.16,01/10/2020
Delivery Units,Adults and Health,Other Agencies - Third Party P,0090293177,MI HOMECARE LIMITED,572.98,01/10/2020
Delivery Units,Adults and Health,Other Agencies - Third Party P,0090293178,MI HOMECARE LIMITED,95.50,01/10/2020
Delivery Units,Adults and Health,Other Agencies - Third Party P,0090293179,MI HOMECARE LIMITED,95.50,01/10/2020
Delivery Units,Adults and Health,Other Agencies - Third Party P,0090293180,MI HOMECARE LIMITED,213.73,01/10/2020
Delivery Units,Adults and Health,Other Agencies - Third Party P,0090293181,MI HOMECARE LIMITED,227.38,01/10/2020
Delivery Units,Adults and Health,Other Agencies - Third Party P,0090293182,MI HOMECARE LIMITED,68.21,01/10/2020
Delivery Units,Adults and Health,Other Agencies - Third Party P,0090293183,MI HOMECARE LIMITED,159.16,01/10/2020
Delivery Units,Adults and Health,Other Agencies - Third Party P,0090293184,MI HOMECARE LIMITED,127.33,01/10/2020
Delivery Units,Adults and Health,Other Agencies - Third Party P,0090293185,MI HOMECARE LIMITED,72.76,01/10/2020
Delivery Units,Adults and Health,Other Agencies - Third Party P,0090293186,MI HOMECARE LIMITED,209.18,01/10/2020
Delivery Units,Adults and Health,Other Agencies - Third Party P,0090293187,MI HOMECARE LIMITED,213.73,01/10/2020
Delivery Units,Adults and Health,Other Agencies - Third Party P,0090293188,MI HOMECARE LIMITED,181.90,01/10/2020
Delivery Units,Adults and Health,Other Agencies - Third Party P,0090293189,MI HOMECARE LIMITED,27.29,01/10/2020
Delivery Units,Adults and Health,Other Agencies - Third Party P,0090293190,MI HOMECARE LIMITED,54.57,01/10/2020
Delivery Units,Adults and Health,Other Agencies - Third Party P,0090293191,MI HOMECARE LIMITED,36.38,01/10/2020
Delivery Units,Adults and Health,Other Agencies - Third Party P,0090293192,MI HOMECARE LIMITED,195.54,01/10/2020
Delivery Units,Adults and Health,Other Agencies - Third Party P,0090293193,MI HOMECARE LIMITED,191.00,01/10/2020
Delivery Units,Adults and Health,Other Agencies - Third Party P,0090293194,MI HOMECARE LIMITED,127.33,01/10/2020
Delivery Units,Adults and Health,Other Agencies - Third Party P,0090293195,MI HOMECARE LIMITED,313.78,01/10/2020
Delivery Units,Adults and Health,Other Agencies - Third Party P,0090293196,MI HOMECARE LIMITED,318.33,01/10/2020
Delivery Units,Adults and Health,Other Agencies - Third Party P,0090293197,MI HOMECARE LIMITED,54.57,01/10/2020
Delivery Units,Adults and Health,Other Agencies - Third Party P,0090293198,MI HOMECARE LIMITED,445.66,01/10/2020
Delivery Units,Adults and Health,Other Agencies - Third Party P,0090293199,MI HOMECARE LIMITED,572.98,01/10/2020
Delivery Units,Adults and Health,Other Agencies - Third Party P,0090293200,MI HOMECARE LIMITED,159.16,01/10/2020
Delivery Units,Adults and Health,Other Agencies - Third Party P,0090293201,MI HOMECARE LIMITED,149.16,01/10/2020
Delivery Units,Adults and Health,Other Agencies - Third Party P,0090293202,MI HOMECARE LIMITED,63.67,01/10/2020
Delivery Units,Adults and Health,Other Agencies - Third Party P,0090293203,MI HOMECARE LIMITED,13.64,01/10/2020
Delivery Units,Adults and Health,Other Agencies - Third Party P,0090293204,MI HOMECARE LIMITED,154.62,01/10/2020
Delivery Units,Adults and Health,Other Agencies - Third Party P,0090293205,MI HOMECARE LIMITED,286.49,01/10/2020
Delivery Units,Adults and Health,Other Agencies - Third Party P,0090293206,MI HOMECARE LIMITED,291.04,01/10/2020
Delivery Units,Adults and Health,Other Agencies - Third Party P,0090293207,MI HOMECARE LIMITED,54.57,01/10/2020
Delivery Units,Adults and Health,Other Agencies - Third Party P,0090293208,MI HOMECARE LIMITED,127.33,01/10/2020
Delivery Units,Adults and Health,Other Agencies - Third Party P,0090293209,MI HOMECARE LIMITED,336.52,01/10/2020
Delivery Units,Adults and Health,Other Agencies - Third Party P,0090293210,MI HOMECARE LIMITED,127.33,01/10/2020
Delivery Units,Adults and Health,Other Agencies - Third Party P,0090293211,MI HOMECARE LIMITED,263.76,01/10/2020
Delivery Units,Adults and Health,Other Agencies - Third Party P,0090293212,MI HOMECARE LIMITED,140.97,01/10/2020
Delivery Units,Adults and Health,Other Agencies - Third Party P,0090293213,MI HOMECARE LIMITED,127.33,01/10/2020
Delivery Units,Adults and Health,Other Agencies - Third Party P,0090293214,MI HOMECARE LIMITED,127.33,01/10/2020
Delivery Units,Adults and Health,Other Agencies - Third Party P,0090293215,MI HOMECARE LIMITED,318.33,01/10/2020
Delivery Units,Adults and Health,Other Agencies - Third Party P,0090293216,MI HOMECARE LIMITED,90.95,01/10/2020
Delivery Units,Adults and Health,Other Agencies - Third Party P,0090293217,MI HOMECARE LIMITED,218.28,01/10/2020
Delivery Units,Adults and Health,Other Agencies - Third Party P,0090293218,MI HOMECARE LIMITED,636.65,01/10/2020
Delivery Units,Adults and Health,Other Agencies - Third Party P,0090293219,MI HOMECARE LIMITED,345.61,01/10/2020
Delivery Units,Adults and Health,Other Agencies - Third Party P,0090293220,MI HOMECARE LIMITED,81.86,01/10/2020
Delivery Units,Adults and Health,Other Agencies - Third Party P,0090293221,MI HOMECARE LIMITED,63.67,01/10/2020
Delivery Units,Adults and Health,Other Agencies - Third Party P,0090293222,MI HOMECARE LIMITED,222.83,01/10/2020
Delivery Units,Adults and Health,Other Agencies - Third Party P,0090293223,MI HOMECARE LIMITED,227.38,01/10/2020
Delivery Units,Adults and Health,Other Agencies - Third Party P,0090293224,MI HOMECARE LIMITED,432.01,01/10/2020
Delivery Units,Adults and Health,Other Agencies - Third Party P,0090293225,MI HOMECARE LIMITED,477.49,01/10/2020
Delivery Units,Adults and Health,Other Agencies - Third Party P,0090293226,MI HOMECARE LIMITED,281.94,01/10/2020
Delivery Units,Adults and Health,Other Agencies - Third Party P,0090293227,MI HOMECARE LIMITED,209.18,01/10/2020
Delivery Units,Adults and Health,Other Agencies - Third Party P,0090293228,MI HOMECARE LIMITED,236.47,01/10/2020
Delivery Units,Adults and Health,Other Agencies - Third Party P,0090293229,MI HOMECARE LIMITED,127.33,01/10/2020
Delivery Units,Adults and Health,Other Agencies - Third Party P,0090293230,MI HOMECARE LIMITED,222.83,01/10/2020
Delivery Units,Adults and Health,Other Agencies - Third Party P,0090293231,MI HOMECARE LIMITED,122.78,01/10/2020
Delivery Units,Adults and Health,Other Agencies - Third Party P,0090293232,MI HOMECARE LIMITED,254.66,01/10/2020
Delivery Units,Adults and Health,Other Agencies - Third Party P,0090293233,MI HOMECARE LIMITED,186.45,01/10/2020
Delivery Units,Adults and Health,Other Agencies - Third Party P,0090293234,MI HOMECARE LIMITED,163.71,01/10/2020
Delivery Units,Adults and Health,Other Agencies - Third Party P,0090293235,MI HOMECARE LIMITED,254.66,01/10/2020
Delivery Units,Adults and Health,Other Agencies - Third Party P,0090293236,MI HOMECARE LIMITED,286.49,01/10/2020
Delivery Units,Adults and Health,Other Agencies - Third Party P,0090293237,MI HOMECARE LIMITED,254.66,01/10/2020
Delivery Units,Adults and Health,Other Agencies - Third Party P,0090293238,MI HOMECARE LIMITED,241.02,01/10/2020
Delivery Units,Adults and Health,Other Agencies - Third Party P,0090293239,MI HOMECARE LIMITED,95.50,01/10/2020
Delivery Units,Adults and Health,Other Agencies - Third Party P,0090293240,MI HOMECARE LIMITED,268.30,01/10/2020
Delivery Units,Adults and Health,Other Agencies - Third Party P,0090293241,MI HOMECARE LIMITED,268.30,01/10/2020
Delivery Units,Adults and Health,Other Agencies - Third Party P,0090293243,MI HOMECARE LIMITED,445.66,01/10/2020
Delivery Units,Adults and Health,Other Agencies - Third Party P,0090293244,MI HOMECARE LIMITED,54.57,01/10/2020
Delivery Units,Adults and Health,Other Agencies - Third Party P,0090293245,MI HOMECARE LIMITED,281.94,01/10/2020
Delivery Units,Adults and Health,Other Agencies - Third Party P,0090293246,MI HOMECARE LIMITED,95.50,01/10/2020
Delivery Units,Adults and Health,Other Agencies - Third Party P,0090293247,MI HOMECARE LIMITED,127.33,01/10/2020
Delivery Units,Adults and Health,Other Agencies - Third Party P,0090293248,MI HOMECARE LIMITED,109.14,01/10/2020
Delivery Units,Adults and Health,Other Agencies - Third Party P,0090293249,MI HOMECARE LIMITED,213.73,01/10/2020
Delivery Units,Adults and Health,Other Agencies - Third Party P,0090293250,MI HOMECARE LIMITED,286.49,01/10/2020
Delivery Units,Adults and Health,Other Agencies - Third Party P,0090293251,MI HOMECARE LIMITED,559.34,01/10/2020
Delivery Units,Adults and Health,Other Agencies - Third Party P,0090293252,MI HOMECARE LIMITED,90.95,01/10/2020
Delivery Units,Adults and Health,Other Agencies - Third Party P,0090293253,MI HOMECARE LIMITED,327.42,01/10/2020
Delivery Units,Adults and Health,Other Agencies - Third Party P,0090293254,MI HOMECARE LIMITED,90.95,01/10/2020
Delivery Units,Adults and Health,Other Agencies - Third Party P,0090293255,MI HOMECARE LIMITED,127.33,01/10/2020
Delivery Units,Adults and Health,Other Agencies - Third Party P,0090293256,MI HOMECARE LIMITED,118.24,01/10/2020
Delivery Units,Adults and Health,Other Agencies - Third Party P,0090293257,MI HOMECARE LIMITED,200.09,01/10/2020
Delivery Units,Adults and Health,Other Agencies - Third Party P,0090293258,MI HOMECARE LIMITED,254.66,01/10/2020
Delivery Units,Adults and Health,Other Agencies - Third Party P,0090293259,MI HOMECARE LIMITED,241.02,01/10/2020
Delivery Units,Adults and Health,Other Agencies - Third Party P,0090293260,MI HOMECARE LIMITED,86.40,01/10/2020
Delivery Units,Adults and Health,Other Agencies - Third Party P,0090293261,MI HOMECARE LIMITED,45.48,01/10/2020
Delivery Units,Adults and Health,Other Agencies - Third Party P,0090293262,MI HOMECARE LIMITED,222.83,01/10/2020
Delivery Units,Adults and Health,Other Agencies - Third Party P,0090293263,MI HOMECARE LIMITED,136.43,01/10/2020
Delivery Units,Adults and Health,Other Agencies - Third Party P,0090293264,MI HOMECARE LIMITED,63.67,01/10/2020
Delivery Units,Adults and Health,Other Agencies - Third Party P,0090293265,MI HOMECARE LIMITED,254.66,01/10/2020
Delivery Units,Adults and Health,Other Agencies - Third Party P,0090293266,MI HOMECARE LIMITED,159.16,01/10/2020
Delivery Units,Adults and Health,Other Agencies - Third Party P,0090293267,MI HOMECARE LIMITED,445.66,01/10/2020
Delivery Units,Adults and Health,Other Agencies - Third Party P,0090293268,MI HOMECARE LIMITED,36.38,01/10/2020
Delivery Units,Adults and Health,Other Agencies - Third Party P,0090293269,MI HOMECARE LIMITED,200.09,01/10/2020
Delivery Units,Adults and Health,Other Agencies - Third Party P,0090293270,MI HOMECARE LIMITED,56.03,01/10/2020
Delivery Units,Adults and Health,Other Agencies - Third Party P,0090293271,MI HOMECARE LIMITED,113.69,01/10/2020
Delivery Units,Adults and Health,Other Agencies - Third Party P,0090293272,MI HOMECARE LIMITED,31.83,01/10/2020
Delivery Units,Adults and Health,Other Agencies - Third Party P,0090293273,MI HOMECARE LIMITED,104.59,01/10/2020
Delivery Units,Adults and Health,Other Agencies - Third Party P,0090293274,MI HOMECARE LIMITED,181.90,01/10/2020
Delivery Units,Adults and Health,Other Agencies - Third Party P,0090293275,MI HOMECARE LIMITED,113.69,01/10/2020
Delivery Units,Adults and Health,Other Agencies - Third Party P,0090293276,MI HOMECARE LIMITED,304.68,01/10/2020
Delivery Units,Adults and Health,Other Agencies - Third Party P,0090293277,MI HOMECARE LIMITED,127.33,01/10/2020
Delivery Units,Adults and Health,Other Agencies - Third Party P,0090293278,MI HOMECARE LIMITED,63.67,01/10/2020
Delivery Units,Adults and Health,Other Agencies - Third Party P,0090293279,MI HOMECARE LIMITED,509.32,01/10/2020
Delivery Units,Adults and Health,Other Agencies - Third Party P,0090293443,SENSE CAS FINANCE TEAM,984.00,01/10/2020
Delivery Units,Adults and Health,Other Agencies - Third Party P,0090292998,BARNET MENCAP,"3,341.35",01/10/2020
Delivery Units,Adults and Health,Other Agencies - Third Party P,0090292999,BARNET MENCAP,"4,913.75",01/10/2020
Delivery Units,Adults and Health,Other Agencies - Third Party P,0090293000,BARNET MENCAP,"5,503.40",01/10/2020
Delivery Units,Adults and Health,Other Agencies - Third Party P,0090293001,BARNET MENCAP,"2,171.40",01/10/2020
Delivery Units,Adults and Health,Other Agencies - Third Party P,0090293002,BARNET MENCAP,"1,875.30",01/10/2020
Delivery Units,Adults and Health,Other Agencies - Third Party P,0090293003,BARNET MENCAP,"1,875.30",01/10/2020
Delivery Units,Adults and Health,Other Agencies - Third Party P,0090293004,BARNET MENCAP,"1,974.00",01/10/2020
Delivery Units,Adults and Health,Other Agencies - Third Party P,0090293091,SPANISH AND PORTUGUESE JEWISH,"5,022.86",01/10/2020
Delivery Units,Adults and Health,Other Agencies - Third Party P,0090293441,WALSINGHAM,163.28,01/10/2020
Delivery Units,Adults and Health,Other Agencies - Third Party P,0090293444,PULSE,888.00,01/10/2020
Delivery Units,Adults and Health,Other Agencies - Third Party P,0090293445,PULSE,888.00,01/10/2020
Delivery Units,Adults and Health,Other Agencies - Third Party P,0090293446,PULSE,"4,726.00",01/10/2020
Delivery Units,Adults and Health,Other Agencies - Third Party P,0090293447,PULSE,"4,853.00",01/10/2020
Delivery Units,Adults and Health,Other Agencies - Third Party P,0090293064,SCIMITAR CARE HOTELS PLC,"3,642.86",01/10/2020
Delivery Units,Adults and Health,Other Agencies - Third Party P,0090293065,CARETECH COMMUNITY SERVICES LTD,"5,871.00",01/10/2020
Delivery Units,Adults and Health,Other Agencies - Third Party P,0090293067,CARETECH COMMUNITY SERVICES LTD,"5,241.13",01/10/2020
Delivery Units,Adults and Health,Other Agencies - Third Party P,0090293070,CARETECH COMMUNITY SERVICES LTD,"4,478.74",01/10/2020
Delivery Units,Adults and Health,Other Agencies - Third Party P,0090293072,CARETECH COMMUNITY SERVICES LTD,"4,351.20",01/10/2020
Delivery Units,Adults and Health,Other Agencies - Third Party P,0090293073,CARETECH COMMUNITY SERVICES LTD,"4,478.74",01/10/2020
Delivery Units,Adults and Health,Other Agencies - Third Party P,0090293074,CARETECH COMMUNITY SERVICES LTD,"9,810.99",01/10/2020
Delivery Units,Adults and Health,Other Agencies - Third Party P,0090293077,CARETECH COMMUNITY SERVICES LTD,"6,463.59",01/10/2020
Delivery Units,Adults and Health,Other Agencies - Third Party P,0090293079,CARETECH COMMUNITY SERVICES LTD,"-4,425.43",01/10/2020
Delivery Units,Adults and Health,Other Agencies - Third Party P,0090293080,CARETECH COMMUNITY SERVICES LTD,-9.53,01/10/2020
Delivery Units,Adults and Health,Other Agencies - Third Party P,0090293081,CLOVELLY HOUSE RESID. HOME LTD,"2,142.86",01/10/2020
Delivery Units,Adults and Health,Other Agencies - Third Party P,0090293082,CARETECH COMMUNITY SERVICES LTD,-548.92,01/10/2020
Delivery Units,Adults and Health,Other Agencies - Third Party P,0090293083,CARETECH COMMUNITY SERVICES LTD,-789.81,01/10/2020
Delivery Units,Adults and Health,Other Agencies - Third Party P,0090293084,CARETECH COMMUNITY SERVICES LTD,-763.49,01/10/2020
Delivery Units,Adults and Health,Other Agencies - Third Party P,0090293085,CARETECH COMMUNITY SERVICES LTD,-816.14,01/10/2020
Delivery Units,Adults and Health,Other Agencies - Third Party P,0090293086,CARETECH COMMUNITY SERVICES LTD,"-5,615.06",01/10/2020
Delivery Units,Adults and Health,Other Agencies - Third Party P,0090293087,CLOVELLY HOUSE RESID. HOME LTD,"3,000.00",01/10/2020
Delivery Units,Adults and Health,Other Agencies - Third Party P,0090293088,NIGHTINGALE HOUSE,"2,972.91",01/10/2020
Delivery Units,Adults and Health,Other Agencies - Third Party P,0090293090,NIGHTINGALE HOUSE,"2,857.11",01/10/2020
Delivery Units,Adults and Health,Other Agencies - Third Party P,0090293280,CAREWATCH (BARNET),120.26,01/10/2020
Delivery Units,Adults and Health,Other Agencies - Third Party P,0090293281,CAREWATCH (BARNET),120.26,01/10/2020
Delivery Units,Adults and Health,Other Agencies - Third Party P,0090293282,CAREWATCH (BARNET),721.56,01/10/2020
Delivery Units,Adults and Health,Other Agencies - Third Party P,0090293283,CAREWATCH (BARNET),721.56,01/10/2020
Delivery Units,Adults and Health,Other Agencies - Third Party P,0090293284,CAREWATCH (BARNET),51.56,01/10/2020
Delivery Units,Adults and Health,Other Agencies - Third Party P,0090293285,CAREWATCH (BARNET),51.54,01/10/2020
Delivery Units,Adults and Health,Other Agencies - Third Party P,0090293286,CAREWATCH (BARNET),150.33,01/10/2020
Delivery Units,Adults and Health,Other Agencies - Third Party P,0090293287,CAREWATCH (BARNET),150.33,01/10/2020
Delivery Units,Adults and Health,Other Agencies - Third Party P,0090293288,CAREWATCH (BARNET),712.97,01/10/2020
Delivery Units,Adults and Health,Other Agencies - Third Party P,0090293289,CAREWATCH (BARNET),712.97,01/10/2020
Delivery Units,Adults and Health,Other Agencies - Third Party P,0090293290,CAREWATCH (BARNET),257.73,01/10/2020
Delivery Units,Adults and Health,Other Agencies - Third Party P,0090293291,CAREWATCH (BARNET),257.73,01/10/2020
Delivery Units,Adults and Health,Other Agencies - Third Party P,0090293292,CAREWATCH (BARNET),180.39,01/10/2020
Delivery Units,Adults and Health,Other Agencies - Third Party P,0090293293,CAREWATCH (BARNET),180.39,01/10/2020
Delivery Units,Adults and Health,Other Agencies - Third Party P,0090293294,CAREWATCH (BARNET),111.67,01/10/2020
Delivery Units,Adults and Health,Other Agencies - Third Party P,0090293295,CAREWATCH (BARNET),115.97,01/10/2020
Delivery Units,Adults and Health,Other Agencies - Third Party P,0090293296,CAREWATCH (BARNET),180.39,01/10/2020
Delivery Units,Adults and Health,Other Agencies - Third Party P,0090293297,CAREWATCH (BARNET),188.98,01/10/2020
Delivery Units,Adults and Health,Other Agencies - Third Party P,0090293298,CAREWATCH (BARNET),300.65,01/10/2020
Delivery Units,Adults and Health,Other Agencies - Third Party P,0090293299,CAREWATCH (BARNET),300.65,01/10/2020
Delivery Units,Adults and Health,Other Agencies - Third Party P,0090293300,CAREWATCH (BARNET),120.26,01/10/2020
Delivery Units,Adults and Health,Other Agencies - Third Party P,0090293301,CAREWATCH (BARNET),124.56,01/10/2020
Delivery Units,Adults and Health,Other Agencies - Third Party P,0090293302,CAREWATCH (BARNET),231.93,01/10/2020
Delivery Units,Adults and Health,Other Agencies - Third Party P,0090293303,CAREWATCH (BARNET),240.52,01/10/2020
Delivery Units,Adults and Health,Other Agencies - Third Party P,0090293304,CAREWATCH (BARNET),270.58,01/10/2020
Delivery Units,Adults and Health,Other Agencies - Third Party P,0090293305,CAREWATCH (BARNET),270.62,01/10/2020
Delivery Units,Adults and Health,Other Agencies - Third Party P,0090293306,CAREWATCH (BARNET),193.28,01/10/2020
Delivery Units,Adults and Health,Other Agencies - Third Party P,0090293307,CAREWATCH (BARNET),94.49,01/10/2020
Delivery Units,Adults and Health,Other Agencies - Third Party P,0090293308,CAREWATCH (BARNET),137.44,01/10/2020
Delivery Units,Adults and Health,Other Agencies - Third Party P,0090293309,CAREWATCH (BARNET),137.44,01/10/2020
Delivery Units,Adults and Health,Other Agencies - Third Party P,0090293310,CAREWATCH (BARNET),90.23,01/10/2020
Delivery Units,Adults and Health,Other Agencies - Third Party P,0090293311,CAREWATCH (BARNET),90.20,01/10/2020
Delivery Units,Adults and Health,Other Agencies - Third Party P,0090293312,CAREWATCH (BARNET),17.18,01/10/2020
Delivery Units,Adults and Health,Other Agencies - Third Party P,0090293313,CAREWATCH (BARNET),17.18,01/10/2020
Delivery Units,Adults and Health,Other Agencies - Third Party P,0090293314,CAREWATCH (BARNET),304.98,01/10/2020
Delivery Units,Adults and Health,Other Agencies - Third Party P,0090293315,CAREWATCH (BARNET),304.98,01/10/2020
Delivery Units,Adults and Health,Other Agencies - Third Party P,0090293316,CAREWATCH (BARNET),223.34,01/10/2020
Delivery Units,Adults and Health,Other Agencies - Third Party P,0090293317,CAREWATCH (BARNET),219.04,01/10/2020
Delivery Units,Adults and Health,Other Agencies - Third Party P,0090293318,CAREWATCH (BARNET),244.85,01/10/2020
Delivery Units,Adults and Health,Other Agencies - Third Party P,0090293319,CAREWATCH (BARNET),244.85,01/10/2020
Delivery Units,Adults and Health,Other Agencies - Third Party P,0090293320,CAREWATCH (BARNET),146.03,01/10/2020
Delivery Units,Adults and Health,Other Agencies - Third Party P,0090293321,CAREWATCH (BARNET),150.33,01/10/2020
Delivery Units,Adults and Health,Other Agencies - Third Party P,0090293322,CAREWATCH (BARNET),330.72,01/10/2020
Delivery Units,Adults and Health,Other Agencies - Third Party P,0090293323,CAREWATCH (BARNET),330.75,01/10/2020
Delivery Units,Adults and Health,Other Agencies - Third Party P,0090293324,CAREWATCH (BARNET),257.70,01/10/2020
Delivery Units,Adults and Health,Other Agencies - Third Party P,0090293325,CAREWATCH (BARNET),249.11,01/10/2020
Delivery Units,Adults and Health,Other Agencies - Third Party P,0090293326,CAREWATCH (BARNET),64.42,01/10/2020
Delivery Units,Adults and Health,Other Agencies - Third Party P,0090293327,CAREWATCH (BARNET),64.45,01/10/2020
Delivery Units,Adults and Health,Other Agencies - Third Party P,0090293328,CAREWATCH (BARNET),219.04,01/10/2020
Delivery Units,Adults and Health,Other Agencies - Third Party P,0090293329,CAREWATCH (BARNET),227.64,01/10/2020
Delivery Units,Adults and Health,Other Agencies - Third Party P,0090293330,CAREWATCH (BARNET),120.26,01/10/2020
Delivery Units,Adults and Health,Other Agencies - Third Party P,0090293331,CAREWATCH (BARNET),120.26,01/10/2020
Delivery Units,Adults and Health,Other Agencies - Third Party P,0090293332,CAREWATCH (BARNET),90.23,01/10/2020
Delivery Units,Adults and Health,Other Agencies - Third Party P,0090293333,CAREWATCH (BARNET),90.23,01/10/2020
Delivery Units,Adults and Health,Other Agencies - Third Party P,0090293334,CAREWATCH (BARNET),184.69,01/10/2020
Delivery Units,Adults and Health,Other Agencies - Third Party P,0090293335,CAREWATCH (BARNET),197.57,01/10/2020
Delivery Units,Adults and Health,Other Agencies - Third Party P,0090293336,CAREWATCH (BARNET),330.75,01/10/2020
Delivery Units,Adults and Health,Other Agencies - Third Party P,0090293337,CAREWATCH (BARNET),330.75,01/10/2020
Delivery Units,Adults and Health,Other Agencies - Third Party P,0090293338,CAREWATCH (BARNET),300.72,01/10/2020
Delivery Units,Adults and Health,Other Agencies - Third Party P,0090293339,CAREWATCH (BARNET),300.72,01/10/2020
Delivery Units,Adults and Health,Other Agencies - Third Party P,0090293340,CAREWATCH (BARNET),25.77,01/10/2020
Delivery Units,Adults and Health,Other Agencies - Third Party P,0090293341,CAREWATCH (BARNET),25.78,01/10/2020
Delivery Units,Adults and Health,Other Agencies - Third Party P,0090293342,CAREWATCH (BARNET),300.65,01/10/2020
Delivery Units,Adults and Health,Other Agencies - Third Party P,0090293343,CAREWATCH (BARNET),300.65,01/10/2020
Delivery Units,Adults and Health,Other Agencies - Third Party P,0090293344,CAREWATCH (BARNET),120.26,01/10/2020
Delivery Units,Adults and Health,Other Agencies - Third Party P,0090293345,CAREWATCH (BARNET),120.26,01/10/2020
Delivery Units,Adults and Health,Other Agencies - Third Party P,0090293346,CAREWATCH (BARNET),270.62,01/10/2020
Delivery Units,Adults and Health,Other Agencies - Third Party P,0090293347,CAREWATCH (BARNET),270.62,01/10/2020
Delivery Units,Adults and Health,Other Agencies - Third Party P,0090293348,CAREWATCH (BARNET),120.26,01/10/2020
Delivery Units,Adults and Health,Other Agencies - Third Party P,0090293349,CAREWATCH (BARNET),120.26,01/10/2020
Delivery Units,Adults and Health,Other Agencies - Third Party P,0090293350,CAREWATCH (BARNET),25.77,01/10/2020
Delivery Units,Adults and Health,Other Agencies - Third Party P,0090293351,CAREWATCH (BARNET),25.77,01/10/2020
Delivery Units,Adults and Health,Other Agencies - Third Party P,0090293352,CAREWATCH (BARNET),210.49,01/10/2020
Delivery Units,Adults and Health,Other Agencies - Third Party P,0090293353,CAREWATCH (BARNET),210.49,01/10/2020
Delivery Units,Adults and Health,Other Agencies - Third Party P,0090293354,CAREWATCH (BARNET),120.26,01/10/2020
Delivery Units,Adults and Health,Other Agencies - Third Party P,0090293355,CAREWATCH (BARNET),115.96,01/10/2020
Delivery Units,Adults and Health,Other Agencies - Third Party P,0090293356,CAREWATCH (BARNET),120.26,01/10/2020
Delivery Units,Adults and Health,Other Agencies - Third Party P,0090293357,CAREWATCH (BARNET),120.26,01/10/2020
Delivery Units,Adults and Health,Other Agencies - Third Party P,0090293358,CAREWATCH (BARNET),335.01,01/10/2020
Delivery Units,Adults and Health,Other Agencies - Third Party P,0090293359,CAREWATCH (BARNET),335.08,01/10/2020
Delivery Units,Adults and Health,Other Agencies - Third Party P,0090293360,CAREWATCH (BARNET),120.26,01/10/2020
Delivery Units,Adults and Health,Other Agencies - Third Party P,0090293361,CAREWATCH (BARNET),120.26,01/10/2020
Delivery Units,Adults and Health,Other Agencies - Third Party P,0090293362,CAREWATCH (BARNET),270.58,01/10/2020
Delivery Units,Adults and Health,Other Agencies - Third Party P,0090293363,CAREWATCH (BARNET),270.62,01/10/2020
Delivery Units,Adults and Health,Other Agencies - Third Party P,0090293364,CAREWATCH (BARNET),262.03,01/10/2020
Delivery Units,Adults and Health,Other Agencies - Third Party P,0090293365,CAREWATCH (BARNET),262.03,01/10/2020
Delivery Units,Adults and Health,Other Agencies - Third Party P,0090293366,CAREWATCH (BARNET),240.52,01/10/2020
Delivery Units,Adults and Health,Other Agencies - Third Party P,0090293367,CAREWATCH (BARNET),240.52,01/10/2020
Delivery Units,Adults and Health,Other Agencies - Third Party P,0090293368,CAREWATCH (BARNET),90.20,01/10/2020
Delivery Units,Adults and Health,Other Agencies - Third Party P,0090293369,CAREWATCH (BARNET),94.49,01/10/2020
Delivery Units,Adults and Health,Other Agencies - Third Party P,0090293370,CAREWATCH (BARNET),150.32,01/10/2020
Delivery Units,Adults and Health,Other Agencies - Third Party P,0090293371,CAREWATCH (BARNET),150.36,01/10/2020
Delivery Units,Adults and Health,Other Agencies - Third Party P,0090293372,CAREWATCH (BARNET),150.36,01/10/2020
Delivery Units,Adults and Health,Other Agencies - Third Party P,0090293373,CAREWATCH (BARNET),262.00,01/10/2020
Delivery Units,Adults and Health,Other Agencies - Third Party P,0090293374,CAREWATCH (BARNET),249.11,01/10/2020
Delivery Units,Adults and Health,Other Agencies - Third Party P,0090293375,CAREWATCH (BARNET),141.74,01/10/2020
Delivery Units,Adults and Health,Other Agencies - Third Party P,0090293376,CAREWATCH (BARNET),150.33,01/10/2020
Delivery Units,Adults and Health,Other Agencies - Third Party P,0090293377,CAREWATCH (BARNET),103.08,01/10/2020
Delivery Units,Adults and Health,Other Agencies - Third Party P,0090293378,CAREWATCH (BARNET),98.78,01/10/2020
Delivery Units,Adults and Health,Other Agencies - Third Party P,0090293379,CAREWATCH (BARNET),34.36,01/10/2020
Delivery Units,Adults and Health,Other Agencies - Third Party P,0090293380,CAREWATCH (BARNET),34.36,01/10/2020
Delivery Units,Adults and Health,Other Agencies - Third Party P,0090293381,CAREWATCH (BARNET),304.98,01/10/2020
Delivery Units,Adults and Health,Other Agencies - Third Party P,0090293382,CAREWATCH (BARNET),304.98,01/10/2020
Delivery Units,Adults and Health,Other Agencies - Third Party P,0090293383,CAREWATCH (BARNET),210.49,01/10/2020
Delivery Units,Adults and Health,Other Agencies - Third Party P,0090293384,CAREWATCH (BARNET),210.49,01/10/2020
Delivery Units,Adults and Health,Other Agencies - Third Party P,0090293385,CAREWATCH (BARNET),90.20,01/10/2020
Delivery Units,Adults and Health,Other Agencies - Third Party P,0090293386,CAREWATCH (BARNET),90.23,01/10/2020
Delivery Units,Adults and Health,Other Agencies - Third Party P,0090293387,CAREWATCH (BARNET),287.80,01/10/2020
Delivery Units,Adults and Health,Other Agencies - Third Party P,0090293388,CAREWATCH (BARNET),287.80,01/10/2020
Delivery Units,Adults and Health,Other Agencies - Third Party P,0090293389,CAREWATCH (BARNET),330.75,01/10/2020
Delivery Units,Adults and Health,Other Agencies - Third Party P,0090293390,CAREWATCH (BARNET),330.75,01/10/2020
Delivery Units,Adults and Health,Other Agencies - Third Party P,0090293391,CAREWATCH (BARNET),210.49,01/10/2020
Delivery Units,Adults and Health,Other Agencies - Third Party P,0090293392,CAREWATCH (BARNET),210.49,01/10/2020
Delivery Units,Adults and Health,Other Agencies - Third Party P,0090293393,CAREWATCH (BARNET),270.62,01/10/2020
Delivery Units,Adults and Health,Other Agencies - Third Party P,0090293394,CAREWATCH (BARNET),270.62,01/10/2020
Delivery Units,Adults and Health,Other Agencies - Third Party P,0090293395,CAREWATCH (BARNET),270.58,01/10/2020
Delivery Units,Adults and Health,Other Agencies - Third Party P,0090293396,CAREWATCH (BARNET),270.62,01/10/2020
Delivery Units,Adults and Health,Other Agencies - Third Party P,0090293397,CAREWATCH (BARNET),257.77,01/10/2020
Delivery Units,Adults and Health,Other Agencies - Third Party P,0090293398,CAREWATCH (BARNET),257.77,01/10/2020
Delivery Units,Adults and Health,Other Agencies - Third Party P,0090293399,CAREWATCH (BARNET),184.69,01/10/2020
Delivery Units,Adults and Health,Other Agencies - Third Party P,0090293400,CAREWATCH (BARNET),184.68,01/10/2020
Delivery Units,Adults and Health,Other Agencies - Third Party P,0090293401,CAREWATCH (BARNET),60.13,01/10/2020
Delivery Units,Adults and Health,Other Agencies - Third Party P,0090293402,CAREWATCH (BARNET),94.49,01/10/2020
Delivery Units,Adults and Health,Other Agencies - Third Party P,0090293403,CAREWATCH (BARNET),90.23,01/10/2020
Delivery Units,Adults and Health,Other Agencies - Third Party P,0090293404,CAREWATCH (BARNET),107.39,01/10/2020
Delivery Units,Adults and Health,Other Agencies - Third Party P,0090293405,CAREWATCH (BARNET),38.66,01/10/2020
Delivery Units,Adults and Health,Other Agencies - Third Party P,0090293406,CAREWATCH (BARNET),60.13,01/10/2020
Delivery Units,Adults and Health,Other Agencies - Third Party P,0090293407,CAREWATCH (BARNET),60.13,01/10/2020
Delivery Units,Adults and Health,Other Agencies - Third Party P,0090293408,CAREWATCH (BARNET),51.54,01/10/2020
Delivery Units,Adults and Health,Other Agencies - Third Party P,0090293409,CAREWATCH (BARNET),120.26,01/10/2020
Delivery Units,Adults and Health,Other Agencies - Third Party P,0090293410,CAREWATCH (BARNET),270.62,01/10/2020
Delivery Units,Adults and Health,Other Agencies - Third Party P,0090293411,CAREWATCH (BARNET),270.62,01/10/2020
Delivery Units,Adults and Health,Other Agencies - Third Party P,0090293412,CAREWATCH (BARNET),51.54,01/10/2020
Delivery Units,Adults and Health,Other Agencies - Third Party P,0090293413,CAREWATCH (BARNET),317.83,01/10/2020
Delivery Units,Adults and Health,Other Agencies - Third Party P,0090293414,CAREWATCH (BARNET),330.75,01/10/2020
Delivery Units,Adults and Health,Other Agencies - Third Party P,0090293415,CAREWATCH (BARNET),210.49,01/10/2020
Delivery Units,Adults and Health,Other Agencies - Third Party P,0090293416,CAREWATCH (BARNET),210.49,01/10/2020
Delivery Units,Adults and Health,Other Agencies - Third Party P,0090293417,CAREWATCH (BARNET),287.80,01/10/2020
Delivery Units,Adults and Health,Other Agencies - Third Party P,0090293418,CAREWATCH (BARNET),81.60,01/10/2020
Delivery Units,Adults and Health,Other Agencies - Third Party P,0090293419,CAREWATCH (BARNET),300.65,01/10/2020
Delivery Units,Adults and Health,Other Agencies - Third Party P,0090293420,CAREWATCH (BARNET),292.06,01/10/2020
Delivery Units,Adults and Health,Other Agencies - Third Party P,0090293421,CAREWATCH (BARNET),240.52,01/10/2020
Delivery Units,Adults and Health,Other Agencies - Third Party P,0090293422,CAREWATCH (BARNET),240.52,01/10/2020
Delivery Units,Adults and Health,Other Agencies - Third Party P,0090293423,CAREWATCH (BARNET),60.13,01/10/2020
Delivery Units,Adults and Health,Other Agencies - Third Party P,0090293424,CAREWATCH (BARNET),60.13,01/10/2020
Delivery Units,Adults and Health,Other Agencies - Third Party P,0090293425,CAREWATCH (BARNET),210.49,01/10/2020
Delivery Units,Adults and Health,Other Agencies - Third Party P,0090293426,CAREWATCH (BARNET),210.49,01/10/2020
Delivery Units,Adults and Health,Other Agencies - Third Party P,0090293427,CAREWATCH (BARNET),60.13,01/10/2020
Delivery Units,Adults and Health,Other Agencies - Third Party P,0090293428,CAREWATCH (BARNET),60.13,01/10/2020
Delivery Units,Adults and Health,Other Agencies - Third Party P,0090293429,CAREWATCH (BARNET),240.59,01/10/2020
Delivery Units,Adults and Health,Other Agencies - Third Party P,0090293430,CAREWATCH (BARNET),240.59,01/10/2020
Delivery Units,Adults and Health,Other Agencies - Third Party P,0090293431,CAREWATCH (BARNET),399.54,01/10/2020
Delivery Units,Adults and Health,Other Agencies - Third Party P,0090293432,CAREWATCH (BARNET),399.54,01/10/2020
Delivery Units,Adults and Health,Other Agencies - Third Party P,0090293433,CAREWATCH (BARNET),90.20,01/10/2020
Delivery Units,Adults and Health,Other Agencies - Third Party P,0090293434,CAREWATCH (BARNET),90.20,01/10/2020
Delivery Units,Adults and Health,Other Agencies - Third Party P,0090293435,CAREWATCH (BARNET),150.36,01/10/2020
Delivery Units,Adults and Health,Other Agencies - Third Party P,0090293436,CAREWATCH (BARNET),150.36,01/10/2020
Delivery Units,Adults and Health,Other Agencies - Third Party P,0090293437,CAREWATCH (BARNET),115.96,01/10/2020
Delivery Units,Adults and Health,Other Agencies - Third Party P,0090293438,CAREWATCH (BARNET),111.67,01/10/2020
Delivery Units,Adults and Health,Other Agencies - Third Party P,0090293448,CAREWATCH (BARNET),120.26,01/10/2020
Delivery Units,Adults and Health,Other Agencies - Third Party P,0090293449,CAREWATCH (BARNET),120.26,01/10/2020
Delivery Units,Adults and Health,Other Agencies - Third Party P,0090293450,CAREWATCH (BARNET),721.56,01/10/2020
Delivery Units,Adults and Health,Other Agencies - Third Party P,0090293451,CAREWATCH (BARNET),584.12,01/10/2020
Delivery Units,Adults and Health,Other Agencies - Third Party P,0090293452,CAREWATCH (BARNET),51.54,01/10/2020
Delivery Units,Adults and Health,Other Agencies - Third Party P,0090293453,CAREWATCH (BARNET),51.56,01/10/2020
Delivery Units,Adults and Health,Other Agencies - Third Party P,0090293454,CAREWATCH (BARNET),150.33,01/10/2020
Delivery Units,Adults and Health,Other Agencies - Third Party P,0090293455,CAREWATCH (BARNET),150.33,01/10/2020
Delivery Units,Adults and Health,Other Agencies - Third Party P,0090293456,CAREWATCH (BARNET),712.97,01/10/2020
Delivery Units,Adults and Health,Other Agencies - Third Party P,0090293457,CAREWATCH (BARNET),712.97,01/10/2020
Delivery Units,Adults and Health,Other Agencies - Third Party P,0090293458,CAREWATCH (BARNET),257.73,01/10/2020
Delivery Units,Adults and Health,Other Agencies - Third Party P,0090293459,CAREWATCH (BARNET),257.73,01/10/2020
Delivery Units,Adults and Health,Other Agencies - Third Party P,0090293460,CAREWATCH (BARNET),180.39,01/10/2020
Delivery Units,Adults and Health,Other Agencies - Third Party P,0090293461,CAREWATCH (BARNET),180.39,01/10/2020
Delivery Units,Adults and Health,Other Agencies - Third Party P,0090293462,CAREWATCH (BARNET),115.97,01/10/2020
Delivery Units,Adults and Health,Other Agencies - Third Party P,0090293463,CAREWATCH (BARNET),116.00,01/10/2020
Delivery Units,Adults and Health,Other Agencies - Third Party P,0090293464,CAREWATCH (BARNET),184.68,01/10/2020
Delivery Units,Adults and Health,Other Agencies - Third Party P,0090293465,CAREWATCH (BARNET),184.68,01/10/2020
Delivery Units,Adults and Health,Other Agencies - Third Party P,0090293466,CAREWATCH (BARNET),300.65,01/10/2020
Delivery Units,Adults and Health,Other Agencies - Third Party P,0090293467,CAREWATCH (BARNET),287.77,01/10/2020
Delivery Units,Adults and Health,Other Agencies - Third Party P,0090293468,CAREWATCH (BARNET),120.26,01/10/2020
Delivery Units,Adults and Health,Other Agencies - Third Party P,0090293469,CAREWATCH (BARNET),124.56,01/10/2020
Delivery Units,Adults and Health,Other Agencies - Third Party P,0090293470,CAREWATCH (BARNET),236.22,01/10/2020
Delivery Units,Adults and Health,Other Agencies - Third Party P,0090293471,CAREWATCH (BARNET),240.52,01/10/2020
Delivery Units,Adults and Health,Other Agencies - Third Party P,0090293472,CAREWATCH (BARNET),210.46,01/10/2020
Delivery Units,Adults and Health,Other Agencies - Third Party P,0090293473,CAREWATCH (BARNET),253.41,01/10/2020
Delivery Units,Adults and Health,Other Agencies - Third Party P,0090293474,CAREWATCH (BARNET),8.59,01/10/2020
Delivery Units,Adults and Health,Other Agencies - Third Party P,0090293475,CAREWATCH (BARNET),137.44,01/10/2020
Delivery Units,Adults and Health,Other Agencies - Third Party P,0090293476,CAREWATCH (BARNET),137.44,01/10/2020
Delivery Units,Adults and Health,Other Agencies - Third Party P,0090293477,CAREWATCH (BARNET),90.23,01/10/2020
Delivery Units,Adults and Health,Other Agencies - Third Party P,0090293478,CAREWATCH (BARNET),90.20,01/10/2020
Delivery Units,Adults and Health,Other Agencies - Third Party P,0090293479,CAREWATCH (BARNET),17.18,01/10/2020
Delivery Units,Adults and Health,Other Agencies - Third Party P,0090293480,CAREWATCH (BARNET),17.18,01/10/2020
Delivery Units,Adults and Health,Other Agencies - Third Party P,0090293481,CAREWATCH (BARNET),304.98,01/10/2020
Delivery Units,Adults and Health,Other Agencies - Third Party P,0090293482,CAREWATCH (BARNET),304.98,01/10/2020
Delivery Units,Adults and Health,Other Agencies - Third Party P,0090293483,CAREWATCH (BARNET),227.64,01/10/2020
Delivery Units,Adults and Health,Other Agencies - Third Party P,0090293484,CAREWATCH (BARNET),197.57,01/10/2020
Delivery Units,Adults and Health,Other Agencies - Third Party P,0090293485,CAREWATCH (BARNET),244.85,01/10/2020
Delivery Units,Adults and Health,Other Agencies - Third Party P,0090293486,CAREWATCH (BARNET),244.85,01/10/2020
Delivery Units,Adults and Health,Other Agencies - Third Party P,0090293487,CAREWATCH (BARNET),146.03,01/10/2020
Delivery Units,Adults and Health,Other Agencies - Third Party P,0090293488,CAREWATCH (BARNET),146.03,01/10/2020
Delivery Units,Adults and Health,Other Agencies - Third Party P,0090293489,CAREWATCH (BARNET),330.75,01/10/2020
Delivery Units,Adults and Health,Other Agencies - Third Party P,0090293490,CAREWATCH (BARNET),330.72,01/10/2020
Delivery Units,Adults and Health,Other Agencies - Third Party P,0090293491,CAREWATCH (BARNET),25.77,01/10/2020
Delivery Units,Adults and Health,Other Agencies - Third Party P,0090293492,CAREWATCH (BARNET),249.11,01/10/2020
Delivery Units,Adults and Health,Other Agencies - Third Party P,0090293493,CAREWATCH (BARNET),51.54,01/10/2020
Delivery Units,Adults and Health,Other Agencies - Third Party P,0090293494,CAREWATCH (BARNET),51.54,01/10/2020
Delivery Units,Adults and Health,Other Agencies - Third Party P,0090293495,CAREWATCH (BARNET),210.46,01/10/2020
Delivery Units,Adults and Health,Other Agencies - Third Party P,0090293496,CAREWATCH (BARNET),201.86,01/10/2020
Delivery Units,Adults and Health,Other Agencies - Third Party P,0090293497,CAREWATCH (BARNET),120.26,01/10/2020
Delivery Units,Adults and Health,Other Agencies - Third Party P,0090293498,CAREWATCH (BARNET),120.26,01/10/2020
Delivery Units,Adults and Health,Other Agencies - Third Party P,0090293499,CAREWATCH (BARNET),90.20,01/10/2020
Delivery Units,Adults and Health,Other Agencies - Third Party P,0090293500,CAREWATCH (BARNET),90.23,01/10/2020
Delivery Units,Adults and Health,Other Agencies - Third Party P,0090293501,CAREWATCH (BARNET),193.28,01/10/2020
Delivery Units,Adults and Health,Other Agencies - Third Party P,0090293502,CAREWATCH (BARNET),197.57,01/10/2020
Delivery Units,Adults and Health,Other Agencies - Third Party P,0090293503,CAREWATCH (BARNET),330.75,01/10/2020
Delivery Units,Adults and Health,Other Agencies - Third Party P,0090293504,CAREWATCH (BARNET),330.75,01/10/2020
Delivery Units,Adults and Health,Other Agencies - Third Party P,0090293505,CAREWATCH (BARNET),300.72,01/10/2020
Delivery Units,Adults and Health,Other Agencies - Third Party P,0090293506,CAREWATCH (BARNET),300.72,01/10/2020
Delivery Units,Adults and Health,Other Agencies - Third Party P,0090293507,CAREWATCH (BARNET),77.31,01/10/2020
Delivery Units,Adults and Health,Other Agencies - Third Party P,0090293508,CAREWATCH (BARNET),300.65,01/10/2020
Delivery Units,Adults and Health,Other Agencies - Third Party P,0090293509,CAREWATCH (BARNET),300.65,01/10/2020
Delivery Units,Adults and Health,Other Agencies - Third Party P,0090293510,CAREWATCH (BARNET),120.26,01/10/2020
Delivery Units,Adults and Health,Other Agencies - Third Party P,0090293511,CAREWATCH (BARNET),120.26,01/10/2020
Delivery Units,Adults and Health,Other Agencies - Third Party P,0090293512,CAREWATCH (BARNET),270.62,01/10/2020
Delivery Units,Adults and Health,Other Agencies - Third Party P,0090293513,CAREWATCH (BARNET),270.62,01/10/2020
Delivery Units,Adults and Health,Other Agencies - Third Party P,0090293514,CAREWATCH (BARNET),120.26,01/10/2020
Delivery Units,Adults and Health,Other Agencies - Third Party P,0090293515,CAREWATCH (BARNET),85.90,01/10/2020
Delivery Units,Adults and Health,Other Agencies - Third Party P,0090293516,CAREWATCH (BARNET),25.77,01/10/2020
Delivery Units,Adults and Health,Other Agencies - Third Party P,0090293517,CAREWATCH (BARNET),25.77,01/10/2020
Delivery Units,Adults and Health,Other Agencies - Third Party P,0090293518,CAREWATCH (BARNET),210.49,01/10/2020
Delivery Units,Adults and Health,Other Agencies - Third Party P,0090293519,CAREWATCH (BARNET),210.49,01/10/2020
Delivery Units,Adults and Health,Other Agencies - Third Party P,0090293520,CAREWATCH (BARNET),120.26,01/10/2020
Delivery Units,Adults and Health,Other Agencies - Third Party P,0090293521,CAREWATCH (BARNET),115.96,01/10/2020
Delivery Units,Adults and Health,Other Agencies - Third Party P,0090293522,CAREWATCH (BARNET),120.26,01/10/2020
Delivery Units,Adults and Health,Other Agencies - Third Party P,0090293523,CAREWATCH (BARNET),120.26,01/10/2020
Delivery Units,Adults and Health,Other Agencies - Third Party P,0090293524,CAREWATCH (BARNET),322.12,01/10/2020
Delivery Units,Adults and Health,Other Agencies - Third Party P,0090293525,CAREWATCH (BARNET),322.12,01/10/2020
Delivery Units,Adults and Health,Other Agencies - Third Party P,0090293526,CAREWATCH (BARNET),120.26,01/10/2020
Delivery Units,Adults and Health,Other Agencies - Third Party P,0090293527,CAREWATCH (BARNET),120.26,01/10/2020
Delivery Units,Adults and Health,Other Agencies - Third Party P,0090293528,CAREWATCH (BARNET),154.62,01/10/2020
Delivery Units,Adults and Health,Other Agencies - Third Party P,0090293529,CAREWATCH (BARNET),262.03,01/10/2020
Delivery Units,Adults and Health,Other Agencies - Third Party P,0090293530,CAREWATCH (BARNET),262.03,01/10/2020
Delivery Units,Adults and Health,Other Agencies - Third Party P,0090293531,CAREWATCH (BARNET),240.52,01/10/2020
Delivery Units,Adults and Health,Other Agencies - Third Party P,0090293532,CAREWATCH (BARNET),240.52,01/10/2020
Delivery Units,Adults and Health,Other Agencies - Third Party P,0090293533,CAREWATCH (BARNET),103.08,01/10/2020
Delivery Units,Adults and Health,Other Agencies - Third Party P,0090293534,CAREWATCH (BARNET),90.20,01/10/2020
Delivery Units,Adults and Health,Other Agencies - Third Party P,0090293535,CAREWATCH (BARNET),150.36,01/10/2020
Delivery Units,Adults and Health,Other Agencies - Third Party P,0090293536,CAREWATCH (BARNET),150.36,01/10/2020
Delivery Units,Adults and Health,Other Agencies - Third Party P,0090293537,CAREWATCH (BARNET),270.58,01/10/2020
Delivery Units,Adults and Health,Other Agencies - Third Party P,0090293538,CAREWATCH (BARNET),244.81,01/10/2020
Delivery Units,Adults and Health,Other Agencies - Third Party P,0090293539,CAREWATCH (BARNET),150.36,01/10/2020
Delivery Units,Adults and Health,Other Agencies - Third Party P,0090293540,CAREWATCH (BARNET),150.36,01/10/2020
Delivery Units,Adults and Health,Other Agencies - Third Party P,0090293541,CAREWATCH (BARNET),94.49,01/10/2020
Delivery Units,Adults and Health,Other Agencies - Third Party P,0090293542,CAREWATCH (BARNET),107.38,01/10/2020
Delivery Units,Adults and Health,Other Agencies - Third Party P,0090293543,CAREWATCH (BARNET),30.06,01/10/2020
Delivery Units,Adults and Health,Other Agencies - Third Party P,0090293544,CAREWATCH (BARNET),34.36,01/10/2020
Delivery Units,Adults and Health,Other Agencies - Third Party P,0090293545,CAREWATCH (BARNET),304.98,01/10/2020
Delivery Units,Adults and Health,Other Agencies - Third Party P,0090293546,CAREWATCH (BARNET),292.06,01/10/2020
Delivery Units,Adults and Health,Other Agencies - Third Party P,0090293547,CAREWATCH (BARNET),210.49,01/10/2020
Delivery Units,Adults and Health,Other Agencies - Third Party P,0090293548,CAREWATCH (BARNET),210.46,01/10/2020
Delivery Units,Adults and Health,Other Agencies - Third Party P,0090293549,CAREWATCH (BARNET),90.20,01/10/2020
Delivery Units,Adults and Health,Other Agencies - Third Party P,0090293550,CAREWATCH (BARNET),90.20,01/10/2020
Delivery Units,Adults and Health,Other Agencies - Third Party P,0090293551,CAREWATCH (BARNET),287.76,01/10/2020
Delivery Units,Adults and Health,Other Agencies - Third Party P,0090293552,CAREWATCH (BARNET),287.80,01/10/2020
Delivery Units,Adults and Health,Other Agencies - Third Party P,0090293553,CAREWATCH (BARNET),317.83,01/10/2020
Delivery Units,Adults and Health,Other Agencies - Third Party P,0090293554,CAREWATCH (BARNET),330.72,01/10/2020
Delivery Units,Adults and Health,Other Agencies - Third Party P,0090293555,CAREWATCH (BARNET),180.39,01/10/2020
Delivery Units,Adults and Health,Other Agencies - Third Party P,0090293556,CAREWATCH (BARNET),210.49,01/10/2020
Delivery Units,Adults and Health,Other Agencies - Third Party P,0090293557,CAREWATCH (BARNET),270.62,01/10/2020
Delivery Units,Adults and Health,Other Agencies - Third Party P,0090293558,CAREWATCH (BARNET),270.62,01/10/2020
Delivery Units,Adults and Health,Other Agencies - Third Party P,0090293559,CAREWATCH (BARNET),270.58,01/10/2020
Delivery Units,Adults and Health,Other Agencies - Third Party P,0090293560,CAREWATCH (BARNET),270.62,01/10/2020
Delivery Units,Adults and Health,Other Agencies - Third Party P,0090293561,CAREWATCH (BARNET),257.77,01/10/2020
Delivery Units,Adults and Health,Other Agencies - Third Party P,0090293562,CAREWATCH (BARNET),257.77,01/10/2020
Delivery Units,Adults and Health,Other Agencies - Third Party P,0090293563,CAREWATCH (BARNET),90.20,01/10/2020
Delivery Units,Adults and Health,Other Agencies - Third Party P,0090293564,CAREWATCH (BARNET),94.49,01/10/2020
Delivery Units,Adults and Health,Other Agencies - Third Party P,0090293565,CAREWATCH (BARNET),120.26,01/10/2020
Delivery Units,Adults and Health,Other Agencies - Third Party P,0090293566,CAREWATCH (BARNET),120.26,01/10/2020
Delivery Units,Adults and Health,Other Agencies - Third Party P,0090293567,CAREWATCH (BARNET),115.96,01/10/2020
Delivery Units,Adults and Health,Other Agencies - Third Party P,0090293568,CAREWATCH (BARNET),120.26,01/10/2020
Delivery Units,Adults and Health,Other Agencies - Third Party P,0090293569,CAREWATCH (BARNET),270.62,01/10/2020
Delivery Units,Adults and Health,Other Agencies - Third Party P,0090293570,CAREWATCH (BARNET),304.94,01/10/2020
Delivery Units,Adults and Health,Other Agencies - Third Party P,0090293571,CAREWATCH (BARNET),81.60,01/10/2020
Delivery Units,Adults and Health,Other Agencies - Third Party P,0090293572,CAREWATCH (BARNET),81.60,01/10/2020
Delivery Units,Adults and Health,Other Agencies - Third Party P,0090293573,CAREWATCH (BARNET),330.75,01/10/2020
Delivery Units,Adults and Health,Other Agencies - Third Party P,0090293574,CAREWATCH (BARNET),330.75,01/10/2020
Delivery Units,Adults and Health,Other Agencies - Third Party P,0090293575,CAREWATCH (BARNET),150.32,01/10/2020
Delivery Units,Adults and Health,Other Agencies - Third Party P,0090293576,CAREWATCH (BARNET),270.62,01/10/2020
Delivery Units,Adults and Health,Other Agencies - Third Party P,0090293577,CAREWATCH (BARNET),103.08,01/10/2020
Delivery Units,Adults and Health,Other Agencies - Third Party P,0090293578,CAREWATCH (BARNET),223.34,01/10/2020
Delivery Units,Adults and Health,Other Agencies - Third Party P,0090293579,CAREWATCH (BARNET),266.29,01/10/2020
Delivery Units,Adults and Health,Other Agencies - Third Party P,0090293580,CAREWATCH (BARNET),270.58,01/10/2020
Delivery Units,Adults and Health,Other Agencies - Third Party P,0090293581,CAREWATCH (BARNET),12.88,01/10/2020
Delivery Units,Adults and Health,Other Agencies - Third Party P,0090293582,CAREWATCH (BARNET),34.36,01/10/2020
Delivery Units,Adults and Health,Other Agencies - Third Party P,0090293583,CAREWATCH (BARNET),51.54,01/10/2020
Delivery Units,Adults and Health,Other Agencies - Third Party P,0090293584,CAREWATCH (BARNET),309.24,01/10/2020
Delivery Units,Adults and Health,Other Agencies - Third Party P,0090293585,CAREWATCH (BARNET),322.12,01/10/2020
Delivery Units,Adults and Health,Other Agencies - Third Party P,0090293586,CAREWATCH (BARNET),210.49,01/10/2020
Delivery Units,Adults and Health,Other Agencies - Third Party P,0090293587,CAREWATCH (BARNET),210.49,01/10/2020
Delivery Units,Adults and Health,Other Agencies - Third Party P,0090293588,CAREWATCH (BARNET),137.44,01/10/2020
Delivery Units,Adults and Health,Other Agencies - Third Party P,0090293589,CAREWATCH (BARNET),438.16,01/10/2020
Delivery Units,Adults and Health,Other Agencies - Third Party P,0090293590,CAREWATCH (BARNET),287.77,01/10/2020
Delivery Units,Adults and Health,Other Agencies - Third Party P,0090293591,CAREWATCH (BARNET),292.06,01/10/2020
Delivery Units,Adults and Health,Other Agencies - Third Party P,0090293592,CAREWATCH (BARNET),231.93,01/10/2020
Delivery Units,Adults and Health,Other Agencies - Third Party P,0090293593,CAREWATCH (BARNET),240.52,01/10/2020
Delivery Units,Adults and Health,Other Agencies - Third Party P,0090293594,CAREWATCH (BARNET),60.13,01/10/2020
Delivery Units,Adults and Health,Other Agencies - Third Party P,0090293595,CAREWATCH (BARNET),60.13,01/10/2020
Delivery Units,Adults and Health,Other Agencies - Third Party P,0090293596,CAREWATCH (BARNET),210.49,01/10/2020
Delivery Units,Adults and Health,Other Agencies - Third Party P,0090293597,CAREWATCH (BARNET),210.49,01/10/2020
Delivery Units,Adults and Health,Other Agencies - Third Party P,0090293598,CAREWATCH (BARNET),60.13,01/10/2020
Delivery Units,Adults and Health,Other Agencies - Third Party P,0090293599,CAREWATCH (BARNET),60.13,01/10/2020
Delivery Units,Adults and Health,Other Agencies - Third Party P,0090293600,CAREWATCH (BARNET),240.59,01/10/2020
Delivery Units,Adults and Health,Other Agencies - Third Party P,0090293601,CAREWATCH (BARNET),240.59,01/10/2020
Delivery Units,Adults and Health,Other Agencies - Third Party P,0090293602,CAREWATCH (BARNET),399.54,01/10/2020
Delivery Units,Adults and Health,Other Agencies - Third Party P,0090293603,CAREWATCH (BARNET),399.54,01/10/2020
Delivery Units,Adults and Health,Other Agencies - Third Party P,0090293604,CAREWATCH (BARNET),90.20,01/10/2020
Delivery Units,Adults and Health,Other Agencies - Third Party P,0090293605,CAREWATCH (BARNET),90.20,01/10/2020
Delivery Units,Adults and Health,Other Agencies - Third Party P,0090293606,CAREWATCH (BARNET),150.36,01/10/2020
Delivery Units,Adults and Health,Other Agencies - Third Party P,0090293607,CAREWATCH (BARNET),150.36,01/10/2020
Delivery Units,Adults and Health,Other Agencies - Third Party P,0090293608,CAREWATCH (BARNET),115.96,01/10/2020
Delivery Units,Adults and Health,Other Agencies - Third Party P,0090293609,CAREWATCH (BARNET),103.08,01/10/2020
Delivery Units,Adults and Health,Other Agencies - Third Party P,0090293626,CARLTON COURT (TLC GROUP),"2,857.14",02/10/2020
Delivery Units,Adults and Health,Other Agencies - Third Party P,0090293634,CARLTON COURT (TLC GROUP),"2,428.57",02/10/2020
Delivery Units,Adults and Health,Other Agencies - Third Party P,0090293643,CARLTON COURT (TLC GROUP),"3,857.14",02/10/2020
Delivery Units,Adults and Health,Other Agencies - Third Party P,0090293650,CARLTON COURT (TLC GROUP),"2,400.60",02/10/2020
Delivery Units,Adults and Health,Other Agencies - Third Party P,0090293654,CARLTON COURT (TLC GROUP),"2,714.29",02/10/2020
Delivery Units,Adults and Health,Other Agencies - Third Party P,0090293656,ROSEACRES CARE HOME LIMITED,-364.29,02/10/2020
Delivery Units,Adults and Health,Other Agencies - Third Party P,0090293657,ROSEACRES CARE HOME LIMITED,"1,645.71",02/10/2020
Delivery Units,Adults and Health,Other Agencies - Third Party P,0090293658,CATHERINE LODGE,"2,271.43",02/10/2020
Delivery Units,Adults and Health,Other Agencies - Third Party P,0090293659,ROSEACRES CARE HOME LIMITED,"2,142.86",02/10/2020
Delivery Units,Adults and Health,Other Agencies - Third Party P,0090293661,CARLTON COURT (TLC GROUP),"3,428.57",02/10/2020
Delivery Units,Adults and Health,Other Agencies - Third Party P,0090293663,ROSEACRES CARE HOME LIMITED,"1,645.71",02/10/2020
Delivery Units,Adults and Health,Other Agencies - Third Party P,0090293664,ROSEACRES CARE HOME LIMITED,"1,928.09",02/10/2020
Delivery Units,Adults and Health,Other Agencies - Third Party P,0090293665,CARLTON COURT (TLC GROUP),"2,410.71",02/10/2020
Delivery Units,Adults and Health,Other Agencies - Third Party P,0090293667,CATHERINE LODGE,"2,428.57",02/10/2020
Delivery Units,Adults and Health,Other Agencies - Third Party P,0090293672,CATHERINE LODGE,"2,428.57",02/10/2020
Delivery Units,Adults and Health,Other Agencies - Third Party P,0090293675,ROSEACRES CARE HOME LIMITED,"2,428.57",02/10/2020
Delivery Units,Adults and Health,Other Agencies - Third Party P,0090293677,CATHERINE LODGE,"2,557.14",02/10/2020
Delivery Units,Adults and Health,Other Agencies - Third Party P,0090293679,CARLTON COURT (TLC GROUP),"4,142.86",02/10/2020
Delivery Units,Adults and Health,Other Agencies - Third Party P,0090293685,ROSEACRES CARE HOME LIMITED,"1,645.71",02/10/2020
Delivery Units,Adults and Health,Other Agencies - Third Party P,0090293689,ROSEACRES CARE HOME LIMITED,"2,142.86",02/10/2020
Delivery Units,Adults and Health,Other Agencies - Third Party P,0090293693,CARLTON COURT (TLC GROUP),"2,857.14",02/10/2020
Delivery Units,Adults and Health,Other Agencies - Third Party P,0090293694,CARLTON COURT (TLC GROUP),"2,414.14",02/10/2020
Delivery Units,Adults and Health,Other Agencies - Third Party P,0090293696,CATHERINE LODGE,"1,755.86",02/10/2020
Delivery Units,Adults and Health,Other Agencies - Third Party P,0090293697,CATHERINE LODGE,"2,142.86",02/10/2020
Delivery Units,Adults and Health,Other Agencies - Third Party P,0090293698,ROSEACRES CARE HOME LIMITED,"1,645.71",02/10/2020
Delivery Units,Adults and Health,Other Agencies - Third Party P,0090293699,CARLTON COURT (TLC GROUP),"1,451.26",02/10/2020
Delivery Units,Adults and Health,Other Agencies - Third Party P,0090293702,ROSEACRES CARE HOME LIMITED,"2,142.86",02/10/2020
Delivery Units,Adults and Health,Other Agencies - Third Party P,0090293703,CATHERINE LODGE,"2,271.43",02/10/2020
Delivery Units,Adults and Health,Other Agencies - Third Party P,0090293706,CARLTON COURT (TLC GROUP),"2,695.54",02/10/2020
Delivery Units,Adults and Health,Other Agencies - Third Party P,0090293710,CARLTON COURT (TLC GROUP),"3,857.14",02/10/2020
Delivery Units,Adults and Health,Other Agencies - Third Party P,0090293719,ROSEACRES CARE HOME LIMITED,"1,645.71",02/10/2020
Delivery Units,Adults and Health,Other Agencies - Third Party P,0090293721,CARLTON COURT (TLC GROUP),"2,857.14",02/10/2020
Delivery Units,Adults and Health,Other Agencies - Third Party P,0090293724,CATHERINE LODGE,"2,271.43",02/10/2020
Delivery Units,Adults and Health,Other Agencies - Third Party P,0090293727,CATHERINE LODGE,"2,342.86",02/10/2020
Delivery Units,Adults and Health,Other Agencies - Third Party P,0090293729,CARLTON COURT (TLC GROUP),"2,699.86",02/10/2020
Delivery Units,Adults and Health,Other Agencies - Third Party P,0090293731,CATHERINE LODGE,"1,755.86",02/10/2020
Delivery Units,Adults and Health,Other Agencies - Third Party P,0090293735,ROSEACRES CARE HOME LIMITED,"1,645.71",02/10/2020
Delivery Units,Adults and Health,Other Agencies - Third Party P,0090293737,CARLTON COURT (TLC GROUP),"2,857.14",02/10/2020
Delivery Units,Adults and Health,Other Agencies - Third Party P,0090293739,CARLTON COURT (TLC GROUP),"3,714.29",02/10/2020
Delivery Units,Adults and Health,Other Agencies - Third Party P,0090293740,ROSEACRES CARE HOME LIMITED,"2,428.57",02/10/2020
Delivery Units,Adults and Health,Other Agencies - Third Party P,0090293745,CARLTON COURT (TLC GROUP),"3,855.54",02/10/2020
Delivery Units,Adults and Health,Other Agencies - Third Party P,0090293760,SERVESOUL LIMITED,62.97,02/10/2020
Delivery Units,Adults and Health,Other Agencies - Third Party P,0090293761,SERVESOUL LIMITED,251.86,02/10/2020
Delivery Units,Adults and Health,Other Agencies - Third Party P,0090293762,SERVESOUL LIMITED,629.65,02/10/2020
Delivery Units,Adults and Health,Other Agencies - Third Party P,0090293763,SERVESOUL LIMITED,188.90,02/10/2020
Delivery Units,Adults and Health,Other Agencies - Third Party P,0090293764,SERVESOUL LIMITED,215.88,02/10/2020
Delivery Units,Adults and Health,Other Agencies - Third Party P,0090293765,SERVESOUL LIMITED,67.46,02/10/2020
Delivery Units,Adults and Health,Other Agencies - Third Party P,0090293766,SERVESOUL LIMITED,782.57,02/10/2020
Delivery Units,Adults and Health,Other Agencies - Third Party P,0090293767,SERVESOUL LIMITED,125.93,02/10/2020
Delivery Units,Adults and Health,Other Agencies - Third Party P,0090293768,SERVESOUL LIMITED,251.86,02/10/2020
Delivery Units,Adults and Health,Other Agencies - Third Party P,0090293769,SERVESOUL LIMITED,89.95,02/10/2020
Delivery Units,Adults and Health,Other Agencies - Third Party P,0090293770,SERVESOUL LIMITED,521.71,02/10/2020
Delivery Units,Adults and Health,Other Agencies - Third Party P,0090293771,SERVESOUL LIMITED,125.93,02/10/2020
Delivery Units,Adults and Health,Other Agencies - Third Party P,0090293772,SERVESOUL LIMITED,395.78,02/10/2020
Delivery Units,Adults and Health,Other Agencies - Third Party P,0090293773,SERVESOUL LIMITED,"1,605.61",02/10/2020
Delivery Units,Adults and Health,Other Agencies - Third Party P,0090293774,SERVESOUL LIMITED,346.31,02/10/2020
Delivery Units,Adults and Health,Other Agencies - Third Party P,0090293775,SERVESOUL LIMITED,755.58,02/10/2020
Delivery Units,Adults and Health,Other Agencies - Third Party P,0090293776,SERVESOUL LIMITED,283.34,02/10/2020
Delivery Units,Adults and Health,Other Agencies - Third Party P,0090293777,SERVESOUL LIMITED,314.83,02/10/2020
Delivery Units,Adults and Health,Other Agencies - Third Party P,0090293778,SERVESOUL LIMITED,62.97,02/10/2020
Delivery Units,Adults and Health,Other Agencies - Third Party P,0090293779,SERVESOUL LIMITED,472.24,02/10/2020
Delivery Units,Adults and Health,Other Agencies - Third Party P,0090293780,SERVESOUL LIMITED,395.78,02/10/2020
Delivery Units,Adults and Health,Other Agencies - Third Party P,0090293781,SERVESOUL LIMITED,557.69,02/10/2020
Delivery Units,Adults and Health,Other Agencies - Third Party P,0090293782,SERVESOUL LIMITED,157.41,02/10/2020
Delivery Units,Adults and Health,Other Agencies - Third Party P,0090293783,SERVESOUL LIMITED,301.33,02/10/2020
Delivery Units,Adults and Health,Other Agencies - Third Party P,0090293784,SERVESOUL LIMITED,427.26,02/10/2020
Delivery Units,Adults and Health,Other Agencies - Third Party P,0090293785,SERVESOUL LIMITED,220.38,02/10/2020
Delivery Units,Adults and Health,Other Agencies - Third Party P,0090293786,SERVESOUL LIMITED,170.91,02/10/2020
Delivery Units,Adults and Health,Other Agencies - Third Party P,0090293787,SERVESOUL LIMITED,157.41,02/10/2020
Delivery Units,Adults and Health,Other Agencies - Third Party P,0090293788,SERVESOUL LIMITED,94.45,02/10/2020
Delivery Units,Adults and Health,Other Agencies - Third Party P,0090293789,SERVESOUL LIMITED,188.90,02/10/2020
Delivery Units,Adults and Health,Other Agencies - Third Party P,0090293790,SERVESOUL LIMITED,647.64,02/10/2020
Delivery Units,Adults and Health,Other Agencies - Third Party P,0090293791,SERVESOUL LIMITED,53.97,02/10/2020
Delivery Units,Adults and Health,Other Agencies - Third Party P,0090293792,SERVESOUL LIMITED,125.93,02/10/2020
Delivery Units,Adults and Health,Other Agencies - Third Party P,0090293793,SERVESOUL LIMITED,359.80,02/10/2020
Delivery Units,Adults and Health,Other Agencies - Third Party P,0090293794,SERVESOUL LIMITED,94.45,02/10/2020
Delivery Units,Adults and Health,Other Agencies - Third Party P,0090293795,SERVESOUL LIMITED,220.38,02/10/2020
Delivery Units,Adults and Health,Other Agencies - Third Party P,0090293796,SERVESOUL LIMITED,188.90,02/10/2020
Delivery Units,Adults and Health,Other Agencies - Third Party P,0090293797,SERVESOUL LIMITED,125.93,02/10/2020
Delivery Units,Adults and Health,Other Agencies - Third Party P,0090293798,SERVESOUL LIMITED,94.45,02/10/2020
Delivery Units,Adults and Health,Other Agencies - Third Party P,0090293799,SERVESOUL LIMITED,440.76,02/10/2020
Delivery Units,Adults and Health,Other Agencies - Third Party P,0090293800,SERVESOUL LIMITED,220.38,02/10/2020
Delivery Units,Adults and Health,Other Agencies - Third Party P,0090293801,SERVESOUL LIMITED,188.90,02/10/2020
Delivery Units,Adults and Health,Other Agencies - Third Party P,0090293802,SERVESOUL LIMITED,220.38,02/10/2020
Delivery Units,Adults and Health,Other Agencies - Third Party P,0090293803,SERVESOUL LIMITED,125.93,02/10/2020
Delivery Units,Adults and Health,Other Agencies - Third Party P,0090293804,SERVESOUL LIMITED,566.69,02/10/2020
Delivery Units,Adults and Health,Other Agencies - Third Party P,0090293805,SERVESOUL LIMITED,503.72,02/10/2020
Delivery Units,Adults and Health,Other Agencies - Third Party P,0090293806,SERVESOUL LIMITED,395.78,02/10/2020
Delivery Units,Adults and Health,Other Agencies - Third Party P,0090293807,SERVESOUL LIMITED,440.76,02/10/2020
Delivery Units,Adults and Health,Other Agencies - Third Party P,0090293808,SERVESOUL LIMITED,314.83,02/10/2020
Delivery Units,Adults and Health,Other Agencies - Third Party P,0090293809,SERVESOUL LIMITED,490.23,02/10/2020
Delivery Units,Adults and Health,Other Agencies - Third Party P,0090293810,SERVESOUL LIMITED,629.65,02/10/2020
Delivery Units,Adults and Health,Other Agencies - Third Party P,0090293811,SERVESOUL LIMITED,35.98,02/10/2020
Delivery Units,Adults and Health,Other Agencies - Third Party P,0090293812,SERVESOUL LIMITED,"1,070.41",02/10/2020
Delivery Units,Adults and Health,Other Agencies - Third Party P,0090293813,SERVESOUL LIMITED,94.45,02/10/2020
Delivery Units,Adults and Health,Other Agencies - Third Party P,0090293814,SERVESOUL LIMITED,206.89,02/10/2020
Delivery Units,Adults and Health,Other Agencies - Third Party P,0090293815,SERVESOUL LIMITED,89.95,02/10/2020
Delivery Units,Adults and Health,Other Agencies - Third Party P,0090293816,SERVESOUL LIMITED,"1,133.37",02/10/2020
Delivery Units,Adults and Health,Other Agencies - Third Party P,0090293817,DR FRENCH MEMORIAL HOME LTD,"2,517.94",02/10/2020
Delivery Units,Adults and Health,Other Agencies - Third Party P,0090293818,DR FRENCH MEMORIAL HOME LTD,"3,428.57",02/10/2020
Delivery Units,Adults and Health,Other Agencies - Third Party P,0090293819,DR FRENCH MEMORIAL HOME LTD,"3,428.57",02/10/2020
Delivery Units,Adults and Health,Other Agencies - Third Party P,0090293820,DR FRENCH MEMORIAL HOME LTD,"3,642.86",02/10/2020
Delivery Units,Adults and Health,Other Agencies - Third Party P,0090293821,DR FRENCH MEMORIAL HOME LTD,"3,642.86",02/10/2020
Delivery Units,Adults and Health,Other Agencies - Third Party P,0090293838,DYNAMIC PEOPLE LTD,297.77,02/10/2020
Delivery Units,Adults and Health,Other Agencies - Third Party P,0090293839,DYNAMIC PEOPLE LTD,32.18,02/10/2020
Delivery Units,Adults and Health,Other Agencies - Third Party P,0090293840,DYNAMIC PEOPLE LTD,308.59,02/10/2020
Delivery Units,Adults and Health,Other Agencies - Third Party P,0090293841,DYNAMIC PEOPLE LTD,54.78,02/10/2020
Delivery Units,Adults and Health,Other Agencies - Third Party P,0090293842,DYNAMIC PEOPLE LTD,82.17,02/10/2020
Delivery Units,Adults and Health,Other Agencies - Third Party P,0090293843,DYNAMIC PEOPLE LTD,68.48,02/10/2020
Delivery Units,Adults and Health,Other Agencies - Third Party P,0090293844,DYNAMIC PEOPLE LTD,54.78,02/10/2020
Delivery Units,Adults and Health,Other Agencies - Third Party P,0090293845,DYNAMIC PEOPLE LTD,223.69,02/10/2020
Delivery Units,Adults and Health,Other Agencies - Third Party P,0090293846,DYNAMIC PEOPLE LTD,95.86,02/10/2020
Delivery Units,Adults and Health,Other Agencies - Third Party P,0090293847,DYNAMIC PEOPLE LTD,146.08,02/10/2020
Delivery Units,Adults and Health,Other Agencies - Third Party P,0090293848,DYNAMIC PEOPLE LTD,100.43,02/10/2020
Delivery Units,Adults and Health,Other Agencies - Third Party P,0090293849,DYNAMIC PEOPLE LTD,223.69,02/10/2020
Delivery Units,Adults and Health,Other Agencies - Third Party P,0090293850,DYNAMIC PEOPLE LTD,319.55,02/10/2020
Delivery Units,Adults and Health,Other Agencies - Third Party P,0090293851,DYNAMIC PEOPLE LTD,168.90,02/10/2020
Delivery Units,Adults and Health,Other Agencies - Third Party P,0090293852,DYNAMIC PEOPLE LTD,41.08,02/10/2020
Delivery Units,Adults and Health,Other Agencies - Third Party P,0090293853,DYNAMIC PEOPLE LTD,91.30,02/10/2020
Delivery Units,Adults and Health,Other Agencies - Third Party P,0090293854,DYNAMIC PEOPLE LTD,68.48,02/10/2020
Delivery Units,Adults and Health,Other Agencies - Third Party P,0090293855,DYNAMIC PEOPLE LTD,287.60,02/10/2020
Delivery Units,Adults and Health,Other Agencies - Third Party P,0090293856,DYNAMIC PEOPLE LTD,159.78,02/10/2020
Delivery Units,Adults and Health,Other Agencies - Third Party P,0090293857,DYNAMIC PEOPLE LTD,214.56,02/10/2020
Delivery Units,Adults and Health,Other Agencies - Third Party P,0090293858,DYNAMIC PEOPLE LTD,127.82,02/10/2020
Delivery Units,Adults and Health,Other Agencies - Third Party P,0090293859,DYNAMIC PEOPLE LTD,241.95,02/10/2020
Delivery Units,Adults and Health,Other Agencies - Third Party P,0090293860,DYNAMIC PEOPLE LTD,59.35,02/10/2020
Delivery Units,Adults and Health,Other Agencies - Third Party P,0090293861,DYNAMIC PEOPLE LTD,91.30,02/10/2020
Delivery Units,Adults and Health,Other Agencies - Third Party P,0090293862,DYNAMIC PEOPLE LTD,27.39,02/10/2020
Delivery Units,Adults and Health,Other Agencies - Third Party P,0090293863,DYNAMIC PEOPLE LTD,54.78,02/10/2020
Delivery Units,Adults and Health,Other Agencies - Third Party P,0090293864,DYNAMIC PEOPLE LTD,141.52,02/10/2020
Delivery Units,Adults and Health,Other Agencies - Third Party P,0090293865,DYNAMIC PEOPLE LTD,68.48,02/10/2020
Delivery Units,Adults and Health,Other Agencies - Third Party P,0090293866,DYNAMIC PEOPLE LTD,109.56,02/10/2020
Delivery Units,Adults and Health,Other Agencies - Third Party P,0090293867,DYNAMIC PEOPLE LTD,287.60,02/10/2020
Delivery Units,Adults and Health,Other Agencies - Third Party P,0090293868,DYNAMIC PEOPLE LTD,524.98,02/10/2020
Delivery Units,Adults and Health,Other Agencies - Third Party P,0090293869,DYNAMIC PEOPLE LTD,191.73,02/10/2020
Delivery Units,Adults and Health,Other Agencies - Third Party P,0090293870,DYNAMIC PEOPLE LTD,383.46,02/10/2020
Delivery Units,Adults and Health,Other Agencies - Third Party P,0090293871,DYNAMIC PEOPLE LTD,109.56,02/10/2020
Delivery Units,Adults and Health,Other Agencies - Third Party P,0090293872,DYNAMIC PEOPLE LTD,91.30,02/10/2020
Delivery Units,Adults and Health,Other Agencies - Third Party P,0090293873,DYNAMIC PEOPLE LTD,127.82,02/10/2020
Delivery Units,Adults and Health,Other Agencies - Third Party P,0090293874,DYNAMIC PEOPLE LTD,255.64,02/10/2020
Delivery Units,Adults and Health,Other Agencies - Third Party P,0090293875,DYNAMIC PEOPLE LTD,36.52,02/10/2020
Delivery Units,Adults and Health,Other Agencies - Third Party P,0090293876,DYNAMIC PEOPLE LTD,360.64,02/10/2020
Delivery Units,Adults and Health,Other Agencies - Third Party P,0090293877,DYNAMIC PEOPLE LTD,95.86,02/10/2020
Delivery Units,Adults and Health,Other Agencies - Third Party P,0090293878,DYNAMIC PEOPLE LTD,351.51,02/10/2020
Delivery Units,Adults and Health,Other Agencies - Third Party P,0090293879,DYNAMIC PEOPLE LTD,13.70,02/10/2020
Delivery Units,Adults and Health,Other Agencies - Third Party P,0090293880,DYNAMIC PEOPLE LTD,255.64,02/10/2020
Delivery Units,Adults and Health,Other Agencies - Third Party P,0090293881,DYNAMIC PEOPLE LTD,63.91,02/10/2020
Delivery Units,Adults and Health,Other Agencies - Third Party P,0090293882,DYNAMIC PEOPLE LTD,159.78,02/10/2020
Delivery Units,Adults and Health,Other Agencies - Third Party P,0090293883,DYNAMIC PEOPLE LTD,447.37,02/10/2020
Delivery Units,Adults and Health,Other Agencies - Third Party P,0090293884,DYNAMIC PEOPLE LTD,127.82,02/10/2020
Delivery Units,Adults and Health,Other Agencies - Third Party P,0090293885,DYNAMIC PEOPLE LTD,159.78,02/10/2020
Delivery Units,Adults and Health,Other Agencies - Third Party P,0090293886,DYNAMIC PEOPLE LTD,127.82,02/10/2020
Delivery Units,Adults and Health,Other Agencies - Third Party P,0090293887,DYNAMIC PEOPLE LTD,41.08,02/10/2020
Delivery Units,Adults and Health,Other Agencies - Third Party P,0090293888,DYNAMIC PEOPLE LTD,54.78,02/10/2020
Delivery Units,Adults and Health,Other Agencies - Third Party P,0090293889,DYNAMIC PEOPLE LTD,95.86,02/10/2020
Delivery Units,Adults and Health,Other Agencies - Third Party P,0090293890,DYNAMIC PEOPLE LTD,200.86,02/10/2020
Delivery Units,Adults and Health,Other Agencies - Third Party P,0090293891,DYNAMIC PEOPLE LTD,95.86,02/10/2020
Delivery Units,Adults and Health,Other Agencies - Third Party P,0090293892,DYNAMIC PEOPLE LTD,187.17,02/10/2020
Delivery Units,Adults and Health,Other Agencies - Third Party P,0090293893,DYNAMIC PEOPLE LTD,127.82,02/10/2020
Delivery Units,Adults and Health,Other Agencies - Third Party P,0090293894,DYNAMIC PEOPLE LTD,273.90,02/10/2020
Delivery Units,Adults and Health,Other Agencies - Third Party P,0090293895,DYNAMIC PEOPLE LTD,95.86,02/10/2020
Delivery Units,Adults and Health,Other Agencies - Third Party P,0090293896,DYNAMIC PEOPLE LTD,255.64,02/10/2020
Delivery Units,Adults and Health,Other Agencies - Third Party P,0090293897,DYNAMIC PEOPLE LTD,136.95,02/10/2020
Delivery Units,Adults and Health,Other Agencies - Third Party P,0090293898,DYNAMIC PEOPLE LTD,319.55,02/10/2020
Delivery Units,Adults and Health,Other Agencies - Third Party P,0090293899,DYNAMIC PEOPLE LTD,328.68,02/10/2020
Delivery Units,Adults and Health,Other Agencies - Third Party P,0090293900,DYNAMIC PEOPLE LTD,36.52,02/10/2020
Delivery Units,Adults and Health,Other Agencies - Third Party P,0090293901,DYNAMIC PEOPLE LTD,342.38,02/10/2020
Delivery Units,Adults and Health,Other Agencies - Third Party P,0090293902,DYNAMIC PEOPLE LTD,100.43,02/10/2020
Delivery Units,Adults and Health,Other Agencies - Third Party P,0090293903,DYNAMIC PEOPLE LTD,703.01,02/10/2020
Delivery Units,Adults and Health,Other Agencies - Third Party P,0090293904,DYNAMIC PEOPLE LTD,159.78,02/10/2020
Delivery Units,Adults and Health,Other Agencies - Third Party P,0090293905,DYNAMIC PEOPLE LTD,136.95,02/10/2020
Delivery Units,Adults and Health,Other Agencies - Third Party P,0090293906,DYNAMIC PEOPLE LTD,333.24,02/10/2020
Delivery Units,Adults and Health,Other Agencies - Third Party P,0090293907,DYNAMIC PEOPLE LTD,671.06,02/10/2020
Delivery Units,Adults and Health,Other Agencies - Third Party P,0090293908,DYNAMIC PEOPLE LTD,319.55,02/10/2020
Delivery Units,Adults and Health,Other Agencies - Third Party P,0090293909,DYNAMIC PEOPLE LTD,214.56,02/10/2020
Delivery Units,Adults and Health,Other Agencies - Third Party P,0090293910,DYNAMIC PEOPLE LTD,109.56,02/10/2020
Delivery Units,Adults and Health,Other Agencies - Third Party P,0090293911,DYNAMIC PEOPLE LTD,223.69,02/10/2020
Delivery Units,Adults and Health,Other Agencies - Third Party P,0090293912,DYNAMIC PEOPLE LTD,415.42,02/10/2020
Delivery Units,Adults and Health,Other Agencies - Third Party P,0090293913,DYNAMIC PEOPLE LTD,141.52,02/10/2020
Delivery Units,Adults and Health,Other Agencies - Third Party P,0090293914,DYNAMIC PEOPLE LTD,159.78,02/10/2020
Delivery Units,Adults and Health,Other Agencies - Third Party P,0090293915,DYNAMIC PEOPLE LTD,127.82,02/10/2020
Delivery Units,Adults and Health,Other Agencies - Third Party P,0090293916,DYNAMIC PEOPLE LTD,73.04,02/10/2020
Delivery Units,Adults and Health,Other Agencies - Third Party P,0090293917,DYNAMIC PEOPLE LTD,305.86,02/10/2020
Delivery Units,Adults and Health,Other Agencies - Third Party P,0090293918,DYNAMIC PEOPLE LTD,54.78,02/10/2020
Delivery Units,Adults and Health,Other Agencies - Third Party P,0090293919,DYNAMIC PEOPLE LTD,369.77,02/10/2020
Delivery Units,Adults and Health,Other Agencies - Third Party P,0090293920,DYNAMIC PEOPLE LTD,68.48,02/10/2020
Delivery Units,Adults and Health,Other Agencies - Third Party P,0090293921,DYNAMIC PEOPLE LTD,351.51,02/10/2020
Delivery Units,Adults and Health,Other Agencies - Third Party P,0090293922,DYNAMIC PEOPLE LTD,95.86,02/10/2020
Delivery Units,Adults and Health,Other Agencies - Third Party P,0090293923,DYNAMIC PEOPLE LTD,95.86,02/10/2020
Delivery Units,Adults and Health,Other Agencies - Third Party P,0090293924,DYNAMIC PEOPLE LTD,54.78,02/10/2020
Delivery Units,Adults and Health,Other Agencies - Third Party P,0090293925,DYNAMIC PEOPLE LTD,127.82,02/10/2020
Delivery Units,Adults and Health,Other Agencies - Third Party P,0090293926,DYNAMIC PEOPLE LTD,351.51,02/10/2020
Delivery Units,Adults and Health,Other Agencies - Third Party P,0090293927,DYNAMIC PEOPLE LTD,100.43,02/10/2020
Delivery Units,Adults and Health,Other Agencies - Third Party P,0090293928,DYNAMIC PEOPLE LTD,31.96,02/10/2020
Delivery Units,Adults and Health,Other Agencies - Third Party P,0090293929,DYNAMIC PEOPLE LTD,136.95,02/10/2020
Delivery Units,Adults and Health,Other Agencies - Third Party P,0090293930,DYNAMIC PEOPLE LTD,223.69,02/10/2020
Delivery Units,Adults and Health,Other Agencies - Third Party P,0090293931,DYNAMIC PEOPLE LTD,319.55,02/10/2020
Delivery Units,Adults and Health,Other Agencies - Third Party P,0090293932,DYNAMIC PEOPLE LTD,41.08,02/10/2020
Delivery Units,Adults and Health,Other Agencies - Third Party P,0090293933,DYNAMIC PEOPLE LTD,146.08,02/10/2020
Delivery Units,Adults and Health,Other Agencies - Third Party P,0090293934,DYNAMIC PEOPLE LTD,164.34,02/10/2020
Delivery Units,Adults and Health,Other Agencies - Third Party P,0090293935,DYNAMIC PEOPLE LTD,168.90,02/10/2020
Delivery Units,Adults and Health,Other Agencies - Third Party P,0090293936,DYNAMIC PEOPLE LTD,511.28,02/10/2020
Delivery Units,Adults and Health,Other Agencies - Third Party P,0090293937,DYNAMIC PEOPLE LTD,95.86,02/10/2020
Delivery Units,Adults and Health,Other Agencies - Third Party P,0090293938,DYNAMIC PEOPLE LTD,141.52,02/10/2020
Delivery Units,Adults and Health,Other Agencies - Third Party P,0090293939,DYNAMIC PEOPLE LTD,191.73,02/10/2020
Delivery Units,Adults and Health,Other Agencies - Third Party P,0090293940,DYNAMIC PEOPLE LTD,255.64,02/10/2020
Delivery Units,Adults and Health,Other Agencies - Third Party P,0090293941,DYNAMIC PEOPLE LTD,255.64,02/10/2020
Delivery Units,Adults and Health,Other Agencies - Third Party P,0090293942,DYNAMIC PEOPLE LTD,196.30,02/10/2020
Delivery Units,Adults and Health,Other Agencies - Third Party P,0090293943,DYNAMIC PEOPLE LTD,63.91,02/10/2020
Delivery Units,Adults and Health,Other Agencies - Third Party P,0090293944,DYNAMIC PEOPLE LTD,424.54,02/10/2020
Delivery Units,Adults and Health,Other Agencies - Third Party P,0090293945,DYNAMIC PEOPLE LTD,159.78,02/10/2020
Delivery Units,Adults and Health,Other Agencies - Third Party P,0090293946,DYNAMIC PEOPLE LTD,205.42,02/10/2020
Delivery Units,Adults and Health,Other Agencies - Third Party P,0090293947,DYNAMIC PEOPLE LTD,721.27,02/10/2020
Delivery Units,Adults and Health,Other Agencies - Third Party P,0090293948,DYNAMIC PEOPLE LTD,73.04,02/10/2020
Delivery Units,Adults and Health,Other Agencies - Third Party P,0090293949,DYNAMIC PEOPLE LTD,114.13,02/10/2020
Delivery Units,Adults and Health,Other Agencies - Third Party P,0090293950,DYNAMIC PEOPLE LTD,68.48,02/10/2020
Delivery Units,Adults and Health,Other Agencies - Third Party P,0090293951,DYNAMIC PEOPLE LTD,319.55,02/10/2020
Delivery Units,Adults and Health,Other Agencies - Third Party P,0090293952,DYNAMIC PEOPLE LTD,95.86,02/10/2020
Delivery Units,Adults and Health,Other Agencies - Third Party P,0090293953,DYNAMIC PEOPLE LTD,159.78,02/10/2020
Delivery Units,Adults and Health,Other Agencies - Third Party P,0090293954,DYNAMIC PEOPLE LTD,383.46,02/10/2020
Delivery Units,Adults and Health,Other Agencies - Third Party P,0090293955,DYNAMIC PEOPLE LTD,118.69,02/10/2020
Delivery Units,Adults and Health,Other Agencies - Third Party P,0090293956,DYNAMIC PEOPLE LTD,159.78,02/10/2020
Delivery Units,Adults and Health,Other Agencies - Third Party P,0090293957,DYNAMIC PEOPLE LTD,205.42,02/10/2020
Delivery Units,Adults and Health,Other Agencies - Third Party P,0090293958,DYNAMIC PEOPLE LTD,146.08,02/10/2020
Delivery Units,Adults and Health,Other Agencies - Third Party P,0090293959,DYNAMIC PEOPLE LTD,127.82,02/10/2020
Delivery Units,Adults and Health,Other Agencies - Third Party P,0090293960,DYNAMIC PEOPLE LTD,109.56,02/10/2020
Delivery Units,Adults and Health,Other Agencies - Third Party P,0090293961,DYNAMIC PEOPLE LTD,95.86,02/10/2020
Delivery Units,Adults and Health,Other Agencies - Third Party P,0090293962,DYNAMIC PEOPLE LTD,693.88,02/10/2020
Delivery Units,Adults and Health,Other Agencies - Third Party P,0090293963,DYNAMIC PEOPLE LTD,438.24,02/10/2020
Delivery Units,Adults and Health,Other Agencies - Third Party P,0090293964,DYNAMIC PEOPLE LTD,18.26,02/10/2020
Delivery Units,Adults and Health,Other Agencies - Third Party P,0090293965,DYNAMIC PEOPLE LTD,246.51,02/10/2020
Delivery Units,Adults and Health,Other Agencies - Third Party P,0090293966,DYNAMIC PEOPLE LTD,223.69,02/10/2020
Delivery Units,Adults and Health,Other Agencies - Third Party P,0090293967,DYNAMIC PEOPLE LTD,319.55,02/10/2020
Delivery Units,Adults and Health,Other Agencies - Third Party P,0090293968,DYNAMIC PEOPLE LTD,219.12,02/10/2020
Delivery Units,Adults and Health,Other Agencies - Third Party P,0090293969,DYNAMIC PEOPLE LTD,27.39,02/10/2020
Delivery Units,Adults and Health,Other Agencies - Third Party P,0090293970,DYNAMIC PEOPLE LTD,337.81,02/10/2020
Delivery Units,Adults and Health,Other Agencies - Third Party P,0090293971,DYNAMIC PEOPLE LTD,319.55,02/10/2020
Delivery Units,Adults and Health,Other Agencies - Third Party P,0090293972,DYNAMIC PEOPLE LTD,337.81,02/10/2020
Delivery Units,Adults and Health,Other Agencies - Third Party P,0090293973,DYNAMIC PEOPLE LTD,278.47,02/10/2020
Delivery Units,Adults and Health,Other Agencies - Third Party P,0090293974,DYNAMIC PEOPLE LTD,127.82,02/10/2020
Delivery Units,Adults and Health,Other Agencies - Third Party P,0090293975,DYNAMIC PEOPLE LTD,95.86,02/10/2020
Delivery Units,Adults and Health,Other Agencies - Third Party P,0090293976,DYNAMIC PEOPLE LTD,228.25,02/10/2020
Delivery Units,Adults and Health,Other Agencies - Third Party P,0090293977,DYNAMIC PEOPLE LTD,91.30,02/10/2020
Delivery Units,Adults and Health,Other Agencies - Third Party P,0090293978,DYNAMIC PEOPLE LTD,283.03,02/10/2020
Delivery Units,Adults and Health,Other Agencies - Third Party P,0090293979,DYNAMIC PEOPLE LTD,100.43,02/10/2020
Delivery Units,Adults and Health,Other Agencies - Third Party P,0090293980,DYNAMIC PEOPLE LTD,95.86,02/10/2020
Delivery Units,Adults and Health,Other Agencies - Third Party P,0090293981,DYNAMIC PEOPLE LTD,27.39,02/10/2020
Delivery Units,Adults and Health,Other Agencies - Third Party P,0090293982,DYNAMIC PEOPLE LTD,95.86,02/10/2020
Delivery Units,Adults and Health,Other Agencies - Third Party P,0090293983,DYNAMIC PEOPLE LTD,127.82,02/10/2020
Delivery Units,Adults and Health,Other Agencies - Third Party P,0090293984,DYNAMIC PEOPLE LTD,73.04,02/10/2020
Delivery Units,Adults and Health,Other Agencies - Third Party P,0090293985,DYNAMIC PEOPLE LTD,511.28,02/10/2020
Delivery Units,Adults and Health,Other Agencies - Third Party P,0090293986,DYNAMIC PEOPLE LTD,127.82,02/10/2020
Delivery Units,Adults and Health,Other Agencies - Third Party P,0090293987,DYNAMIC PEOPLE LTD,54.78,02/10/2020
Delivery Units,Adults and Health,Other Agencies - Third Party P,0090293988,DYNAMIC PEOPLE LTD,82.17,02/10/2020
Delivery Units,Adults and Health,Other Agencies - Third Party P,0090293989,DYNAMIC PEOPLE LTD,68.48,02/10/2020
Delivery Units,Adults and Health,Other Agencies - Third Party P,0090293990,DYNAMIC PEOPLE LTD,68.48,02/10/2020
Delivery Units,Adults and Health,Other Agencies - Third Party P,0090293991,DYNAMIC PEOPLE LTD,146.08,02/10/2020
Delivery Units,Adults and Health,Other Agencies - Third Party P,0090293992,DYNAMIC PEOPLE LTD,95.86,02/10/2020
Delivery Units,Adults and Health,Other Agencies - Third Party P,0090293993,DYNAMIC PEOPLE LTD,146.08,02/10/2020
Delivery Units,Adults and Health,Other Agencies - Third Party P,0090293994,DYNAMIC PEOPLE LTD,82.17,02/10/2020
Delivery Units,Adults and Health,Other Agencies - Third Party P,0090293995,DYNAMIC PEOPLE LTD,223.69,02/10/2020
Delivery Units,Adults and Health,Other Agencies - Third Party P,0090293996,DYNAMIC PEOPLE LTD,319.55,02/10/2020
Delivery Units,Adults and Health,Other Agencies - Third Party P,0090293997,DYNAMIC PEOPLE LTD,168.90,02/10/2020
Delivery Units,Adults and Health,Other Agencies - Third Party P,0090293998,DYNAMIC PEOPLE LTD,95.86,02/10/2020
Delivery Units,Adults and Health,Other Agencies - Third Party P,0090293999,DYNAMIC PEOPLE LTD,91.30,02/10/2020
Delivery Units,Adults and Health,Other Agencies - Third Party P,0090294000,DYNAMIC PEOPLE LTD,68.48,02/10/2020
Delivery Units,Adults and Health,Other Agencies - Third Party P,0090294001,DYNAMIC PEOPLE LTD,287.60,02/10/2020
Delivery Units,Adults and Health,Other Agencies - Third Party P,0090294002,DYNAMIC PEOPLE LTD,159.78,02/10/2020
Delivery Units,Adults and Health,Other Agencies - Third Party P,0090294003,DYNAMIC PEOPLE LTD,214.56,02/10/2020
Delivery Units,Adults and Health,Other Agencies - Third Party P,0090294004,DYNAMIC PEOPLE LTD,127.82,02/10/2020
Delivery Units,Adults and Health,Other Agencies - Third Party P,0090294005,DYNAMIC PEOPLE LTD,241.95,02/10/2020
Delivery Units,Adults and Health,Other Agencies - Third Party P,0090294006,DYNAMIC PEOPLE LTD,59.35,02/10/2020
Delivery Units,Adults and Health,Other Agencies - Third Party P,0090294007,DYNAMIC PEOPLE LTD,91.30,02/10/2020
Delivery Units,Adults and Health,Other Agencies - Third Party P,0090294008,DYNAMIC PEOPLE LTD,27.39,02/10/2020
Delivery Units,Adults and Health,Other Agencies - Third Party P,0090294009,DYNAMIC PEOPLE LTD,54.78,02/10/2020
Delivery Units,Adults and Health,Other Agencies - Third Party P,0090294010,DYNAMIC PEOPLE LTD,141.52,02/10/2020
Delivery Units,Adults and Health,Other Agencies - Third Party P,0090294011,DYNAMIC PEOPLE LTD,68.48,02/10/2020
Delivery Units,Adults and Health,Other Agencies - Third Party P,0090294012,DYNAMIC PEOPLE LTD,109.56,02/10/2020
Delivery Units,Adults and Health,Other Agencies - Third Party P,0090294013,DYNAMIC PEOPLE LTD,287.60,02/10/2020
Delivery Units,Adults and Health,Other Agencies - Third Party P,0090294014,DYNAMIC PEOPLE LTD,524.98,02/10/2020
Delivery Units,Adults and Health,Other Agencies - Third Party P,0090294015,DYNAMIC PEOPLE LTD,191.73,02/10/2020
Delivery Units,Adults and Health,Other Agencies - Third Party P,0090294016,DYNAMIC PEOPLE LTD,383.46,02/10/2020
Delivery Units,Adults and Health,Other Agencies - Third Party P,0090294017,DYNAMIC PEOPLE LTD,109.56,02/10/2020
Delivery Units,Adults and Health,Other Agencies - Third Party P,0090294018,DYNAMIC PEOPLE LTD,91.30,02/10/2020
Delivery Units,Adults and Health,Other Agencies - Third Party P,0090294019,DYNAMIC PEOPLE LTD,255.64,02/10/2020
Delivery Units,Adults and Health,Other Agencies - Third Party P,0090294020,DYNAMIC PEOPLE LTD,36.52,02/10/2020
Delivery Units,Adults and Health,Other Agencies - Third Party P,0090294021,DYNAMIC PEOPLE LTD,31.96,02/10/2020
Delivery Units,Adults and Health,Other Agencies - Third Party P,0090294022,DYNAMIC PEOPLE LTD,95.86,02/10/2020
Delivery Units,Adults and Health,Other Agencies - Third Party P,0090294023,DYNAMIC PEOPLE LTD,50.22,02/10/2020
Delivery Units,Adults and Health,Other Agencies - Third Party P,0090294024,DYNAMIC PEOPLE LTD,255.64,02/10/2020
Delivery Units,Adults and Health,Other Agencies - Third Party P,0090294025,DYNAMIC PEOPLE LTD,63.91,02/10/2020
Delivery Units,Adults and Health,Other Agencies - Third Party P,0090294026,DYNAMIC PEOPLE LTD,159.78,02/10/2020
Delivery Units,Adults and Health,Other Agencies - Third Party P,0090294027,DYNAMIC PEOPLE LTD,447.37,02/10/2020
Delivery Units,Adults and Health,Other Agencies - Third Party P,0090294028,DYNAMIC PEOPLE LTD,127.82,02/10/2020
Delivery Units,Adults and Health,Other Agencies - Third Party P,0090294029,DYNAMIC PEOPLE LTD,159.78,02/10/2020
Delivery Units,Adults and Health,Other Agencies - Third Party P,0090294030,DYNAMIC PEOPLE LTD,127.82,02/10/2020
Delivery Units,Adults and Health,Other Agencies - Third Party P,0090294031,DYNAMIC PEOPLE LTD,41.08,02/10/2020
Delivery Units,Adults and Health,Other Agencies - Third Party P,0090294032,DYNAMIC PEOPLE LTD,77.60,02/10/2020
Delivery Units,Adults and Health,Other Agencies - Third Party P,0090294033,DYNAMIC PEOPLE LTD,95.86,02/10/2020
Delivery Units,Adults and Health,Other Agencies - Third Party P,0090294034,DYNAMIC PEOPLE LTD,200.86,02/10/2020
Delivery Units,Adults and Health,Other Agencies - Third Party P,0090294035,DYNAMIC PEOPLE LTD,95.86,02/10/2020
Delivery Units,Adults and Health,Other Agencies - Third Party P,0090294036,DYNAMIC PEOPLE LTD,187.17,02/10/2020
Delivery Units,Adults and Health,Other Agencies - Third Party P,0090294037,DYNAMIC PEOPLE LTD,127.82,02/10/2020
Delivery Units,Adults and Health,Other Agencies - Third Party P,0090294038,DYNAMIC PEOPLE LTD,18.26,02/10/2020
Delivery Units,Adults and Health,Other Agencies - Third Party P,0090294039,DYNAMIC PEOPLE LTD,95.86,02/10/2020
Delivery Units,Adults and Health,Other Agencies - Third Party P,0090294040,DYNAMIC PEOPLE LTD,255.64,02/10/2020
Delivery Units,Adults and Health,Other Agencies - Third Party P,0090294041,DYNAMIC PEOPLE LTD,136.95,02/10/2020
Delivery Units,Adults and Health,Other Agencies - Third Party P,0090294042,DYNAMIC PEOPLE LTD,319.55,02/10/2020
Delivery Units,Adults and Health,Other Agencies - Third Party P,0090294043,DYNAMIC PEOPLE LTD,328.68,02/10/2020
Delivery Units,Adults and Health,Other Agencies - Third Party P,0090294044,DYNAMIC PEOPLE LTD,36.52,02/10/2020
Delivery Units,Adults and Health,Other Agencies - Third Party P,0090294045,DYNAMIC PEOPLE LTD,388.02,02/10/2020
Delivery Units,Adults and Health,Other Agencies - Third Party P,0090294046,DYNAMIC PEOPLE LTD,91.30,02/10/2020
Delivery Units,Adults and Health,Other Agencies - Third Party P,0090294047,DYNAMIC PEOPLE LTD,703.01,02/10/2020
Delivery Units,Adults and Health,Other Agencies - Third Party P,0090294048,DYNAMIC PEOPLE LTD,159.78,02/10/2020
Delivery Units,Adults and Health,Other Agencies - Third Party P,0090294049,DYNAMIC PEOPLE LTD,136.95,02/10/2020
Delivery Units,Adults and Health,Other Agencies - Third Party P,0090294050,DYNAMIC PEOPLE LTD,333.24,02/10/2020
Delivery Units,Adults and Health,Other Agencies - Third Party P,0090294051,DYNAMIC PEOPLE LTD,671.06,02/10/2020
Delivery Units,Adults and Health,Other Agencies - Third Party P,0090294052,DYNAMIC PEOPLE LTD,319.55,02/10/2020
Delivery Units,Adults and Health,Other Agencies - Third Party P,0090294053,DYNAMIC PEOPLE LTD,214.56,02/10/2020
Delivery Units,Adults and Health,Other Agencies - Third Party P,0090294054,DYNAMIC PEOPLE LTD,223.69,02/10/2020
Delivery Units,Adults and Health,Other Agencies - Third Party P,0090294055,DYNAMIC PEOPLE LTD,415.42,02/10/2020
Delivery Units,Adults and Health,Other Agencies - Third Party P,0090294056,DYNAMIC PEOPLE LTD,141.52,02/10/2020
Delivery Units,Adults and Health,Other Agencies - Third Party P,0090294057,DYNAMIC PEOPLE LTD,159.78,02/10/2020
Delivery Units,Adults and Health,Other Agencies - Third Party P,0090294058,DYNAMIC PEOPLE LTD,127.82,02/10/2020
Delivery Units,Adults and Health,Other Agencies - Third Party P,0090294059,DYNAMIC PEOPLE LTD,73.04,02/10/2020
Delivery Units,Adults and Health,Other Agencies - Third Party P,0090294060,DYNAMIC PEOPLE LTD,305.86,02/10/2020
Delivery Units,Adults and Health,Other Agencies - Third Party P,0090294061,DYNAMIC PEOPLE LTD,54.78,02/10/2020
Delivery Units,Adults and Health,Other Agencies - Third Party P,0090294062,DYNAMIC PEOPLE LTD,369.77,02/10/2020
Delivery Units,Adults and Health,Other Agencies - Third Party P,0090294063,DYNAMIC PEOPLE LTD,68.48,02/10/2020
Delivery Units,Adults and Health,Other Agencies - Third Party P,0090294064,DYNAMIC PEOPLE LTD,351.51,02/10/2020
Delivery Units,Adults and Health,Other Agencies - Third Party P,0090294065,DYNAMIC PEOPLE LTD,95.86,02/10/2020
Delivery Units,Adults and Health,Other Agencies - Third Party P,0090294066,DYNAMIC PEOPLE LTD,95.86,02/10/2020
Delivery Units,Adults and Health,Other Agencies - Third Party P,0090294067,DYNAMIC PEOPLE LTD,54.78,02/10/2020
Delivery Units,Adults and Health,Other Agencies - Third Party P,0090294068,DYNAMIC PEOPLE LTD,127.82,02/10/2020
Delivery Units,Adults and Health,Other Agencies - Third Party P,0090294069,DYNAMIC PEOPLE LTD,351.51,02/10/2020
Delivery Units,Adults and Health,Other Agencies - Third Party P,0090294070,DYNAMIC PEOPLE LTD,100.43,02/10/2020
Delivery Units,Adults and Health,Other Agencies - Third Party P,0090294071,DYNAMIC PEOPLE LTD,136.95,02/10/2020
Delivery Units,Adults and Health,Other Agencies - Third Party P,0090294072,DYNAMIC PEOPLE LTD,223.69,02/10/2020
Delivery Units,Adults and Health,Other Agencies - Third Party P,0090294073,DYNAMIC PEOPLE LTD,319.55,02/10/2020
Delivery Units,Adults and Health,Other Agencies - Third Party P,0090294074,DYNAMIC PEOPLE LTD,41.08,02/10/2020
Delivery Units,Adults and Health,Other Agencies - Third Party P,0090294075,DYNAMIC PEOPLE LTD,146.08,02/10/2020
Delivery Units,Adults and Health,Other Agencies - Third Party P,0090294076,DYNAMIC PEOPLE LTD,127.82,02/10/2020
Delivery Units,Adults and Health,Other Agencies - Third Party P,0090294077,DYNAMIC PEOPLE LTD,36.52,02/10/2020
Delivery Units,Adults and Health,Other Agencies - Third Party P,0090294078,DYNAMIC PEOPLE LTD,310.42,02/10/2020
Delivery Units,Adults and Health,Other Agencies - Third Party P,0090294079,DYNAMIC PEOPLE LTD,511.28,02/10/2020
Delivery Units,Adults and Health,Other Agencies - Third Party P,0090294080,DYNAMIC PEOPLE LTD,95.86,02/10/2020
Delivery Units,Adults and Health,Other Agencies - Third Party P,0090294081,DYNAMIC PEOPLE LTD,141.52,02/10/2020
Delivery Units,Adults and Health,Other Agencies - Third Party P,0090294082,DYNAMIC PEOPLE LTD,191.73,02/10/2020
Delivery Units,Adults and Health,Other Agencies - Third Party P,0090294083,DYNAMIC PEOPLE LTD,255.64,02/10/2020
Delivery Units,Adults and Health,Other Agencies - Third Party P,0090294084,DYNAMIC PEOPLE LTD,255.64,02/10/2020
Delivery Units,Adults and Health,Other Agencies - Third Party P,0090294085,DYNAMIC PEOPLE LTD,50.22,02/10/2020
Delivery Units,Adults and Health,Other Agencies - Third Party P,0090294086,DYNAMIC PEOPLE LTD,45.65,02/10/2020
Delivery Units,Adults and Health,Other Agencies - Third Party P,0090294087,DYNAMIC PEOPLE LTD,447.37,02/10/2020
Delivery Units,Adults and Health,Other Agencies - Third Party P,0090294088,DYNAMIC PEOPLE LTD,721.27,02/10/2020
Delivery Units,Adults and Health,Other Agencies - Third Party P,0090294089,DYNAMIC PEOPLE LTD,73.04,02/10/2020
Delivery Units,Adults and Health,Other Agencies - Third Party P,0090294090,DYNAMIC PEOPLE LTD,127.82,02/10/2020
Delivery Units,Adults and Health,Other Agencies - Third Party P,0090294091,DYNAMIC PEOPLE LTD,155.21,02/10/2020
Delivery Units,Adults and Health,Other Agencies - Third Party P,0090294092,DYNAMIC PEOPLE LTD,319.55,02/10/2020
Delivery Units,Adults and Health,Other Agencies - Third Party P,0090294093,DYNAMIC PEOPLE LTD,82.17,02/10/2020
Delivery Units,Adults and Health,Other Agencies - Third Party P,0090294094,DYNAMIC PEOPLE LTD,155.21,02/10/2020
Delivery Units,Adults and Health,Other Agencies - Third Party P,0090294095,DYNAMIC PEOPLE LTD,383.46,02/10/2020
Delivery Units,Adults and Health,Other Agencies - Third Party P,0090294096,DYNAMIC PEOPLE LTD,95.86,02/10/2020
Delivery Units,Adults and Health,Other Agencies - Third Party P,0090294097,DYNAMIC PEOPLE LTD,146.08,02/10/2020
Delivery Units,Adults and Health,Other Agencies - Third Party P,0090294098,DYNAMIC PEOPLE LTD,127.82,02/10/2020
Delivery Units,Adults and Health,Other Agencies - Third Party P,0090294099,DYNAMIC PEOPLE LTD,260.21,02/10/2020
Delivery Units,Adults and Health,Other Agencies - Third Party P,0090294100,DYNAMIC PEOPLE LTD,95.86,02/10/2020
Delivery Units,Adults and Health,Other Agencies - Third Party P,0090294101,DYNAMIC PEOPLE LTD,173.47,02/10/2020
Delivery Units,Adults and Health,Other Agencies - Third Party P,0090294102,DYNAMIC PEOPLE LTD,109.56,02/10/2020
Delivery Units,Adults and Health,Other Agencies - Third Party P,0090294103,DYNAMIC PEOPLE LTD,693.88,02/10/2020
Delivery Units,Adults and Health,Other Agencies - Third Party P,0090294104,DYNAMIC PEOPLE LTD,511.28,02/10/2020
Delivery Units,Adults and Health,Other Agencies - Third Party P,0090294105,DYNAMIC PEOPLE LTD,54.78,02/10/2020
Delivery Units,Adults and Health,Other Agencies - Third Party P,0090294106,DYNAMIC PEOPLE LTD,246.51,02/10/2020
Delivery Units,Adults and Health,Other Agencies - Third Party P,0090294107,DYNAMIC PEOPLE LTD,196.30,02/10/2020
Delivery Units,Adults and Health,Other Agencies - Third Party P,0090294108,DYNAMIC PEOPLE LTD,310.42,02/10/2020
Delivery Units,Adults and Health,Other Agencies - Third Party P,0090294109,DYNAMIC PEOPLE LTD,200.86,02/10/2020
Delivery Units,Adults and Health,Other Agencies - Third Party P,0090294110,DYNAMIC PEOPLE LTD,27.39,02/10/2020
Delivery Units,Adults and Health,Other Agencies - Third Party P,0090294111,DYNAMIC PEOPLE LTD,337.81,02/10/2020
Delivery Units,Adults and Health,Other Agencies - Third Party P,0090294112,DYNAMIC PEOPLE LTD,319.55,02/10/2020
Delivery Units,Adults and Health,Other Agencies - Third Party P,0090294113,DYNAMIC PEOPLE LTD,337.81,02/10/2020
Delivery Units,Adults and Health,Other Agencies - Third Party P,0090294114,DYNAMIC PEOPLE LTD,287.60,02/10/2020
Delivery Units,Adults and Health,Other Agencies - Third Party P,0090294115,DYNAMIC PEOPLE LTD,95.86,02/10/2020
Delivery Units,Adults and Health,Other Agencies - Third Party P,0090294116,DYNAMIC PEOPLE LTD,228.25,02/10/2020
Delivery Units,Adults and Health,Other Agencies - Third Party P,0090294117,DYNAMIC PEOPLE LTD,91.30,02/10/2020
Delivery Units,Adults and Health,Other Agencies - Third Party P,0090294118,DYNAMIC PEOPLE LTD,283.03,02/10/2020
Delivery Units,Adults and Health,Other Agencies - Third Party P,0090294119,DYNAMIC PEOPLE LTD,100.43,02/10/2020
Delivery Units,Adults and Health,Other Agencies - Third Party P,0090294120,DYNAMIC PEOPLE LTD,95.86,02/10/2020
Delivery Units,Adults and Health,Other Agencies - Third Party P,0090294121,DYNAMIC PEOPLE LTD,27.39,02/10/2020
Delivery Units,Adults and Health,Other Agencies - Third Party P,0090294122,DYNAMIC PEOPLE LTD,95.86,02/10/2020
Delivery Units,Adults and Health,Other Agencies - Third Party P,0090294123,DYNAMIC PEOPLE LTD,127.82,02/10/2020
Delivery Units,Adults and Health,Other Agencies - Third Party P,0090294124,DYNAMIC PEOPLE LTD,73.04,02/10/2020
Delivery Units,Adults and Health,Other Agencies - Third Party P,0090294125,DYNAMIC PEOPLE LTD,511.28,02/10/2020
Delivery Units,Adults and Health,Other Agencies - Third Party P,0090294126,DYNAMIC PEOPLE LTD,127.82,02/10/2020
Delivery Units,Adults and Health,Other Agencies - Third Party P,0090294127,DYNAMIC PEOPLE LTD,356.07,02/10/2020
Delivery Units,Adults and Health,Other Agencies - Third Party P,0090294128,DYNAMIC PEOPLE LTD,205.42,02/10/2020
Delivery Units,Adults and Health,Other Agencies - Third Party P,0090294129,ST GEORGES HOME CARE LTD,11.25,02/10/2020
Delivery Units,Adults and Health,Other Agencies - Third Party P,0090294130,ST GEORGES HOME CARE LTD,5.25,02/10/2020
Delivery Units,Adults and Health,Other Agencies - Third Party P,0090294131,ST GEORGES HOME CARE LTD,8.25,02/10/2020
Delivery Units,Adults and Health,Other Agencies - Third Party P,0090294132,ST GEORGES HOME CARE LTD,11.81,02/10/2020
Delivery Units,Adults and Health,Other Agencies - Third Party P,0090294133,ST GEORGES HOME CARE LTD,11.25,02/10/2020
Delivery Units,Adults and Health,Other Agencies - Third Party P,0090294134,ST GEORGES HOME CARE LTD,0.56,02/10/2020
Delivery Units,Adults and Health,Other Agencies - Third Party P,0090294135,ST GEORGES HOME CARE LTD,4.50,02/10/2020
Delivery Units,Adults and Health,Other Agencies - Third Party P,0090294136,ST GEORGES HOME CARE LTD,5.25,02/10/2020
Delivery Units,Adults and Health,Other Agencies - Third Party P,0090294137,ST GEORGES HOME CARE LTD,3.94,02/10/2020
Delivery Units,Adults and Health,Other Agencies - Third Party P,0090294138,ST GEORGES HOME CARE LTD,10.88,02/10/2020
Delivery Units,Adults and Health,Other Agencies - Third Party P,0090294139,ST GEORGES HOME CARE LTD,3.75,02/10/2020
Delivery Units,Adults and Health,Other Agencies - Third Party P,0090294140,ST GEORGES HOME CARE LTD,110.25,02/10/2020
Delivery Units,Adults and Health,Other Agencies - Third Party P,0090294141,ST GEORGES HOME CARE LTD,23.62,02/10/2020
Delivery Units,Adults and Health,Other Agencies - Third Party P,0090294142,ST GEORGES HOME CARE LTD,110.25,02/10/2020
Delivery Units,Adults and Health,Other Agencies - Third Party P,0090294143,ST GEORGES HOME CARE LTD,63.00,02/10/2020
Delivery Units,Adults and Health,Other Agencies - Third Party P,0090294144,ST GEORGES HOME CARE LTD,110.25,02/10/2020
Delivery Units,Adults and Health,Other Agencies - Third Party P,0090294145,ST GEORGES HOME CARE LTD,11.81,02/10/2020
Delivery Units,Adults and Health,Other Agencies - Third Party P,0090294146,ST GEORGES HOME CARE LTD,11.81,02/10/2020
Delivery Units,Adults and Health,Other Agencies - Third Party P,0090294147,ST GEORGES HOME CARE LTD,11.81,02/10/2020
Delivery Units,Adults and Health,Other Agencies - Third Party P,0090294148,ST GEORGES HOME CARE LTD,11.81,02/10/2020
Delivery Units,Adults and Health,Other Agencies - Third Party P,0090294149,ST GEORGES HOME CARE LTD,192.94,02/10/2020
Delivery Units,Adults and Health,Other Agencies - Third Party P,0090294150,ST GEORGES HOME CARE LTD,192.94,02/10/2020
Delivery Units,Adults and Health,Other Agencies - Third Party P,0090294151,ST GEORGES HOME CARE LTD,192.94,02/10/2020
Delivery Units,Adults and Health,Other Agencies - Third Party P,0090294152,ST GEORGES HOME CARE LTD,192.94,02/10/2020
Delivery Units,Adults and Health,Other Agencies - Third Party P,0090294153,ST GEORGES HOME CARE LTD,551.25,02/10/2020
Delivery Units,Adults and Health,Other Agencies - Third Party P,0090294154,ST GEORGES HOME CARE LTD,551.25,02/10/2020
Delivery Units,Adults and Health,Other Agencies - Third Party P,0090294155,ST GEORGES HOME CARE LTD,551.25,02/10/2020
Delivery Units,Adults and Health,Other Agencies - Third Party P,0090294156,ST GEORGES HOME CARE LTD,551.25,02/10/2020
Delivery Units,Adults and Health,Other Agencies - Third Party P,0090294157,ST GEORGES HOME CARE LTD,220.50,02/10/2020
Delivery Units,Adults and Health,Other Agencies - Third Party P,0090294158,ST GEORGES HOME CARE LTD,15.75,02/10/2020
Delivery Units,Adults and Health,Other Agencies - Third Party P,0090294159,ST GEORGES HOME CARE LTD,303.19,02/10/2020
Delivery Units,Adults and Health,Other Agencies - Third Party P,0090294160,ST GEORGES HOME CARE LTD,196.88,02/10/2020
Delivery Units,Adults and Health,Other Agencies - Third Party P,0090294161,ST GEORGES HOME CARE LTD,252.00,02/10/2020
Delivery Units,Adults and Health,Other Agencies - Third Party P,0090294162,ST GEORGES HOME CARE LTD,137.81,02/10/2020
Delivery Units,Adults and Health,Other Agencies - Third Party P,0090294163,ST GEORGES HOME CARE LTD,137.81,02/10/2020
Delivery Units,Adults and Health,Other Agencies - Third Party P,0090294164,ST GEORGES HOME CARE LTD,137.81,02/10/2020
Delivery Units,Adults and Health,Other Agencies - Third Party P,0090294165,ST GEORGES HOME CARE LTD,126.00,02/10/2020
Delivery Units,Adults and Health,Other Agencies - Third Party P,0090294166,ST GEORGES HOME CARE LTD,11.81,02/10/2020
Delivery Units,Adults and Health,Other Agencies - Third Party P,0090294167,ST GEORGES HOME CARE LTD,385.88,02/10/2020
Delivery Units,Adults and Health,Other Agencies - Third Party P,0090294168,ST GEORGES HOME CARE LTD,248.06,02/10/2020
Delivery Units,Adults and Health,Other Agencies - Third Party P,0090294169,ST GEORGES HOME CARE LTD,94.50,02/10/2020
Delivery Units,Adults and Health,Other Agencies - Third Party P,0090294170,ST GEORGES HOME CARE LTD,248.06,02/10/2020
Delivery Units,Adults and Health,Other Agencies - Third Party P,0090294171,ST GEORGES HOME CARE LTD,248.06,02/10/2020
Delivery Units,Adults and Health,Other Agencies - Third Party P,0090294172,ST GEORGES HOME CARE LTD,248.06,02/10/2020
Delivery Units,Adults and Health,Other Agencies - Third Party P,0090294173,ST GEORGES HOME CARE LTD,114.19,02/10/2020
Delivery Units,Adults and Health,Other Agencies - Third Party P,0090294174,ST GEORGES HOME CARE LTD,551.25,02/10/2020
Delivery Units,Adults and Health,Other Agencies - Third Party P,0090294175,ST GEORGES HOME CARE LTD,551.25,02/10/2020
Delivery Units,Adults and Health,Other Agencies - Third Party P,0090294176,ST GEORGES HOME CARE LTD,551.25,02/10/2020
Delivery Units,Adults and Health,Other Agencies - Third Party P,0090294177,ST GEORGES HOME CARE LTD,189.00,02/10/2020
Delivery Units,Adults and Health,Other Agencies - Third Party P,0090294178,ST GEORGES HOME CARE LTD,63.00,02/10/2020
Delivery Units,Adults and Health,Other Agencies - Third Party P,0090294179,ST GEORGES HOME CARE LTD,63.00,02/10/2020
Delivery Units,Adults and Health,Other Agencies - Third Party P,0090294180,ST GEORGES HOME CARE LTD,63.00,02/10/2020
Delivery Units,Adults and Health,Other Agencies - Third Party P,0090294181,ST GEORGES HOME CARE LTD,59.06,02/10/2020
Delivery Units,Adults and Health,Other Agencies - Third Party P,0090294182,ST GEORGES HOME CARE LTD,82.69,02/10/2020
Delivery Units,Adults and Health,Other Agencies - Third Party P,0090294183,ST GEORGES HOME CARE LTD,192.94,02/10/2020
Delivery Units,Adults and Health,Other Agencies - Third Party P,0090294184,ST GEORGES HOME CARE LTD,31.50,02/10/2020
Delivery Units,Adults and Health,Other Agencies - Third Party P,0090294185,ST GEORGES HOME CARE LTD,31.50,02/10/2020
Delivery Units,Adults and Health,Other Agencies - Third Party P,0090294186,ST GEORGES HOME CARE LTD,31.50,02/10/2020
Delivery Units,Adults and Health,Other Agencies - Third Party P,0090294187,ST GEORGES HOME CARE LTD,137.81,02/10/2020
Delivery Units,Adults and Health,Other Agencies - Third Party P,0090294188,ST GEORGES HOME CARE LTD,19.69,02/10/2020
Delivery Units,Adults and Health,Other Agencies - Third Party P,0090294189,ST GEORGES HOME CARE LTD,303.19,02/10/2020
Delivery Units,Adults and Health,Other Agencies - Third Party P,0090294190,ST GEORGES HOME CARE LTD,303.19,02/10/2020
Delivery Units,Adults and Health,Other Agencies - Third Party P,0090294191,ST GEORGES HOME CARE LTD,173.25,02/10/2020
Delivery Units,Adults and Health,Other Agencies - Third Party P,0090294192,ST GEORGES HOME CARE LTD,303.19,02/10/2020
Delivery Units,Adults and Health,Other Agencies - Third Party P,0090294193,ST GEORGES HOME CARE LTD,338.62,02/10/2020
Delivery Units,Adults and Health,Other Agencies - Third Party P,0090294194,ST GEORGES HOME CARE LTD,31.50,02/10/2020
Delivery Units,Adults and Health,Other Agencies - Third Party P,0090294195,ST GEORGES HOME CARE LTD,63.00,02/10/2020
Delivery Units,Adults and Health,Other Agencies - Third Party P,0090294196,ST GEORGES HOME CARE LTD,157.50,02/10/2020
Delivery Units,Adults and Health,Other Agencies - Third Party P,0090294197,ST GEORGES HOME CARE LTD,126.00,02/10/2020
Delivery Units,Adults and Health,Other Agencies - Third Party P,0090294198,ST GEORGES HOME CARE LTD,9.00,02/10/2020
Delivery Units,Adults and Health,Other Agencies - Third Party P,0090294199,ST GEORGES HOME CARE LTD,26.25,02/10/2020
Delivery Units,Adults and Health,Other Agencies - Third Party P,0090294200,ST GEORGES HOME CARE LTD,1.13,02/10/2020
Delivery Units,Adults and Health,Other Agencies - Third Party P,0090294201,ST GEORGES HOME CARE LTD,4.88,02/10/2020
Delivery Units,Adults and Health,Other Agencies - Third Party P,0090294202,ST GEORGES HOME CARE LTD,0.56,02/10/2020
Delivery Units,Adults and Health,Other Agencies - Third Party P,0090294203,ST GEORGES HOME CARE LTD,0.56,02/10/2020
Delivery Units,Adults and Health,Other Agencies - Third Party P,0090294204,ST GEORGES HOME CARE LTD,5.25,02/10/2020
Delivery Units,Adults and Health,Other Agencies - Third Party P,0090294205,ST GEORGES HOME CARE LTD,303.19,02/10/2020
Delivery Units,Adults and Health,Other Agencies - Third Party P,0090293614,THE GRANGE,"2,458.20",02/10/2020
Delivery Units,Adults and Health,Other Agencies - Third Party P,0090293615,THE GRANGE,"3,000.00",02/10/2020
Delivery Units,Adults and Health,Other Agencies - Third Party P,0090293616,THE GRANGE,"3,000.00",02/10/2020
Delivery Units,Adults and Health,Other Agencies - Third Party P,0090293617,THE GRANGE,"2,600.00",02/10/2020
Delivery Units,Adults and Health,Other Agencies - Third Party P,0090293618,THE GRANGE,"2,458.20",02/10/2020
Delivery Units,Adults and Health,Other Agencies - Third Party P,0090293620,THE GRANGE,"3,000.00",02/10/2020
Delivery Units,Adults and Health,Other Agencies - Third Party P,0090293622,THE GRANGE,614.55,02/10/2020
Delivery Units,Adults and Health,Other Agencies - Third Party P,0090293646,THE GRANGE,614.55,02/10/2020
Delivery Units,Adults and Health,Other Agencies - Third Party P,0090293655,THE GRANGE,650.00,02/10/2020
Delivery Units,Adults and Health,Other Agencies - Third Party P,0090293676,THE GRANGE,750.00,02/10/2020
Delivery Units,Adults and Health,Other Agencies - Third Party P,0090293681,THE GRANGE,750.00,02/10/2020
Delivery Units,Adults and Health,Other Agencies - Third Party P,0090293712,THE GRANGE,750.00,02/10/2020
Delivery Units,Adults and Health,Other Agencies - Third Party P,0090293835,NATIONAL STAR COLLEGE,"8,630.40",02/10/2020
Delivery Units,Adults and Health,Other Agencies - Third Party P,0090293610,BUPA CARE HOMES,95.00,02/10/2020
Delivery Units,Adults and Health,Other Agencies - Third Party P,0090293611,BUPA CARE HOMES,"2,660.00",02/10/2020
Delivery Units,Adults and Health,Other Agencies - Third Party P,0090293612,BUPA CARE HOMES,"2,660.00",02/10/2020
Delivery Units,Adults and Health,Other Agencies - Third Party P,0090293613,BUPA CARE HOMES,"1,900.00",02/10/2020
Delivery Units,Adults and Health,Other Agencies - Third Party P,0090293621,LIFESTYLE CARE PLC,"1,884.11",02/10/2020
Delivery Units,Adults and Health,Other Agencies - Third Party P,0090293623,ASHTON LODGE CARE CENTRE,"2,766.54",02/10/2020
Delivery Units,Adults and Health,Other Agencies - Third Party P,0090293624,ASHTON LODGE CARE CENTRE,"2,438.29",02/10/2020
Delivery Units,Adults and Health,Other Agencies - Third Party P,0090293625,SAGE NURSING HOME,"1,684.46",02/10/2020
Delivery Units,Adults and Health,Other Agencies - Third Party P,0090293627,BUPA CARE HOMES,"2,071.43",02/10/2020
Delivery Units,Adults and Health,Other Agencies - Third Party P,0090293628,SAGE NURSING HOME,"2,714.29",02/10/2020
Delivery Units,Adults and Health,Other Agencies - Third Party P,0090293629,ASHTON LODGE CARE CENTRE,"2,717.89",02/10/2020
Delivery Units,Adults and Health,Other Agencies - Third Party P,0090293630,ELEANOR PALMER TRUST NO 2 A/C.,"1,697.00",02/10/2020
Delivery Units,Adults and Health,Other Agencies - Third Party P,0090293631,ELEANOR PALMER TRUST NO 2 A/C.,"1,697.00",02/10/2020
Delivery Units,Adults and Health,Other Agencies - Third Party P,0090293632,ASHTON LODGE CARE CENTRE,"1,886.43",02/10/2020
Delivery Units,Adults and Health,Other Agencies - Third Party P,0090293633,ELEANOR PALMER TRUST NO 2 A/C.,"2,164.29",02/10/2020
Delivery Units,Adults and Health,Other Agencies - Third Party P,0090293635,BUPA CARE HOMES,"2,571.43",02/10/2020
Delivery Units,Adults and Health,Other Agencies - Third Party P,0090293636,ASHTON LODGE CARE CENTRE,"2,384.11",02/10/2020
Delivery Units,Adults and Health,Other Agencies - Third Party P,0090293637,BUPA CARE HOMES,"1,780.77",02/10/2020
Delivery Units,Adults and Health,Other Agencies - Third Party P,0090293638,ELEANOR PALMER TRUST NO 2 A/C.,"2,142.86",02/10/2020
Delivery Units,Adults and Health,Other Agencies - Third Party P,0090293639,LIFESTYLE CARE PLC,"1,884.11",02/10/2020
Delivery Units,Adults and Health,Other Agencies - Third Party P,0090293640,LIFESTYLE CARE PLC,"1,884.11",02/10/2020
Delivery Units,Adults and Health,Other Agencies - Third Party P,0090293641,BUPA CARE HOMES,"1,900.00",02/10/2020
Delivery Units,Adults and Health,Other Agencies - Third Party P,0090293642,BUPA CARE HOMES,"2,342.86",02/10/2020
Delivery Units,Adults and Health,Other Agencies - Third Party P,0090293644,LIFESTYLE CARE PLC,"1,884.11",02/10/2020
Delivery Units,Adults and Health,Other Agencies - Third Party P,0090293645,AARANDALE MANOR CARE HOME,"5,085.69",02/10/2020
Delivery Units,Adults and Health,Other Agencies - Third Party P,0090293647,AARANDALE MANOR CARE HOME,"2,542.86",02/10/2020
Delivery Units,Adults and Health,Other Agencies - Third Party P,0090293648,AARANDALE MANOR CARE HOME,"2,542.86",02/10/2020
Delivery Units,Adults and Health,Other Agencies - Third Party P,0090293652,BUPA CARE HOMES,"1,659.49",02/10/2020
Delivery Units,Adults and Health,Other Agencies - Third Party P,0090293653,ELEANOR PALMER TRUST NO 2 A/C.,"2,213.20",02/10/2020
Delivery Units,Adults and Health,Other Agencies - Third Party P,0090293660,ASHTON LODGE CARE CENTRE,"2,188.17",02/10/2020
Delivery Units,Adults and Health,Other Agencies - Third Party P,0090293662,SAGE NURSING HOME,"3,273.83",02/10/2020
Delivery Units,Adults and Health,Other Agencies - Third Party P,0090293666,ASHTON LODGE CARE CENTRE,"2,041.31",02/10/2020
Delivery Units,Adults and Health,Other Agencies - Third Party P,0090293668,ASHTON LODGE CARE CENTRE,"2,812.69",02/10/2020
Delivery Units,Adults and Health,Other Agencies - Third Party P,0090293669,ASHTON LODGE CARE CENTRE,"2,262.40",02/10/2020
Delivery Units,Adults and Health,Other Agencies - Third Party P,0090293670,ASHTON LODGE CARE CENTRE,"2,812.69",02/10/2020
Delivery Units,Adults and Health,Other Agencies - Third Party P,0090293671,ELEANOR PALMER TRUST NO 2 A/C.,"2,142.86",02/10/2020
Delivery Units,Adults and Health,Other Agencies - Third Party P,0090293673,BUPA CARE HOMES,"1,757.13",02/10/2020
Delivery Units,Adults and Health,Other Agencies - Third Party P,0090293674,LIFESTYLE CARE PLC,"11,964.21",02/10/2020
Delivery Units,Adults and Health,Other Agencies - Third Party P,0090293678,LIFESTYLE CARE PLC,"1,884.11",02/10/2020
Delivery Units,Adults and Health,Other Agencies - Third Party P,0090293680,AARANDALE MANOR CARE HOME,"2,542.86",02/10/2020
Delivery Units,Adults and Health,Other Agencies - Third Party P,0090293682,AARANDALE MANOR CARE HOME,"2,542.86",02/10/2020
Delivery Units,Adults and Health,Other Agencies - Third Party P,0090293683,BUPA CARE HOMES,"2,714.29",02/10/2020
Delivery Units,Adults and Health,Other Agencies - Third Party P,0090293684,SAGE NURSING HOME,"1,903.13",02/10/2020
Delivery Units,Adults and Health,Other Agencies - Third Party P,0090293686,BUPA CARE HOMES,"2,670.63",02/10/2020
Delivery Units,Adults and Health,Other Agencies - Third Party P,0090293687,LIFESTYLE CARE PLC,"1,884.11",02/10/2020
Delivery Units,Adults and Health,Other Agencies - Third Party P,0090293688,ASHTON LODGE CARE CENTRE,"2,037.80",02/10/2020
Delivery Units,Adults and Health,Other Agencies - Third Party P,0090293690,ELEANOR PALMER TRUST NO 2 A/C.,"1,632.34",02/10/2020
Delivery Units,Adults and Health,Other Agencies - Third Party P,0090293691,SAGE NURSING HOME,"1,714.29",02/10/2020
Delivery Units,Adults and Health,Other Agencies - Third Party P,0090293692,ASHTON LODGE CARE CENTRE,"2,862.17",02/10/2020
Delivery Units,Adults and Health,Other Agencies - Third Party P,0090293695,ASHTON LODGE CARE CENTRE,"2,285.03",02/10/2020
Delivery Units,Adults and Health,Other Agencies - Third Party P,0090293700,BUPA CARE HOMES,"1,900.00",02/10/2020
Delivery Units,Adults and Health,Other Agencies - Third Party P,0090293701,ELEANOR PALMER TRUST NO 2 A/C.,"2,164.29",02/10/2020
Delivery Units,Adults and Health,Other Agencies - Third Party P,0090293704,SAGE NURSING HOME,"2,000.00",02/10/2020
Delivery Units,Adults and Health,Other Agencies - Third Party P,0090293705,BUPA CARE HOMES,"1,900.00",02/10/2020
Delivery Units,Adults and Health,Other Agencies - Third Party P,0090293707,ELEANOR PALMER TRUST NO 2 A/C.,"2,142.86",02/10/2020
Delivery Units,Adults and Health,Other Agencies - Third Party P,0090293708,ELEANOR PALMER TRUST NO 2 A/C.,"2,142.86",02/10/2020
Delivery Units,Adults and Health,Other Agencies - Third Party P,0090293709,LIFESTYLE CARE PLC,"1,884.11",02/10/2020
Delivery Units,Adults and Health,Other Agencies - Third Party P,0090293711,LIFESTYLE CARE PLC,"1,884.11",02/10/2020
Delivery Units,Adults and Health,Other Agencies - Third Party P,0090293713,ELEANOR PALMER TRUST NO 2 A/C.,"2,142.86",02/10/2020
Delivery Units,Adults and Health,Other Agencies - Third Party P,0090293714,LIFESTYLE CARE PLC,"1,884.11",02/10/2020
Delivery Units,Adults and Health,Other Agencies - Third Party P,0090293715,AARANDALE MANOR CARE HOME,"2,542.86",02/10/2020
Delivery Units,Adults and Health,Other Agencies - Third Party P,0090293716,AARANDALE MANOR CARE HOME,"2,542.86",02/10/2020
Delivery Units,Adults and Health,Other Agencies - Third Party P,0090293717,LIFESTYLE CARE PLC,"1,884.11",02/10/2020
Delivery Units,Adults and Health,Other Agencies - Third Party P,0090293718,BUPA CARE HOMES,"2,309.94",02/10/2020
Delivery Units,Adults and Health,Other Agencies - Third Party P,0090293720,BUPA CARE HOMES,"2,356.11",02/10/2020
Delivery Units,Adults and Health,Other Agencies - Third Party P,0090293722,AARANDALE MANOR CARE HOME,"1,853.77",02/10/2020
Delivery Units,Adults and Health,Other Agencies - Third Party P,0090293723,ASHTON LODGE CARE CENTRE,"2,285.03",02/10/2020
Delivery Units,Adults and Health,Other Agencies - Third Party P,0090293725,ASHTON LODGE CARE CENTRE,"2,481.91",02/10/2020
Delivery Units,Adults and Health,Other Agencies - Third Party P,0090293726,ELEANOR PALMER TRUST NO 2 A/C.,"2,213.20",02/10/2020
Delivery Units,Adults and Health,Other Agencies - Third Party P,0090293728,ELEANOR PALMER TRUST NO 2 A/C.,"1,632.34",02/10/2020
Delivery Units,Adults and Health,Other Agencies - Third Party P,0090293730,ASHTON LODGE CARE CENTRE,"2,349.89",02/10/2020
Delivery Units,Adults and Health,Other Agencies - Third Party P,0090293732,ASHTON LODGE CARE CENTRE,"2,775.66",02/10/2020
Delivery Units,Adults and Health,Other Agencies - Third Party P,0090293733,ELEANOR PALMER TRUST NO 2 A/C.,"1,697.00",02/10/2020
Delivery Units,Adults and Health,Other Agencies - Third Party P,0090293734,ELEANOR PALMER TRUST NO 2 A/C.,"2,164.29",02/10/2020
Delivery Units,Adults and Health,Other Agencies - Third Party P,0090293736,ELEANOR PALMER TRUST NO 2 A/C.,"2,142.86",02/10/2020
Delivery Units,Adults and Health,Other Agencies - Third Party P,0090293738,ASHTON LODGE CARE CENTRE,"3,384.11",02/10/2020
Delivery Units,Adults and Health,Other Agencies - Third Party P,0090293741,LIFESTYLE CARE PLC,"1,224.67",02/10/2020
Delivery Units,Adults and Health,Other Agencies - Third Party P,0090293742,ELEANOR PALMER TRUST NO 2 A/C.,"2,142.86",02/10/2020
Delivery Units,Adults and Health,Other Agencies - Third Party P,0090293743,BUPA CARE HOMES,"2,342.86",02/10/2020
Delivery Units,Adults and Health,Other Agencies - Third Party P,0090293744,ASHTON LODGE CARE CENTRE,"2,669.83",02/10/2020
Delivery Units,Adults and Health,Other Agencies - Third Party P,0090293746,ELEANOR PALMER TRUST NO 2 A/C.,321.43,02/10/2020
Delivery Units,Adults and Health,Other Agencies - Third Party P,0090293747,BUPA CARE HOMES,"1,900.00",02/10/2020
Delivery Units,Adults and Health,Other Agencies - Third Party P,0090293748,AARANDALE MANOR CARE HOME,"2,542.86",02/10/2020
Delivery Units,Adults and Health,Other Agencies - Third Party P,0090293749,AARANDALE MANOR CARE HOME,"2,542.86",02/10/2020
Delivery Units,Adults and Health,Other Agencies - Third Party P,0090293750,ELEANOR PALMER TRUST NO 2 A/C.,"2,142.86",02/10/2020
Delivery Units,Adults and Health,Other Agencies - Third Party P,0090293751,LIFESTYLE CARE PLC,"1,884.11",02/10/2020
Delivery Units,Adults and Health,Other Agencies - Third Party P,0090293752,ELEANOR PALMER TRUST NO 2 A/C.,"1,607.00",02/10/2020
Delivery Units,Adults and Health,Other Agencies - Third Party P,0090293753,AARANDALE MANOR CARE HOME,"8,527.35",02/10/2020
Delivery Units,Adults and Health,Other Agencies - Third Party P,0090293823,WILSMERE HOUSE CARE CENTRE,"4,748.23",02/10/2020
Delivery Units,Adults and Health,Other Agencies - Third Party P,0090293824,WILSMERE HOUSE CARE CENTRE,"4,818.73",02/10/2020
Delivery Units,Adults and Health,Other Agencies - Third Party P,0090293825,WILSMERE HOUSE CARE CENTRE,"6,214.29",02/10/2020
Delivery Units,Adults and Health,Other Agencies - Third Party P,0090293826,WILSMERE HOUSE CARE CENTRE,"5,357.14",02/10/2020
Delivery Units,Adults and Health,Other Agencies - Third Party P,0090293827,JEMINI RESPONSE,"18,850.00",02/10/2020
Delivery Units,Adults and Health,Other Agencies - Third Party P,0090293828,DANA CARE LIMITED,"9,582.86",02/10/2020
Delivery Units,Adults and Health,Other Agencies - Third Party P,0090293832,HC-ONE OVAL LTD,"2,292.21",02/10/2020
Delivery Units,Adults and Health,Other Agencies - Third Party P,0090293834,BARCHESTER HEALTHCARE HOMES LTD (BROOK,"4,071.43",02/10/2020
Delivery Units,Adults and Health,Other Agencies - Third Party P,0090293836,TREEHAVEN,"6,000.00",02/10/2020
Delivery Units,Adults and Health,Other Agencies - Third Party P,0090293837,TREEHAVEN,"13,587.13",02/10/2020
Delivery Units,Adults and Health,Other Agencies - Third Party P,0090294214,TENTERDEN HOUSE,"3,829.84",05/10/2020
Delivery Units,Adults and Health,Other Agencies - Third Party P,0090294222,HESLEY GROUP,"19,181.40",05/10/2020
Delivery Units,Adults and Health,Other Agencies - Third Party P,0090294255,SPRINGVILLA CARE LTD,392.00,05/10/2020
Delivery Units,Adults and Health,Other Agencies - Third Party P,0090294256,SPRINGVILLA CARE LTD,"1,976.00",05/10/2020
Delivery Units,Adults and Health,Other Agencies - Third Party P,0090294257,SPRINGVILLA CARE LTD,"1,008.00",05/10/2020
Delivery Units,Adults and Health,Other Agencies - Third Party P,0090294258,SPRINGVILLA CARE LTD,808.00,05/10/2020
Delivery Units,Adults and Health,Other Agencies - Third Party P,0090294262,BLUEBIRD CARE CAMDEN & HAMPSTEAD,"2,753.00",05/10/2020
Delivery Units,Adults and Health,Other Agencies - Third Party P,0090294304,SERVESOUL LIMITED,251.86,05/10/2020
Delivery Units,Adults and Health,Other Agencies - Third Party P,0090294305,SERVESOUL LIMITED,629.65,05/10/2020
Delivery Units,Adults and Health,Other Agencies - Third Party P,0090294306,SERVESOUL LIMITED,188.90,05/10/2020
Delivery Units,Adults and Health,Other Agencies - Third Party P,0090294307,SERVESOUL LIMITED,215.88,05/10/2020
Delivery Units,Adults and Health,Other Agencies - Third Party P,0090294308,SERVESOUL LIMITED,67.46,05/10/2020
Delivery Units,Adults and Health,Other Agencies - Third Party P,0090294309,SERVESOUL LIMITED,314.83,05/10/2020
Delivery Units,Adults and Health,Other Agencies - Third Party P,0090294310,SERVESOUL LIMITED,782.57,05/10/2020
Delivery Units,Adults and Health,Other Agencies - Third Party P,0090294311,SERVESOUL LIMITED,62.97,05/10/2020
Delivery Units,Adults and Health,Other Agencies - Third Party P,0090294312,SERVESOUL LIMITED,116.94,05/10/2020
Delivery Units,Adults and Health,Other Agencies - Third Party P,0090294313,SERVESOUL LIMITED,251.86,05/10/2020
Delivery Units,Adults and Health,Other Agencies - Third Party P,0090294314,SERVESOUL LIMITED,188.90,05/10/2020
Delivery Units,Adults and Health,Other Agencies - Third Party P,0090294315,SERVESOUL LIMITED,472.24,05/10/2020
Delivery Units,Adults and Health,Other Agencies - Third Party P,0090294316,SERVESOUL LIMITED,521.71,05/10/2020
Delivery Units,Adults and Health,Other Agencies - Third Party P,0090294317,SERVESOUL LIMITED,125.93,05/10/2020
Delivery Units,Adults and Health,Other Agencies - Third Party P,0090294318,SERVESOUL LIMITED,629.65,05/10/2020
Delivery Units,Adults and Health,Other Agencies - Third Party P,0090294319,SERVESOUL LIMITED,"1,605.61",05/10/2020
Delivery Units,Adults and Health,Other Agencies - Third Party P,0090294320,SERVESOUL LIMITED,346.31,05/10/2020
Delivery Units,Adults and Health,Other Agencies - Third Party P,0090294321,SERVESOUL LIMITED,647.64,05/10/2020
Delivery Units,Adults and Health,Other Agencies - Third Party P,0090294322,SERVESOUL LIMITED,283.34,05/10/2020
Delivery Units,Adults and Health,Other Agencies - Third Party P,0090294323,SERVESOUL LIMITED,395.78,05/10/2020
Delivery Units,Adults and Health,Other Agencies - Third Party P,0090294324,SERVESOUL LIMITED,557.69,05/10/2020
Delivery Units,Adults and Health,Other Agencies - Third Party P,0090294325,SERVESOUL LIMITED,157.41,05/10/2020
Delivery Units,Adults and Health,Other Agencies - Third Party P,0090294326,SERVESOUL LIMITED,301.33,05/10/2020
Delivery Units,Adults and Health,Other Agencies - Third Party P,0090294327,SERVESOUL LIMITED,427.26,05/10/2020
Delivery Units,Adults and Health,Other Agencies - Third Party P,0090294328,SERVESOUL LIMITED,220.38,05/10/2020
Delivery Units,Adults and Health,Other Agencies - Third Party P,0090294329,SERVESOUL LIMITED,157.41,05/10/2020
Delivery Units,Adults and Health,Other Agencies - Third Party P,0090294330,SERVESOUL LIMITED,94.45,05/10/2020
Delivery Units,Adults and Health,Other Agencies - Third Party P,0090294331,SERVESOUL LIMITED,188.90,05/10/2020
Delivery Units,Adults and Health,Other Agencies - Third Party P,0090294332,SERVESOUL LIMITED,647.64,05/10/2020
Delivery Units,Adults and Health,Other Agencies - Third Party P,0090294333,SERVESOUL LIMITED,53.97,05/10/2020
Delivery Units,Adults and Health,Other Agencies - Third Party P,0090294334,SERVESOUL LIMITED,125.93,05/10/2020
Delivery Units,Adults and Health,Other Agencies - Third Party P,0090294335,SERVESOUL LIMITED,359.80,05/10/2020
Delivery Units,Adults and Health,Other Agencies - Third Party P,0090294336,SERVESOUL LIMITED,94.45,05/10/2020
Delivery Units,Adults and Health,Other Agencies - Third Party P,0090294337,SERVESOUL LIMITED,220.38,05/10/2020
Delivery Units,Adults and Health,Other Agencies - Third Party P,0090294338,SERVESOUL LIMITED,188.90,05/10/2020
Delivery Units,Adults and Health,Other Agencies - Third Party P,0090294339,SERVESOUL LIMITED,125.93,05/10/2020
Delivery Units,Adults and Health,Other Agencies - Third Party P,0090294340,SERVESOUL LIMITED,94.45,05/10/2020
Delivery Units,Adults and Health,Other Agencies - Third Party P,0090294341,SERVESOUL LIMITED,440.76,05/10/2020
Delivery Units,Adults and Health,Other Agencies - Third Party P,0090294342,SERVESOUL LIMITED,220.38,05/10/2020
Delivery Units,Adults and Health,Other Agencies - Third Party P,0090294343,SERVESOUL LIMITED,188.90,05/10/2020
Delivery Units,Adults and Health,Other Agencies - Third Party P,0090294344,SERVESOUL LIMITED,220.38,05/10/2020
Delivery Units,Adults and Health,Other Agencies - Third Party P,0090294345,SERVESOUL LIMITED,125.93,05/10/2020
Delivery Units,Adults and Health,Other Agencies - Third Party P,0090294346,SERVESOUL LIMITED,566.69,05/10/2020
Delivery Units,Adults and Health,Other Agencies - Third Party P,0090294347,SERVESOUL LIMITED,503.72,05/10/2020
Delivery Units,Adults and Health,Other Agencies - Third Party P,0090294348,SERVESOUL LIMITED,395.78,05/10/2020
Delivery Units,Adults and Health,Other Agencies - Third Party P,0090294349,SERVESOUL LIMITED,440.76,05/10/2020
Delivery Units,Adults and Health,Other Agencies - Third Party P,0090294350,SERVESOUL LIMITED,314.83,05/10/2020
Delivery Units,Adults and Health,Other Agencies - Third Party P,0090294351,SERVESOUL LIMITED,490.23,05/10/2020
Delivery Units,Adults and Health,Other Agencies - Third Party P,0090294352,SERVESOUL LIMITED,629.65,05/10/2020
Delivery Units,Adults and Health,Other Agencies - Third Party P,0090294353,SERVESOUL LIMITED,35.98,05/10/2020
Delivery Units,Adults and Health,Other Agencies - Third Party P,0090294354,SERVESOUL LIMITED,"1,070.41",05/10/2020
Delivery Units,Adults and Health,Other Agencies - Third Party P,0090294355,SERVESOUL LIMITED,94.45,05/10/2020
Delivery Units,Adults and Health,Other Agencies - Third Party P,0090294356,SERVESOUL LIMITED,206.89,05/10/2020
Delivery Units,Adults and Health,Other Agencies - Third Party P,0090294357,SERVESOUL LIMITED,71.96,05/10/2020
Delivery Units,Adults and Health,Other Agencies - Third Party P,0090294358,SERVESOUL LIMITED,"1,133.37",05/10/2020
Delivery Units,Adults and Health,Other Agencies - Third Party P,0090294359,SERVESOUL LIMITED,71.96,05/10/2020
Delivery Units,Adults and Health,Other Agencies - Third Party P,0090294363,METRO HOMECARE LTD,187.00,05/10/2020
Delivery Units,Adults and Health,Other Transfer Payments to Soc,1004249302,ORIGIN HOUSING LIMITED,"3,920.00",05/10/2020
Delivery Units,Adults and Health,Other Transfer Payments to Soc,1004250602,ORIGIN HOUSING LIMITED,"3,920.00",05/10/2020
Delivery Units,Adults and Health,Other Agencies - Third Party P,0090294211,ST ANNS HOME-LITTLE SISTERS OF THE POOR,"2,343.56",05/10/2020
Delivery Units,Adults and Health,Other Agencies - Third Party P,0090294244,SELF UNLIMITED-LONDON REGION,"4,969.44",05/10/2020
Delivery Units,Adults and Health,Other Agencies - Third Party P,0090294245,SELF UNLIMITED-LONDON REGION,"4,969.44",05/10/2020
Delivery Units,Adults and Health,Other Agencies - Third Party P,0090294246,SELF UNLIMITED-LONDON REGION,"5,118.52",05/10/2020
Delivery Units,Adults and Health,Other Agencies - Third Party P,0090294247,SELF UNLIMITED-LONDON REGION,"5,118.52",05/10/2020
Delivery Units,Adults and Health,Other Agencies - Third Party P,0090294248,SELF UNLIMITED-LONDON REGION,"5,118.52",05/10/2020
Delivery Units,Adults and Health,Other Agencies - Third Party P,0090294249,SELF UNLIMITED-LONDON REGION,"4,969.44",05/10/2020
Delivery Units,Adults and Health,Other Agencies - Third Party P,0090294250,SELF UNLIMITED-LONDON REGION,"4,969.44",05/10/2020
Delivery Units,Adults and Health,Other Agencies - Third Party P,0090294251,SELF UNLIMITED-LONDON REGION,"4,969.44",05/10/2020
Delivery Units,Adults and Health,Other Agencies - Third Party P,0090294252,SELF UNLIMITED-LONDON REGION,"4,969.44",05/10/2020
Delivery Units,Adults and Health,Other Agencies - Third Party P,0090294253,SELF UNLIMITED-LONDON REGION,697.48,05/10/2020
Delivery Units,Adults and Health,Other Agencies - Third Party P,0090294254,SELF UNLIMITED-LONDON REGION,697.48,05/10/2020
Delivery Units,Adults and Health,Other Agencies - Third Party P,0090294208,AGUDAS ISRAEL HOUSING ASSCTN LTD,"2,648.57",05/10/2020
Delivery Units,Adults and Health,Other Agencies - Third Party P,0090294209,AGUDAS ISRAEL HOUSING ASSCTN LTD,"4,684.29",05/10/2020
Delivery Units,Adults and Health,Other Agencies - Third Party P,0090294206,CONTEMPLATION HOMES,"3,409.78",05/10/2020
Delivery Units,Adults and Health,Other Agencies - Third Party P,0090294210,L'ARCHE,"1,472.97",05/10/2020
Delivery Units,Adults and Health,Other Agencies - Third Party P,0090294212,CONTEMPLATION HOMES,"3,409.78",05/10/2020
Delivery Units,Adults and Health,Other Agencies - Third Party P,0090294213,CONTEMPLATION HOMES,"3,299.79",05/10/2020
Delivery Units,Adults and Health,Other Agencies - Third Party P,0090294216,KARUNA MANOR,"4,071.43",05/10/2020
Delivery Units,Adults and Health,Other Agencies - Third Party P,0090294217,KARUNA MANOR,"4,250.74",05/10/2020
Delivery Units,Adults and Health,Other Agencies - Third Party P,0090294218,KARUNA MANOR,"4,071.43",05/10/2020
Delivery Units,Adults and Health,Other Agencies - Third Party P,0090294219,KARUNA MANOR,"2,297.14",05/10/2020
Delivery Units,Adults and Health,Other Agencies - Third Party P,0090294220,WESTGATE HOUSE CARE CENTRE,"3,605.57",05/10/2020
Delivery Units,Adults and Health,Other Agencies - Third Party P,0090294223,CHARING LODGE LTD,"3,874.07",05/10/2020
Delivery Units,Adults and Health,Other Agencies - Third Party P,0090294226,ELIZABETH FINN HOMES LTD,"3,600.00",05/10/2020
Delivery Units,Adults and Health,Other Agencies - Third Party P,0090294228,SONESTA NURSING HOME LTD.,"-7,009.01",05/10/2020
Delivery Units,Adults and Health,Other Agencies - Third Party P,0090294229,SONESTA NURSING HOME LTD.,"8,837.58",05/10/2020
Delivery Units,Adults and Health,Other Agencies - Third Party P,0090294230,SONESTA NURSING HOME LTD.,"1,828.57",05/10/2020
Delivery Units,Adults and Health,Other Agencies - Third Party P,0090294231,SONESTA NURSING HOME LTD.,"1,828.57",05/10/2020
Delivery Units,Adults and Health,Other Agencies - Third Party P,0090294232,SONESTA NURSING HOME LTD.,"-7,443.33",05/10/2020
Delivery Units,Adults and Health,Other Agencies - Third Party P,0090294233,SONESTA NURSING HOME LTD.,"1,828.57",05/10/2020
Delivery Units,Adults and Health,Other Agencies - Third Party P,0090294234,SONESTA NURSING HOME LTD.,"1,828.57",05/10/2020
Delivery Units,Adults and Health,Other Agencies - Third Party P,0090294235,SONESTA NURSING HOME LTD.,"-28,076.51",05/10/2020
Delivery Units,Adults and Health,Other Agencies - Third Party P,0090294236,SONESTA NURSING HOME LTD.,"28,076.51",05/10/2020
Delivery Units,Adults and Health,Other Agencies - Third Party P,0090294237,SONESTA NURSING HOME LTD.,"1,828.57",05/10/2020
Delivery Units,Adults and Health,Other Agencies - Third Party P,0090294238,SONESTA NURSING HOME LTD.,"1,828.57",05/10/2020
Delivery Units,Adults and Health,Other Agencies - Third Party P,0090294239,SONESTA NURSING HOME LTD.,"1,828.57",05/10/2020
Delivery Units,Adults and Health,Other Agencies - Third Party P,0090294240,SONESTA NURSING HOME LTD.,"1,828.57",05/10/2020
Delivery Units,Adults and Health,Other Agencies - Third Party P,0090294241,SONESTA NURSING HOME LTD.,"1,828.57",05/10/2020
Delivery Units,Adults and Health,Other Agencies - Third Party P,0090294242,SONESTA NURSING HOME LTD.,"9,271.90",05/10/2020
Delivery Units,Adults and Health,Other Agencies - Third Party P,0090294243,SONESTA NURSING HOME LTD.,"1,828.57",05/10/2020
Delivery Units,Adults and Health,Other Agencies - Third Party P,0090294259,FOCUS CARE LINK LTD,"1,332.73",05/10/2020
Delivery Units,Adults and Health,Other Agencies - Third Party P,0090294260,FOCUS CARE LINK LTD,"3,460.71",05/10/2020
Delivery Units,Adults and Health,Other Agencies - Third Party P,0090294261,CHURCHILL HEALTH CARE LTD,180.18,05/10/2020
Delivery Units,Adults and Health,Other Agencies - Third Party P,0090294263,CHURCHILL HEALTH CARE LTD,969.13,05/10/2020
Delivery Units,Adults and Health,Other Agencies - Third Party P,0090294264,CHURCHILL HEALTH CARE LTD,171.99,05/10/2020
Delivery Units,Adults and Health,Other Agencies - Third Party P,0090294265,CHURCHILL HEALTH CARE LTD,907.45,05/10/2020
Delivery Units,Adults and Health,Other Agencies - Third Party P,0090294266,CHURCHILL HEALTH CARE LTD,931.31,05/10/2020
Delivery Units,Adults and Health,Other Agencies - Third Party P,0090294267,CHURCHILL HEALTH CARE LTD,155.63,05/10/2020
Delivery Units,Adults and Health,Other Agencies - Third Party P,0090294268,CHURCHILL HEALTH CARE LTD,655.20,05/10/2020
Delivery Units,Adults and Health,Other Agencies - Third Party P,0090294269,CHURCHILL HEALTH CARE LTD,540.76,05/10/2020
Delivery Units,Adults and Health,Other Agencies - Third Party P,0090294270,CHURCHILL HEALTH CARE LTD,"2,251.94",05/10/2020
Delivery Units,Adults and Health,Other Agencies - Third Party P,0090294271,CHURCHILL HEALTH CARE LTD,"2,111.32",05/10/2020
Delivery Units,Adults and Health,Other Agencies - Third Party P,0090294272,CHURCHILL HEALTH CARE LTD,344.12,05/10/2020
Delivery Units,Adults and Health,Other Agencies - Third Party P,0090294273,CHURCHILL HEALTH CARE LTD,114.66,05/10/2020
Delivery Units,Adults and Health,Other Agencies - Third Party P,0090294274,CHURCHILL HEALTH CARE LTD,958.62,05/10/2020
Delivery Units,Adults and Health,Other Agencies - Third Party P,0090294275,CHURCHILL HEALTH CARE LTD,454.58,05/10/2020
Delivery Units,Adults and Health,Other Agencies - Third Party P,0090294276,CHURCHILL HEALTH CARE LTD,73.74,05/10/2020
Delivery Units,Adults and Health,Other Agencies - Third Party P,0090294277,CHURCHILL HEALTH CARE LTD,"1,302.76",05/10/2020
Delivery Units,Adults and Health,Other Agencies - Third Party P,0090294278,CHURCHILL HEALTH CARE LTD,613.43,05/10/2020
Delivery Units,Adults and Health,Other Agencies - Third Party P,0090294279,CHURCHILL HEALTH CARE LTD,"1,595.65",05/10/2020
Delivery Units,Adults and Health,Other Agencies - Third Party P,0090294280,CHURCHILL HEALTH CARE LTD,"2,233.68",05/10/2020
Delivery Units,Adults and Health,Other Agencies - Third Party P,0090294281,APPLE TREE COURT CARE HOME,"2,571.43",05/10/2020
Delivery Units,Adults and Health,Other Agencies - Third Party P,0090294282,APPLE TREE COURT CARE HOME,"2,212.69",05/10/2020
Delivery Units,Adults and Health,Other Agencies - Third Party P,0090294283,APPLE TREE COURT CARE HOME,"2,526.97",05/10/2020
Delivery Units,Adults and Health,Other Agencies - Third Party P,0090294284,APPLE TREE COURT CARE HOME,"2,212.69",05/10/2020
Delivery Units,Adults and Health,Other Agencies - Third Party P,0090294285,APPLE TREE COURT CARE HOME,"2,212.69",05/10/2020
Delivery Units,Adults and Health,Other Agencies - Third Party P,0090294286,APPLE TREE COURT CARE HOME,"1,982.14",05/10/2020
Delivery Units,Adults and Health,Other Agencies - Third Party P,0090294287,APPLE TREE COURT CARE HOME,"2,428.57",05/10/2020
Delivery Units,Adults and Health,Other Agencies - Third Party P,0090294288,APPLE TREE COURT CARE HOME,"2,714.29",05/10/2020
Delivery Units,Adults and Health,Other Agencies - Third Party P,0090294289,APPLE TREE COURT CARE HOME,"2,212.69",05/10/2020
Delivery Units,Adults and Health,Other Agencies - Third Party P,0090294290,APPLE TREE COURT CARE HOME,"2,212.69",05/10/2020
Delivery Units,Adults and Health,Other Agencies - Third Party P,0090294291,APPLE TREE COURT CARE HOME,"2,212.69",05/10/2020
Delivery Units,Adults and Health,Other Agencies - Third Party P,0090294292,APPLE TREE COURT CARE HOME,"2,212.69",05/10/2020
Delivery Units,Adults and Health,Other Agencies - Third Party P,0090294293,APPLE TREE COURT CARE HOME,252.70,05/10/2020
Delivery Units,Adults and Health,Other Agencies - Third Party P,0090294294,APPLE TREE COURT CARE HOME,"1,780.77",05/10/2020
Delivery Units,Adults and Health,Other Agencies - Third Party P,0090294295,APPLE TREE COURT CARE HOME,"2,428.57",05/10/2020
Delivery Units,Adults and Health,Other Agencies - Third Party P,0090294296,APPLE TREE COURT CARE HOME,"3,142.86",05/10/2020
Delivery Units,Adults and Health,Other Agencies - Third Party P,0090294297,APPLE TREE COURT CARE HOME,"2,688.57",05/10/2020
Delivery Units,Adults and Health,Other Agencies - Third Party P,0090294298,APPLE TREE COURT CARE HOME,"2,714.29",05/10/2020
Delivery Units,Adults and Health,Other Agencies - Third Party P,0090294299,APPLE TREE COURT CARE HOME,"2,212.69",05/10/2020
Delivery Units,Adults and Health,Other Agencies - Third Party P,0090294300,APPLE TREE COURT CARE HOME,"2,212.69",05/10/2020
Delivery Units,Adults and Health,Other Agencies - Third Party P,0090294301,APPLE TREE COURT CARE HOME,"2,212.69",05/10/2020
Delivery Units,Adults and Health,Other Agencies - Third Party P,0090294302,APPLE TREE COURT CARE HOME,"3,413.89",05/10/2020
Delivery Units,Adults and Health,Other Agencies - Third Party P,0090294303,APPLE TREE COURT CARE HOME,"1,200.00",05/10/2020
Delivery Units,Adults and Health,Other Agencies - Third Party P,0090294361,STAMFORD NURSING CENTRE,"3,900.00",05/10/2020
Delivery Units,Adults and Health,Other Agencies - Third Party P,0090294362,NORMANSHIRE CARE SERVICES LTD,"6,960.00",05/10/2020
Delivery Units,Adults and Health,Other Agencies - Third Party P,0090294364,CAPITAL HOMECARE (UK) LIMITED,912.00,05/10/2020
Delivery Units,Adults and Health,Other Agencies - Third Party P,0090294365,CAPITAL HOMECARE (UK) LIMITED,887.40,05/10/2020
Delivery Units,Adults and Health,Other Agencies - Third Party P,0090294366,CAPITAL HOMECARE (UK) LIMITED,"1,959.36",05/10/2020
Delivery Units,Adults and Health,Other Agencies - Third Party P,0090294367,CAPITAL HOMECARE (UK) LIMITED,"1,407.00",05/10/2020
Delivery Units,Adults and Health,Other Agencies - Third Party P,0090294368,CAPITAL HOMECARE (UK) LIMITED,904.08,05/10/2020
Delivery Units,Adults and Health,Other Agencies - Third Party P,0090294430,THE WELL HOUSE,"4,350.00",06/10/2020
Delivery Units,Adults and Health,Other Agencies - Third Party P,0090294439,SWANBOROUGH HOUSE,"3,988.33",06/10/2020
Delivery Units,Adults and Health,Other Agencies - Third Party P,0090294444,SONNET CARE HOMES (ESSEX) LTD,"4,714.29",06/10/2020
Delivery Units,Adults and Health,Other Agencies - Third Party P,0090294634,DYNAMIC PEOPLE LTD,59.35,06/10/2020
Delivery Units,Adults and Health,Other Agencies - Third Party P,0090294635,DYNAMIC PEOPLE LTD,91.30,06/10/2020
Delivery Units,Adults and Health,Other Agencies - Third Party P,0090294636,DYNAMIC PEOPLE LTD,75.32,06/10/2020
Delivery Units,Adults and Health,Other Agencies - Third Party P,0090294637,DYNAMIC PEOPLE LTD,54.78,06/10/2020
Delivery Units,Adults and Health,Other Agencies - Third Party P,0090294638,DYNAMIC PEOPLE LTD,239.66,06/10/2020
Delivery Units,Adults and Health,Other Agencies - Third Party P,0090294639,DYNAMIC PEOPLE LTD,102.71,06/10/2020
Delivery Units,Adults and Health,Other Agencies - Third Party P,0090294640,DYNAMIC PEOPLE LTD,155.21,06/10/2020
Delivery Units,Adults and Health,Other Agencies - Third Party P,0090294641,DYNAMIC PEOPLE LTD,239.66,06/10/2020
Delivery Units,Adults and Health,Other Agencies - Third Party P,0090294642,DYNAMIC PEOPLE LTD,342.38,06/10/2020
Delivery Units,Adults and Health,Other Agencies - Third Party P,0090294643,DYNAMIC PEOPLE LTD,155.21,06/10/2020
Delivery Units,Adults and Health,Other Agencies - Third Party P,0090294644,DYNAMIC PEOPLE LTD,102.71,06/10/2020
Delivery Units,Adults and Health,Other Agencies - Third Party P,0090294645,DYNAMIC PEOPLE LTD,91.30,06/10/2020
Delivery Units,Adults and Health,Other Agencies - Third Party P,0090294646,DYNAMIC PEOPLE LTD,75.32,06/10/2020
Delivery Units,Adults and Health,Other Agencies - Third Party P,0090294647,DYNAMIC PEOPLE LTD,308.14,06/10/2020
Delivery Units,Adults and Health,Other Agencies - Third Party P,0090294648,DYNAMIC PEOPLE LTD,171.19,06/10/2020
Delivery Units,Adults and Health,Other Agencies - Third Party P,0090294649,DYNAMIC PEOPLE LTD,230.53,06/10/2020
Delivery Units,Adults and Health,Other Agencies - Third Party P,0090294650,DYNAMIC PEOPLE LTD,136.95,06/10/2020
Delivery Units,Adults and Health,Other Agencies - Third Party P,0090294651,DYNAMIC PEOPLE LTD,262.49,06/10/2020
Delivery Units,Adults and Health,Other Agencies - Third Party P,0090294652,DYNAMIC PEOPLE LTD,59.35,06/10/2020
Delivery Units,Adults and Health,Other Agencies - Third Party P,0090294653,DYNAMIC PEOPLE LTD,73.04,06/10/2020
Delivery Units,Adults and Health,Other Agencies - Third Party P,0090294654,DYNAMIC PEOPLE LTD,27.39,06/10/2020
Delivery Units,Adults and Health,Other Agencies - Third Party P,0090294655,DYNAMIC PEOPLE LTD,54.78,06/10/2020
Delivery Units,Adults and Health,Other Agencies - Third Party P,0090294656,DYNAMIC PEOPLE LTD,152.93,06/10/2020
Delivery Units,Adults and Health,Other Agencies - Third Party P,0090294657,DYNAMIC PEOPLE LTD,75.32,06/10/2020
Delivery Units,Adults and Health,Other Agencies - Third Party P,0090294658,DYNAMIC PEOPLE LTD,118.69,06/10/2020
Delivery Units,Adults and Health,Other Agencies - Third Party P,0090294659,DYNAMIC PEOPLE LTD,308.14,06/10/2020
Delivery Units,Adults and Health,Other Agencies - Third Party P,0090294660,DYNAMIC PEOPLE LTD,540.95,06/10/2020
Delivery Units,Adults and Health,Other Agencies - Third Party P,0090294661,DYNAMIC PEOPLE LTD,205.42,06/10/2020
Delivery Units,Adults and Health,Other Agencies - Third Party P,0090294662,DYNAMIC PEOPLE LTD,410.85,06/10/2020
Delivery Units,Adults and Health,Other Agencies - Third Party P,0090294663,DYNAMIC PEOPLE LTD,118.69,06/10/2020
Delivery Units,Adults and Health,Other Agencies - Third Party P,0090294664,DYNAMIC PEOPLE LTD,100.43,06/10/2020
Delivery Units,Adults and Health,Other Agencies - Third Party P,0090294665,DYNAMIC PEOPLE LTD,273.90,06/10/2020
Delivery Units,Adults and Health,Other Agencies - Third Party P,0090294666,DYNAMIC PEOPLE LTD,13.70,06/10/2020
Delivery Units,Adults and Health,Other Agencies - Third Party P,0090294667,DYNAMIC PEOPLE LTD,114.13,06/10/2020
Delivery Units,Adults and Health,Other Agencies - Third Party P,0090294668,DYNAMIC PEOPLE LTD,102.71,06/10/2020
Delivery Units,Adults and Health,Other Agencies - Third Party P,0090294669,DYNAMIC PEOPLE LTD,273.90,06/10/2020
Delivery Units,Adults and Health,Other Agencies - Third Party P,0090294670,DYNAMIC PEOPLE LTD,68.48,06/10/2020
Delivery Units,Adults and Health,Other Agencies - Third Party P,0090294671,DYNAMIC PEOPLE LTD,171.19,06/10/2020
Delivery Units,Adults and Health,Other Agencies - Third Party P,0090294672,DYNAMIC PEOPLE LTD,479.33,06/10/2020
Delivery Units,Adults and Health,Other Agencies - Third Party P,0090294673,DYNAMIC PEOPLE LTD,136.95,06/10/2020
Delivery Units,Adults and Health,Other Agencies - Third Party P,0090294674,DYNAMIC PEOPLE LTD,171.19,06/10/2020
Delivery Units,Adults and Health,Other Agencies - Third Party P,0090294675,DYNAMIC PEOPLE LTD,136.95,06/10/2020
Delivery Units,Adults and Health,Other Agencies - Third Party P,0090294676,DYNAMIC PEOPLE LTD,47.93,06/10/2020
Delivery Units,Adults and Health,Other Agencies - Third Party P,0090294677,DYNAMIC PEOPLE LTD,68.48,06/10/2020
Delivery Units,Adults and Health,Other Agencies - Third Party P,0090294678,DYNAMIC PEOPLE LTD,102.71,06/10/2020
Delivery Units,Adults and Health,Other Agencies - Third Party P,0090294679,DYNAMIC PEOPLE LTD,209.99,06/10/2020
Delivery Units,Adults and Health,Other Agencies - Third Party P,0090294680,DYNAMIC PEOPLE LTD,102.71,06/10/2020
Delivery Units,Adults and Health,Other Agencies - Third Party P,0090294681,DYNAMIC PEOPLE LTD,198.58,06/10/2020
Delivery Units,Adults and Health,Other Agencies - Third Party P,0090294682,DYNAMIC PEOPLE LTD,136.95,06/10/2020
Delivery Units,Adults and Health,Other Agencies - Third Party P,0090294683,DYNAMIC PEOPLE LTD,36.52,06/10/2020
Delivery Units,Adults and Health,Other Agencies - Third Party P,0090294684,DYNAMIC PEOPLE LTD,102.71,06/10/2020
Delivery Units,Adults and Health,Other Agencies - Third Party P,0090294685,DYNAMIC PEOPLE LTD,273.90,06/10/2020
Delivery Units,Adults and Health,Other Agencies - Third Party P,0090294686,DYNAMIC PEOPLE LTD,150.65,06/10/2020
Delivery Units,Adults and Health,Other Agencies - Third Party P,0090294687,DYNAMIC PEOPLE LTD,342.38,06/10/2020
Delivery Units,Adults and Health,Other Agencies - Third Party P,0090294688,DYNAMIC PEOPLE LTD,351.51,06/10/2020
Delivery Units,Adults and Health,Other Agencies - Third Party P,0090294689,DYNAMIC PEOPLE LTD,36.52,06/10/2020
Delivery Units,Adults and Health,Other Agencies - Third Party P,0090294690,DYNAMIC PEOPLE LTD,376.61,06/10/2020
Delivery Units,Adults and Health,Other Agencies - Third Party P,0090294691,DYNAMIC PEOPLE LTD,118.69,06/10/2020
Delivery Units,Adults and Health,Other Agencies - Third Party P,0090294692,DYNAMIC PEOPLE LTD,753.22,06/10/2020
Delivery Units,Adults and Health,Other Agencies - Third Party P,0090294693,DYNAMIC PEOPLE LTD,171.19,06/10/2020
Delivery Units,Adults and Health,Other Agencies - Third Party P,0090294694,DYNAMIC PEOPLE LTD,148.36,06/10/2020
Delivery Units,Adults and Health,Other Agencies - Third Party P,0090294695,DYNAMIC PEOPLE LTD,349.22,06/10/2020
Delivery Units,Adults and Health,Other Agencies - Third Party P,0090294696,DYNAMIC PEOPLE LTD,718.99,06/10/2020
Delivery Units,Adults and Health,Other Agencies - Third Party P,0090294697,DYNAMIC PEOPLE LTD,342.38,06/10/2020
Delivery Units,Adults and Health,Other Agencies - Third Party P,0090294698,DYNAMIC PEOPLE LTD,225.97,06/10/2020
Delivery Units,Adults and Health,Other Agencies - Third Party P,0090294699,DYNAMIC PEOPLE LTD,239.66,06/10/2020
Delivery Units,Adults and Health,Other Agencies - Third Party P,0090294700,DYNAMIC PEOPLE LTD,445.09,06/10/2020
Delivery Units,Adults and Health,Other Agencies - Third Party P,0090294701,DYNAMIC PEOPLE LTD,150.65,06/10/2020
Delivery Units,Adults and Health,Other Agencies - Third Party P,0090294702,DYNAMIC PEOPLE LTD,171.19,06/10/2020
Delivery Units,Adults and Health,Other Agencies - Third Party P,0090294703,DYNAMIC PEOPLE LTD,73.04,06/10/2020
Delivery Units,Adults and Health,Other Agencies - Third Party P,0090294704,DYNAMIC PEOPLE LTD,164.34,06/10/2020
Delivery Units,Adults and Health,Other Agencies - Third Party P,0090294705,DYNAMIC PEOPLE LTD,328.68,06/10/2020
Delivery Units,Adults and Health,Other Agencies - Third Party P,0090294706,DYNAMIC PEOPLE LTD,63.91,06/10/2020
Delivery Units,Adults and Health,Other Agencies - Third Party P,0090294707,DYNAMIC PEOPLE LTD,394.87,06/10/2020
Delivery Units,Adults and Health,Other Agencies - Third Party P,0090294708,DYNAMIC PEOPLE LTD,75.32,06/10/2020
Delivery Units,Adults and Health,Other Agencies - Third Party P,0090294709,DYNAMIC PEOPLE LTD,349.22,06/10/2020
Delivery Units,Adults and Health,Other Agencies - Third Party P,0090294710,DYNAMIC PEOPLE LTD,102.71,06/10/2020
Delivery Units,Adults and Health,Other Agencies - Third Party P,0090294711,DYNAMIC PEOPLE LTD,102.71,06/10/2020
Delivery Units,Adults and Health,Other Agencies - Third Party P,0090294712,DYNAMIC PEOPLE LTD,54.78,06/10/2020
Delivery Units,Adults and Health,Other Agencies - Third Party P,0090294713,DYNAMIC PEOPLE LTD,136.95,06/10/2020
Delivery Units,Adults and Health,Other Agencies - Third Party P,0090294714,DYNAMIC PEOPLE LTD,376.61,06/10/2020
Delivery Units,Adults and Health,Other Agencies - Third Party P,0090294715,DYNAMIC PEOPLE LTD,107.28,06/10/2020
Delivery Units,Adults and Health,Other Agencies - Third Party P,0090294716,DYNAMIC PEOPLE LTD,148.36,06/10/2020
Delivery Units,Adults and Health,Other Agencies - Third Party P,0090294717,DYNAMIC PEOPLE LTD,239.66,06/10/2020
Delivery Units,Adults and Health,Other Agencies - Third Party P,0090294718,DYNAMIC PEOPLE LTD,342.38,06/10/2020
Delivery Units,Adults and Health,Other Agencies - Third Party P,0090294719,DYNAMIC PEOPLE LTD,166.62,06/10/2020
Delivery Units,Adults and Health,Other Agencies - Third Party P,0090294720,DYNAMIC PEOPLE LTD,155.21,06/10/2020
Delivery Units,Adults and Health,Other Agencies - Third Party P,0090294721,DYNAMIC PEOPLE LTD,118.69,06/10/2020
Delivery Units,Adults and Health,Other Agencies - Third Party P,0090294722,DYNAMIC PEOPLE LTD,36.52,06/10/2020
Delivery Units,Adults and Health,Other Agencies - Third Party P,0090294723,DYNAMIC PEOPLE LTD,376.61,06/10/2020
Delivery Units,Adults and Health,Other Agencies - Third Party P,0090294724,DYNAMIC PEOPLE LTD,102.71,06/10/2020
Delivery Units,Adults and Health,Other Agencies - Third Party P,0090294725,DYNAMIC PEOPLE LTD,148.36,06/10/2020
Delivery Units,Adults and Health,Other Agencies - Third Party P,0090294726,DYNAMIC PEOPLE LTD,205.42,06/10/2020
Delivery Units,Adults and Health,Other Agencies - Third Party P,0090294727,DYNAMIC PEOPLE LTD,273.90,06/10/2020
Delivery Units,Adults and Health,Other Agencies - Third Party P,0090294728,DYNAMIC PEOPLE LTD,273.90,06/10/2020
Delivery Units,Adults and Health,Other Agencies - Third Party P,0090294729,DYNAMIC PEOPLE LTD,257.92,06/10/2020
Delivery Units,Adults and Health,Other Agencies - Third Party P,0090294730,DYNAMIC PEOPLE LTD,45.65,06/10/2020
Delivery Units,Adults and Health,Other Agencies - Third Party P,0090294731,DYNAMIC PEOPLE LTD,479.33,06/10/2020
Delivery Units,Adults and Health,Other Agencies - Third Party P,0090294732,DYNAMIC PEOPLE LTD,771.48,06/10/2020
Delivery Units,Adults and Health,Other Agencies - Third Party P,0090294733,DYNAMIC PEOPLE LTD,54.78,06/10/2020
Delivery Units,Adults and Health,Other Agencies - Third Party P,0090294734,DYNAMIC PEOPLE LTD,118.69,06/10/2020
Delivery Units,Adults and Health,Other Agencies - Third Party P,0090294735,DYNAMIC PEOPLE LTD,342.38,06/10/2020
Delivery Units,Adults and Health,Other Agencies - Third Party P,0090294736,DYNAMIC PEOPLE LTD,342.38,06/10/2020
Delivery Units,Adults and Health,Other Agencies - Third Party P,0090294737,DYNAMIC PEOPLE LTD,93.58,06/10/2020
Delivery Units,Adults and Health,Other Agencies - Third Party P,0090294738,DYNAMIC PEOPLE LTD,171.19,06/10/2020
Delivery Units,Adults and Health,Other Agencies - Third Party P,0090294739,DYNAMIC PEOPLE LTD,410.85,06/10/2020
Delivery Units,Adults and Health,Other Agencies - Third Party P,0090294740,DYNAMIC PEOPLE LTD,102.71,06/10/2020
Delivery Units,Adults and Health,Other Agencies - Third Party P,0090294741,DYNAMIC PEOPLE LTD,171.19,06/10/2020
Delivery Units,Adults and Health,Other Agencies - Third Party P,0090294742,DYNAMIC PEOPLE LTD,136.95,06/10/2020
Delivery Units,Adults and Health,Other Agencies - Third Party P,0090294743,DYNAMIC PEOPLE LTD,360.64,06/10/2020
Delivery Units,Adults and Health,Other Agencies - Third Party P,0090294744,DYNAMIC PEOPLE LTD,276.18,06/10/2020
Delivery Units,Adults and Health,Other Agencies - Third Party P,0090294745,DYNAMIC PEOPLE LTD,75.32,06/10/2020
Delivery Units,Adults and Health,Other Agencies - Third Party P,0090294746,DYNAMIC PEOPLE LTD,376.61,06/10/2020
Delivery Units,Adults and Health,Other Agencies - Third Party P,0090294747,DYNAMIC PEOPLE LTD,251.08,06/10/2020
Delivery Units,Adults and Health,Other Agencies - Third Party P,0090294748,DYNAMIC PEOPLE LTD,47.93,06/10/2020
Delivery Units,Adults and Health,Other Agencies - Third Party P,0090294749,DYNAMIC PEOPLE LTD,182.60,06/10/2020
Delivery Units,Adults and Health,Other Agencies - Third Party P,0090294750,DYNAMIC PEOPLE LTD,36.52,06/10/2020
Delivery Units,Adults and Health,Other Agencies - Third Party P,0090294751,DYNAMIC PEOPLE LTD,18.26,06/10/2020
Delivery Units,Adults and Health,Other Agencies - Third Party P,0090294752,DYNAMIC PEOPLE LTD,734.96,06/10/2020
Delivery Units,Adults and Health,Other Agencies - Third Party P,0090294753,DYNAMIC PEOPLE LTD,547.80,06/10/2020
Delivery Units,Adults and Health,Other Agencies - Third Party P,0090294754,DYNAMIC PEOPLE LTD,63.91,06/10/2020
Delivery Units,Adults and Health,Other Agencies - Third Party P,0090294755,DYNAMIC PEOPLE LTD,269.34,06/10/2020
Delivery Units,Adults and Health,Other Agencies - Third Party P,0090294756,DYNAMIC PEOPLE LTD,123.26,06/10/2020
Delivery Units,Adults and Health,Other Agencies - Third Party P,0090294757,DYNAMIC PEOPLE LTD,125.54,06/10/2020
Delivery Units,Adults and Health,Other Agencies - Third Party P,0090294759,DYNAMIC PEOPLE LTD,342.38,06/10/2020
Delivery Units,Adults and Health,Other Agencies - Third Party P,0090294760,DYNAMIC PEOPLE LTD,214.56,06/10/2020
Delivery Units,Adults and Health,Other Agencies - Third Party P,0090294761,DYNAMIC PEOPLE LTD,27.39,06/10/2020
Delivery Units,Adults and Health,Other Agencies - Third Party P,0090294762,DYNAMIC PEOPLE LTD,360.64,06/10/2020
Delivery Units,Adults and Health,Other Agencies - Third Party P,0090294763,DYNAMIC PEOPLE LTD,342.38,06/10/2020
Delivery Units,Adults and Health,Other Agencies - Third Party P,0090294764,DYNAMIC PEOPLE LTD,360.64,06/10/2020
Delivery Units,Adults and Health,Other Agencies - Third Party P,0090294765,DYNAMIC PEOPLE LTD,308.14,06/10/2020
Delivery Units,Adults and Health,Other Agencies - Third Party P,0090294766,DYNAMIC PEOPLE LTD,102.71,06/10/2020
Delivery Units,Adults and Health,Other Agencies - Third Party P,0090294767,DYNAMIC PEOPLE LTD,241.95,06/10/2020
Delivery Units,Adults and Health,Other Agencies - Third Party P,0090294768,DYNAMIC PEOPLE LTD,100.43,06/10/2020
Delivery Units,Adults and Health,Other Agencies - Third Party P,0090294769,DYNAMIC PEOPLE LTD,310.42,06/10/2020
Delivery Units,Adults and Health,Other Agencies - Third Party P,0090294770,DYNAMIC PEOPLE LTD,41.08,06/10/2020
Delivery Units,Adults and Health,Other Agencies - Third Party P,0090294771,DYNAMIC PEOPLE LTD,102.71,06/10/2020
Delivery Units,Adults and Health,Other Agencies - Third Party P,0090294772,DYNAMIC PEOPLE LTD,27.39,06/10/2020
Delivery Units,Adults and Health,Other Agencies - Third Party P,0090294773,DYNAMIC PEOPLE LTD,102.71,06/10/2020
Delivery Units,Adults and Health,Other Agencies - Third Party P,0090294774,DYNAMIC PEOPLE LTD,136.95,06/10/2020
Delivery Units,Adults and Health,Other Agencies - Third Party P,0090294775,DYNAMIC PEOPLE LTD,82.17,06/10/2020
Delivery Units,Adults and Health,Other Agencies - Third Party P,0090294776,DYNAMIC PEOPLE LTD,547.80,06/10/2020
Delivery Units,Adults and Health,Other Agencies - Third Party P,0090294777,DYNAMIC PEOPLE LTD,143.80,06/10/2020
Delivery Units,Adults and Health,Other Agencies - Third Party P,0090294778,DYNAMIC PEOPLE LTD,54.78,06/10/2020
Delivery Units,Adults and Health,Other Agencies - Third Party P,0090294779,DYNAMIC PEOPLE LTD,82.17,06/10/2020
Delivery Units,Adults and Health,Other Agencies - Third Party P,0090294780,DYNAMIC PEOPLE LTD,68.48,06/10/2020
Delivery Units,Adults and Health,Other Agencies - Third Party P,0090294781,DYNAMIC PEOPLE LTD,63.91,06/10/2020
Delivery Units,Adults and Health,Other Agencies - Third Party P,0090294782,DYNAMIC PEOPLE LTD,146.08,06/10/2020
Delivery Units,Adults and Health,Other Agencies - Third Party P,0090294783,DYNAMIC PEOPLE LTD,95.86,06/10/2020
Delivery Units,Adults and Health,Other Agencies - Third Party P,0090294784,DYNAMIC PEOPLE LTD,146.08,06/10/2020
Delivery Units,Adults and Health,Other Agencies - Third Party P,0090294785,DYNAMIC PEOPLE LTD,18.26,06/10/2020
Delivery Units,Adults and Health,Other Agencies - Third Party P,0090294786,DYNAMIC PEOPLE LTD,223.69,06/10/2020
Delivery Units,Adults and Health,Other Agencies - Third Party P,0090294787,DYNAMIC PEOPLE LTD,319.55,06/10/2020
Delivery Units,Adults and Health,Other Agencies - Third Party P,0090294788,DYNAMIC PEOPLE LTD,168.90,06/10/2020
Delivery Units,Adults and Health,Other Agencies - Third Party P,0090294789,DYNAMIC PEOPLE LTD,95.86,06/10/2020
Delivery Units,Adults and Health,Other Agencies - Third Party P,0090294790,DYNAMIC PEOPLE LTD,91.30,06/10/2020
Delivery Units,Adults and Health,Other Agencies - Third Party P,0090294791,DYNAMIC PEOPLE LTD,68.48,06/10/2020
Delivery Units,Adults and Health,Other Agencies - Third Party P,0090294792,DYNAMIC PEOPLE LTD,287.60,06/10/2020
Delivery Units,Adults and Health,Other Agencies - Third Party P,0090294793,DYNAMIC PEOPLE LTD,159.78,06/10/2020
Delivery Units,Adults and Health,Other Agencies - Third Party P,0090294794,DYNAMIC PEOPLE LTD,214.56,06/10/2020
Delivery Units,Adults and Health,Other Agencies - Third Party P,0090294795,DYNAMIC PEOPLE LTD,127.82,06/10/2020
Delivery Units,Adults and Health,Other Agencies - Third Party P,0090294796,DYNAMIC PEOPLE LTD,241.95,06/10/2020
Delivery Units,Adults and Health,Other Agencies - Third Party P,0090294797,DYNAMIC PEOPLE LTD,59.35,06/10/2020
Delivery Units,Adults and Health,Other Agencies - Third Party P,0090294798,DYNAMIC PEOPLE LTD,91.30,06/10/2020
Delivery Units,Adults and Health,Other Agencies - Third Party P,0090294799,DYNAMIC PEOPLE LTD,27.39,06/10/2020
Delivery Units,Adults and Health,Other Agencies - Third Party P,0090294800,DYNAMIC PEOPLE LTD,54.78,06/10/2020
Delivery Units,Adults and Health,Other Agencies - Third Party P,0090294801,DYNAMIC PEOPLE LTD,141.52,06/10/2020
Delivery Units,Adults and Health,Other Agencies - Third Party P,0090294802,DYNAMIC PEOPLE LTD,68.48,06/10/2020
Delivery Units,Adults and Health,Other Agencies - Third Party P,0090294803,DYNAMIC PEOPLE LTD,109.56,06/10/2020
Delivery Units,Adults and Health,Other Agencies - Third Party P,0090294804,DYNAMIC PEOPLE LTD,269.34,06/10/2020
Delivery Units,Adults and Health,Other Agencies - Third Party P,0090294805,DYNAMIC PEOPLE LTD,524.98,06/10/2020
Delivery Units,Adults and Health,Other Agencies - Third Party P,0090294806,DYNAMIC PEOPLE LTD,191.73,06/10/2020
Delivery Units,Adults and Health,Other Agencies - Third Party P,0090294807,DYNAMIC PEOPLE LTD,383.46,06/10/2020
Delivery Units,Adults and Health,Other Agencies - Third Party P,0090294808,DYNAMIC PEOPLE LTD,109.56,06/10/2020
Delivery Units,Adults and Health,Other Agencies - Third Party P,0090294809,DYNAMIC PEOPLE LTD,91.30,06/10/2020
Delivery Units,Adults and Health,Other Agencies - Third Party P,0090294810,DYNAMIC PEOPLE LTD,255.64,06/10/2020
Delivery Units,Adults and Health,Other Agencies - Third Party P,0090294811,DYNAMIC PEOPLE LTD,36.52,06/10/2020
Delivery Units,Adults and Health,Other Agencies - Third Party P,0090294812,DYNAMIC PEOPLE LTD,351.51,06/10/2020
Delivery Units,Adults and Health,Other Agencies - Third Party P,0090294813,DYNAMIC PEOPLE LTD,95.86,06/10/2020
Delivery Units,Adults and Health,Other Agencies - Third Party P,0090294814,DYNAMIC PEOPLE LTD,255.64,06/10/2020
Delivery Units,Adults and Health,Other Agencies - Third Party P,0090294815,DYNAMIC PEOPLE LTD,63.91,06/10/2020
Delivery Units,Adults and Health,Other Agencies - Third Party P,0090294816,DYNAMIC PEOPLE LTD,159.78,06/10/2020
Delivery Units,Adults and Health,Other Agencies - Third Party P,0090294817,DYNAMIC PEOPLE LTD,155.21,06/10/2020
Delivery Units,Adults and Health,Other Agencies - Third Party P,0090294818,DYNAMIC PEOPLE LTD,127.82,06/10/2020
Delivery Units,Adults and Health,Other Agencies - Third Party P,0090294819,DYNAMIC PEOPLE LTD,159.78,06/10/2020
Delivery Units,Adults and Health,Other Agencies - Third Party P,0090294820,DYNAMIC PEOPLE LTD,127.82,06/10/2020
Delivery Units,Adults and Health,Other Agencies - Third Party P,0090294821,DYNAMIC PEOPLE LTD,41.08,06/10/2020
Delivery Units,Adults and Health,Other Agencies - Third Party P,0090294822,DYNAMIC PEOPLE LTD,63.91,06/10/2020
Delivery Units,Adults and Health,Other Agencies - Third Party P,0090294823,DYNAMIC PEOPLE LTD,95.86,06/10/2020
Delivery Units,Adults and Health,Other Agencies - Third Party P,0090294824,DYNAMIC PEOPLE LTD,200.86,06/10/2020
Delivery Units,Adults and Health,Other Agencies - Third Party P,0090294825,DYNAMIC PEOPLE LTD,95.86,06/10/2020
Delivery Units,Adults and Health,Other Agencies - Third Party P,0090294826,DYNAMIC PEOPLE LTD,187.17,06/10/2020
Delivery Units,Adults and Health,Other Agencies - Third Party P,0090294827,DYNAMIC PEOPLE LTD,127.82,06/10/2020
Delivery Units,Adults and Health,Other Agencies - Third Party P,0090294828,DYNAMIC PEOPLE LTD,95.86,06/10/2020
Delivery Units,Adults and Health,Other Agencies - Third Party P,0090294829,DYNAMIC PEOPLE LTD,255.64,06/10/2020
Delivery Units,Adults and Health,Other Agencies - Third Party P,0090294830,DYNAMIC PEOPLE LTD,136.95,06/10/2020
Delivery Units,Adults and Health,Other Agencies - Third Party P,0090294831,DYNAMIC PEOPLE LTD,319.55,06/10/2020
Delivery Units,Adults and Health,Other Agencies - Third Party P,0090294832,DYNAMIC PEOPLE LTD,328.68,06/10/2020
Delivery Units,Adults and Health,Other Agencies - Third Party P,0090294833,DYNAMIC PEOPLE LTD,36.52,06/10/2020
Delivery Units,Adults and Health,Other Agencies - Third Party P,0090294834,DYNAMIC PEOPLE LTD,351.51,06/10/2020
Delivery Units,Adults and Health,Other Agencies - Third Party P,0090294835,DYNAMIC PEOPLE LTD,109.56,06/10/2020
Delivery Units,Adults and Health,Other Agencies - Third Party P,0090294836,DYNAMIC PEOPLE LTD,703.01,06/10/2020
Delivery Units,Adults and Health,Other Agencies - Third Party P,0090294837,DYNAMIC PEOPLE LTD,159.78,06/10/2020
Delivery Units,Adults and Health,Other Agencies - Third Party P,0090294838,DYNAMIC PEOPLE LTD,136.95,06/10/2020
Delivery Units,Adults and Health,Other Agencies - Third Party P,0090294839,DYNAMIC PEOPLE LTD,333.24,06/10/2020
Delivery Units,Adults and Health,Other Agencies - Third Party P,0090294840,DYNAMIC PEOPLE LTD,671.06,06/10/2020
Delivery Units,Adults and Health,Other Agencies - Third Party P,0090294841,DYNAMIC PEOPLE LTD,319.55,06/10/2020
Delivery Units,Adults and Health,Other Agencies - Third Party P,0090294842,DYNAMIC PEOPLE LTD,214.56,06/10/2020
Delivery Units,Adults and Health,Other Agencies - Third Party P,0090294843,DYNAMIC PEOPLE LTD,223.69,06/10/2020
Delivery Units,Adults and Health,Other Agencies - Third Party P,0090294844,DYNAMIC PEOPLE LTD,415.42,06/10/2020
Delivery Units,Adults and Health,Other Agencies - Third Party P,0090294845,DYNAMIC PEOPLE LTD,141.52,06/10/2020
Delivery Units,Adults and Health,Other Agencies - Third Party P,0090294846,DYNAMIC PEOPLE LTD,159.78,06/10/2020
Delivery Units,Adults and Health,Other Agencies - Third Party P,0090294847,DYNAMIC PEOPLE LTD,54.78,06/10/2020
Delivery Units,Adults and Health,Other Agencies - Third Party P,0090294848,DYNAMIC PEOPLE LTD,209.99,06/10/2020
Delivery Units,Adults and Health,Other Agencies - Third Party P,0090294849,DYNAMIC PEOPLE LTD,305.86,06/10/2020
Delivery Units,Adults and Health,Other Agencies - Third Party P,0090294850,DYNAMIC PEOPLE LTD,54.78,06/10/2020
Delivery Units,Adults and Health,Other Agencies - Third Party P,0090294851,DYNAMIC PEOPLE LTD,369.77,06/10/2020
Delivery Units,Adults and Health,Other Agencies - Third Party P,0090294852,DYNAMIC PEOPLE LTD,68.48,06/10/2020
Delivery Units,Adults and Health,Other Agencies - Third Party P,0090294853,DYNAMIC PEOPLE LTD,319.55,06/10/2020
Delivery Units,Adults and Health,Other Agencies - Third Party P,0090294854,DYNAMIC PEOPLE LTD,95.86,06/10/2020
Delivery Units,Adults and Health,Other Agencies - Third Party P,0090294855,DYNAMIC PEOPLE LTD,27.39,06/10/2020
Delivery Units,Adults and Health,Other Agencies - Third Party P,0090294856,DYNAMIC PEOPLE LTD,54.78,06/10/2020
Delivery Units,Adults and Health,Other Agencies - Third Party P,0090294857,DYNAMIC PEOPLE LTD,127.82,06/10/2020
Delivery Units,Adults and Health,Other Agencies - Third Party P,0090294858,DYNAMIC PEOPLE LTD,351.51,06/10/2020
Delivery Units,Adults and Health,Other Agencies - Third Party P,0090294859,DYNAMIC PEOPLE LTD,100.43,06/10/2020
Delivery Units,Adults and Health,Other Agencies - Third Party P,0090294860,DYNAMIC PEOPLE LTD,136.95,06/10/2020
Delivery Units,Adults and Health,Other Agencies - Third Party P,0090294861,DYNAMIC PEOPLE LTD,223.69,06/10/2020
Delivery Units,Adults and Health,Other Agencies - Third Party P,0090294862,DYNAMIC PEOPLE LTD,314.98,06/10/2020
Delivery Units,Adults and Health,Other Agencies - Third Party P,0090294863,DYNAMIC PEOPLE LTD,228.25,06/10/2020
Delivery Units,Adults and Health,Other Agencies - Third Party P,0090294864,DYNAMIC PEOPLE LTD,73.04,06/10/2020
Delivery Units,Adults and Health,Other Agencies - Third Party P,0090294865,DYNAMIC PEOPLE LTD,100.43,06/10/2020
Delivery Units,Adults and Health,Other Agencies - Third Party P,0090294866,DYNAMIC PEOPLE LTD,319.55,06/10/2020
Delivery Units,Adults and Health,Other Agencies - Third Party P,0090294867,DYNAMIC PEOPLE LTD,95.86,06/10/2020
Delivery Units,Adults and Health,Other Agencies - Third Party P,0090294868,DYNAMIC PEOPLE LTD,141.52,06/10/2020
Delivery Units,Adults and Health,Other Agencies - Third Party P,0090294869,DYNAMIC PEOPLE LTD,164.34,06/10/2020
Delivery Units,Adults and Health,Other Agencies - Third Party P,0090294870,DYNAMIC PEOPLE LTD,255.64,06/10/2020
Delivery Units,Adults and Health,Other Agencies - Third Party P,0090294871,DYNAMIC PEOPLE LTD,255.64,06/10/2020
Delivery Units,Adults and Health,Other Agencies - Third Party P,0090294872,DYNAMIC PEOPLE LTD,241.95,06/10/2020
Delivery Units,Adults and Health,Other Agencies - Third Party P,0090294873,DYNAMIC PEOPLE LTD,59.35,06/10/2020
Delivery Units,Adults and Health,Other Agencies - Third Party P,0090294874,DYNAMIC PEOPLE LTD,447.37,06/10/2020
Delivery Units,Adults and Health,Other Agencies - Third Party P,0090294875,DYNAMIC PEOPLE LTD,593.45,06/10/2020
Delivery Units,Adults and Health,Other Agencies - Third Party P,0090294876,DYNAMIC PEOPLE LTD,73.04,06/10/2020
Delivery Units,Adults and Health,Other Agencies - Third Party P,0090294877,DYNAMIC PEOPLE LTD,182.60,06/10/2020
Delivery Units,Adults and Health,Other Agencies - Third Party P,0090294878,DYNAMIC PEOPLE LTD,319.55,06/10/2020
Delivery Units,Adults and Health,Other Agencies - Third Party P,0090294879,DYNAMIC PEOPLE LTD,319.55,06/10/2020
Delivery Units,Adults and Health,Other Agencies - Third Party P,0090294880,DYNAMIC PEOPLE LTD,159.78,06/10/2020
Delivery Units,Adults and Health,Other Agencies - Third Party P,0090294881,DYNAMIC PEOPLE LTD,383.46,06/10/2020
Delivery Units,Adults and Health,Other Agencies - Third Party P,0090294882,DYNAMIC PEOPLE LTD,95.86,06/10/2020
Delivery Units,Adults and Health,Other Agencies - Third Party P,0090294883,DYNAMIC PEOPLE LTD,155.21,06/10/2020
Delivery Units,Adults and Health,Other Agencies - Third Party P,0090294884,DYNAMIC PEOPLE LTD,127.82,06/10/2020
Delivery Units,Adults and Health,Other Agencies - Third Party P,0090294885,DYNAMIC PEOPLE LTD,337.81,06/10/2020
Delivery Units,Adults and Health,Other Agencies - Third Party P,0090294886,DYNAMIC PEOPLE LTD,260.21,06/10/2020
Delivery Units,Adults and Health,Other Agencies - Third Party P,0090294887,DYNAMIC PEOPLE LTD,351.51,06/10/2020
Delivery Units,Adults and Health,Other Agencies - Third Party P,0090294888,DYNAMIC PEOPLE LTD,237.38,06/10/2020
Delivery Units,Adults and Health,Other Agencies - Third Party P,0090294889,DYNAMIC PEOPLE LTD,54.78,06/10/2020
Delivery Units,Adults and Health,Other Agencies - Third Party P,0090294890,DYNAMIC PEOPLE LTD,182.60,06/10/2020
Delivery Units,Adults and Health,Other Agencies - Third Party P,0090294891,DYNAMIC PEOPLE LTD,73.04,06/10/2020
Delivery Units,Adults and Health,Other Agencies - Third Party P,0090294892,DYNAMIC PEOPLE LTD,54.78,06/10/2020
Delivery Units,Adults and Health,Other Agencies - Third Party P,0090294893,DYNAMIC PEOPLE LTD,182.60,06/10/2020
Delivery Units,Adults and Health,Other Agencies - Third Party P,0090294894,DYNAMIC PEOPLE LTD,693.88,06/10/2020
Delivery Units,Adults and Health,Other Agencies - Third Party P,0090294895,DYNAMIC PEOPLE LTD,511.28,06/10/2020
Delivery Units,Adults and Health,Other Agencies - Third Party P,0090294896,DYNAMIC PEOPLE LTD,132.39,06/10/2020
Delivery Units,Adults and Health,Other Agencies - Third Party P,0090294897,DYNAMIC PEOPLE LTD,54.78,06/10/2020
Delivery Units,Adults and Health,Other Agencies - Third Party P,0090294898,DYNAMIC PEOPLE LTD,237.38,06/10/2020
Delivery Units,Adults and Health,Other Agencies - Third Party P,0090294899,DYNAMIC PEOPLE LTD,278.47,06/10/2020
Delivery Units,Adults and Health,Other Agencies - Third Party P,0090294900,DYNAMIC PEOPLE LTD,150.65,06/10/2020
Delivery Units,Adults and Health,Other Agencies - Third Party P,0090294901,DYNAMIC PEOPLE LTD,127.82,06/10/2020
Delivery Units,Adults and Health,Other Agencies - Third Party P,0090294903,DYNAMIC PEOPLE LTD,319.55,06/10/2020
Delivery Units,Adults and Health,Other Agencies - Third Party P,0090294904,DYNAMIC PEOPLE LTD,155.21,06/10/2020
Delivery Units,Adults and Health,Other Agencies - Third Party P,0090294905,DYNAMIC PEOPLE LTD,27.39,06/10/2020
Delivery Units,Adults and Health,Other Agencies - Third Party P,0090294906,DYNAMIC PEOPLE LTD,337.81,06/10/2020
Delivery Units,Adults and Health,Other Agencies - Third Party P,0090294907,DYNAMIC PEOPLE LTD,246.51,06/10/2020
Delivery Units,Adults and Health,Other Agencies - Third Party P,0090294908,DYNAMIC PEOPLE LTD,337.81,06/10/2020
Delivery Units,Adults and Health,Other Agencies - Third Party P,0090294909,DYNAMIC PEOPLE LTD,287.60,06/10/2020
Delivery Units,Adults and Health,Other Agencies - Third Party P,0090294910,DYNAMIC PEOPLE LTD,95.86,06/10/2020
Delivery Units,Adults and Health,Other Agencies - Third Party P,0090294911,DYNAMIC PEOPLE LTD,228.25,06/10/2020
Delivery Units,Adults and Health,Other Agencies - Third Party P,0090294912,DYNAMIC PEOPLE LTD,91.30,06/10/2020
Delivery Units,Adults and Health,Other Agencies - Third Party P,0090294913,DYNAMIC PEOPLE LTD,292.16,06/10/2020
Delivery Units,Adults and Health,Other Agencies - Third Party P,0090294914,DYNAMIC PEOPLE LTD,82.17,06/10/2020
Delivery Units,Adults and Health,Other Agencies - Third Party P,0090294915,DYNAMIC PEOPLE LTD,95.86,06/10/2020
Delivery Units,Adults and Health,Other Agencies - Third Party P,0090294916,DYNAMIC PEOPLE LTD,27.39,06/10/2020
Delivery Units,Adults and Health,Other Agencies - Third Party P,0090294917,DYNAMIC PEOPLE LTD,82.17,06/10/2020
Delivery Units,Adults and Health,Other Agencies - Third Party P,0090294918,DYNAMIC PEOPLE LTD,127.82,06/10/2020
Delivery Units,Adults and Health,Other Agencies - Third Party P,0090294919,DYNAMIC PEOPLE LTD,73.04,06/10/2020
Delivery Units,Adults and Health,Other Agencies - Third Party P,0090294920,DYNAMIC PEOPLE LTD,511.28,06/10/2020
Delivery Units,Adults and Health,Other Agencies - Third Party P,0090294921,DYNAMIC PEOPLE LTD,127.82,06/10/2020
Delivery Units,Adults and Health,Other Agencies - Third Party P,0090294922,DYNAMIC PEOPLE LTD,118.69,06/10/2020
Delivery Units,Adults and Health,Other Agencies - Third Party P,0090294923,DYNAMIC PEOPLE LTD,95.90,06/10/2020
Delivery Units,Adults and Health,Other Agencies - Third Party P,0090294431,THE NATIONAL AUTISTIC SOCIETY,"5,705.44",06/10/2020
Delivery Units,Adults and Health,Other Agencies - Third Party P,0090294432,THE NATIONAL AUTISTIC SOCIETY,"6,620.80",06/10/2020
Delivery Units,Adults and Health,Other Agencies - Third Party P,0090294433,THE NATIONAL AUTISTIC SOCIETY,"10,592.72",06/10/2020
Delivery Units,Adults and Health,Fees and Charges,0090294434,THE NATIONAL AUTISTIC SOCIETY,-423.00,06/10/2020
Delivery Units,Adults and Health,Fees and Charges,0090294435,THE NATIONAL AUTISTIC SOCIETY,-423.00,06/10/2020
Delivery Units,Adults and Health,Fees and Charges,0090294436,THE NATIONAL AUTISTIC SOCIETY,-423.00,06/10/2020
Delivery Units,Adults and Health,Other Agencies - Third Party P,0090294453,FREEWAYS TRUST LIMITED,829.80,06/10/2020
Delivery Units,Adults and Health,Other Agencies - Third Party P,0090294925,HEADWAY EAST LONDON,437.75,06/10/2020
Delivery Units,Adults and Health,Other Agencies - Third Party P,0090294926,HEADWAY EAST LONDON,760.00,06/10/2020
Delivery Units,Adults and Health,Other Agencies - Third Party P,0090294440,SUNRIDGE HOUSING ASSOCIATION LTD,"2,893.14",06/10/2020
Delivery Units,Adults and Health,Other Agencies - Third Party P,0090294375,PRACTICAL CARE,311.85,06/10/2020
Delivery Units,Adults and Health,Other Agencies - Third Party P,0090294376,PRACTICAL CARE,675.68,06/10/2020
Delivery Units,Adults and Health,Other Agencies - Third Party P,0090294377,PRACTICAL CARE,601.43,06/10/2020
Delivery Units,Adults and Health,Other Agencies - Third Party P,0090294378,PRACTICAL CARE,363.83,06/10/2020
Delivery Units,Adults and Health,Other Agencies - Third Party P,0090294379,PRACTICAL CARE,77.96,06/10/2020
Delivery Units,Adults and Health,Other Agencies - Third Party P,0090294380,PRACTICAL CARE,623.70,06/10/2020
Delivery Units,Adults and Health,Other Agencies - Third Party P,0090294381,PRACTICAL CARE,196.76,06/10/2020
Delivery Units,Adults and Health,Other Agencies - Third Party P,0090294382,PRACTICAL CARE,415.80,06/10/2020
Delivery Units,Adults and Health,Other Agencies - Third Party P,0090294383,PRACTICAL CARE,378.68,06/10/2020
Delivery Units,Adults and Health,Other Agencies - Third Party P,0090294384,PRACTICAL CARE,252.45,06/10/2020
Delivery Units,Adults and Health,Other Agencies - Third Party P,0090294385,PRACTICAL CARE,51.98,06/10/2020
Delivery Units,Adults and Health,Other Agencies - Third Party P,0090294386,PRACTICAL CARE,181.91,06/10/2020
Delivery Units,Adults and Health,Other Agencies - Third Party P,0090294387,PRACTICAL CARE,549.45,06/10/2020
Delivery Units,Adults and Health,Other Agencies - Third Party P,0090294388,PRACTICAL CARE,44.55,06/10/2020
Delivery Units,Adults and Health,Other Agencies - Third Party P,0090294389,PRACTICAL CARE,259.88,06/10/2020
Delivery Units,Adults and Health,Other Agencies - Third Party P,0090294390,PRACTICAL CARE,155.93,06/10/2020
Delivery Units,Adults and Health,Other Agencies - Third Party P,0090294391,PRACTICAL CARE,207.90,06/10/2020
Delivery Units,Adults and Health,Other Agencies - Third Party P,0090294392,PRACTICAL CARE,371.25,06/10/2020
Delivery Units,Adults and Health,Other Agencies - Third Party P,0090294393,PRACTICAL CARE,311.85,06/10/2020
Delivery Units,Adults and Health,Other Agencies - Third Party P,0090294394,PRACTICAL CARE,749.93,06/10/2020
Delivery Units,Adults and Health,Other Agencies - Third Party P,0090294395,PRACTICAL CARE,155.93,06/10/2020
Delivery Units,Adults and Health,Other Agencies - Third Party P,0090294396,PRACTICAL CARE,675.68,06/10/2020
Delivery Units,Adults and Health,Other Agencies - Third Party P,0090294397,PRACTICAL CARE,174.49,06/10/2020
Delivery Units,Adults and Health,Other Agencies - Third Party P,0090294398,PRACTICAL CARE,623.70,06/10/2020
Delivery Units,Adults and Health,Other Agencies - Third Party P,0090294399,PRACTICAL CARE,519.75,06/10/2020
Delivery Units,Adults and Health,Other Agencies - Third Party P,0090294400,PRACTICAL CARE,571.73,06/10/2020
Delivery Units,Adults and Health,Other Agencies - Third Party P,0090294401,PRACTICAL CARE,207.90,06/10/2020
Delivery Units,Adults and Health,Other Agencies - Third Party P,0090294402,PRACTICAL CARE,638.55,06/10/2020
Delivery Units,Adults and Health,Other Agencies - Third Party P,0090294403,PRACTICAL CARE,363.83,06/10/2020
Delivery Units,Adults and Health,Other Agencies - Third Party P,0090294404,PRACTICAL CARE,252.45,06/10/2020
Delivery Units,Adults and Health,Other Agencies - Third Party P,0090294405,PRACTICAL CARE,233.89,06/10/2020
